Workbook

Sheet solver
A1: BasinID | B1: CHSLP | C1: Solver AUGgwWp | D1: Actual AUGgwWp | E1: pBWet_al | F1: IC | G1: Solver E(y) | H1: Density at 5% Reduction in Range | I1: AugPA resulting in 5% reduction | J1: Density 15% reduction in range | K1: AugPA resulting in 15% reduction | L1: Density at 35% reduction in range | M1: Aug PA resulting in 35% reduction | N1: Density at 65% reduction in range | O1: AugPA resulting in 65% reduction
A2: 10001 | B2: =VLOOKUP($A2,BasinData!$1:$1048576,2,FALSE) -> 0.00147143742 | C2: 3.910276345 | D2: =VLOOKUP($A2,BasinData!$1:$1048576,3,FALSE) -> 1.531956958 | E2: =VLOOKUP($A2,BasinData!$1:$1048576,4,FALSE) -> 36.099716 | F2: =VLOOKUP($A2,BasinData!$1:$1048576,5,FALSE) -> 13.22586344 | G2: =EXP(6.1523-(0.084*B2)-(0.0091*C2)-(0.0289*E2)-(0.0373*F2)) -> 97.51306663 | H2: =VLOOKUP($A2,Sheet1!$1:$1048576,9,FALSE) -> 154.6656214 | I2: -46.77918607 | J2: =VLOOKUP($A2,Sheet1!$1:$1048576,10,FALSE) -> 145.1401637 | K2: -39.79495705 | L2: =VLOOKUP($A2,Sheet1!$1:$1048576,11,FALSE) -> 126.0892482 | M2: -24.33187792 | N2: =VLOOKUP($A2,Sheet1!$1:$1048576,12,FALSE) -> 97.51287505 | O2: 3.910276345
A3: 10002 | B3: =VLOOKUP($A3,BasinData!$1:$1048576,2,FALSE) -> 0.0525644871 | C3: 10.57397311 | D3: =VLOOKUP($A3,BasinData!$1:$1048576,3,FALSE) -> 1.293791963 | E3: =VLOOKUP($A3,BasinData!$1:$1048576,4,FALSE) -> 54.7572049 | F3: =VLOOKUP($A3,BasinData!$1:$1048576,5,FALSE) -> 11.6 | G3: =EXP(6.1523-(0.084*B3)-(0.0091*C3)-(0.0289*E3)-(0.0373*F3)) -> 56.62769669 | H3: =VLOOKUP($A3,Sheet1!$1:$1048576,9,FALSE) -> 89.81681977 | I3: -40.11548738 | J3: =VLOOKUP($A3,Sheet1!$1:$1048576,10,FALSE) -> 84.2852329 | K3: -33.13114045 | L3: =VLOOKUP($A3,Sheet1!$1:$1048576,11,FALSE) -> 73.22205917 | M3: -17.66763083 | N3: =VLOOKUP($A3,Sheet1!$1:$1048576,12,FALSE) -> 56.62729857 | O3: 10.57397311
A4: 10003 | B4: =VLOOKUP($A4,BasinData!$1:$1048576,2,FALSE) -> 0.03949367089 | C4: 13.33738177 | D4: =VLOOKUP($A4,BasinData!$1:$1048576,3,FALSE) -> 1.151067055 | E4: =VLOOKUP($A4,BasinData!$1:$1048576,4,FALSE) -> 55.21198212 | F4: =VLOOKUP($A4,BasinData!$1:$1048576,5,FALSE) -> 10.926 | G4: 55.94931962 | H4: =VLOOKUP($A4,Sheet1!$1:$1048576,9,FALSE) -> 88.74145544 | I4: -37.35246781 | J4: =VLOOKUP($A4,Sheet1!$1:$1048576,10,FALSE) -> 83.27609749 | K4: -30.36870608 | L4: =VLOOKUP($A4,Sheet1!$1:$1048576,11,FALSE) -> 72.34538161 | M4: -14.90497666 | N4: =VLOOKUP($A4,Sheet1!$1:$1048576,12,FALSE) -> 55.94930778 | O4: 13.33738177
A5: 10004 | B5: =VLOOKUP($A5,BasinData!$1:$1048576,2,FALSE) -> 0.003296807217 | C5: -31.10094287 | D5: =VLOOKUP($A5,BasinData!$1:$1048576,3,FALSE) -> 100 | E5: =VLOOKUP($A5,BasinData!$1:$1048576,4,FALSE) -> 8.581591819 | F5: =VLOOKUP($A5,BasinData!$1:$1048576,5,FALSE) -> 21.7674852 | G5: 215.9628596 | H5: =VLOOKUP($A5,Sheet1!$1:$1048576,9,FALSE) -> 342.5391519 | I5: -81.79097953 | J5: =VLOOKUP($A5,Sheet1!$1:$1048576,10,FALSE) -> 321.4430468 | K5: -74.80577531 | L5: =VLOOKUP($A5,Sheet1!$1:$1048576,11,FALSE) -> 279.2508365 | M5: -59.34317167 | N5: =VLOOKUP($A5,Sheet1!$1:$1048576,12,FALSE) -> 215.962521 | O5: -31.10094287
A6: 11001 | B6: =VLOOKUP($A6,BasinData!$1:$1048576,2,FALSE) -> 0.4811550301 | C6: 31.71241557 | D6: =VLOOKUP($A6,BasinData!$1:$1048576,3,FALSE) -> 13.63663074 | E6: =VLOOKUP($A6,BasinData!$1:$1048576,4,FALSE) -> 24.80533276 | F6: =VLOOKUP($A6,BasinData!$1:$1048576,5,FALSE) -> 6.443081091 | G6: 129.8135194 | H6: =VLOOKUP($A6,Sheet1!$1:$1048576,9,FALSE) -> 205.897765 | I6: -18.97777453 | J6: =VLOOKUP($A6,Sheet1!$1:$1048576,10,FALSE) -> 193.2170514 | K6: -11.99267563 | L6: =VLOOKUP($A6,Sheet1!$1:$1048576,11,FALSE) -> 167.8556241 | M6: 3.470059122 | N6: =VLOOKUP($A6,Sheet1!$1:$1048576,12,FALSE) -> 129.8134831 | O6: 31.71241557
A7: 11002 | B7: =VLOOKUP($A7,BasinData!$1:$1048576,2,FALSE) -> 1.501434911 | C7: -11.54538606 | D7: =VLOOKUP($A7,BasinData!$1:$1048576,3,FALSE) -> 1.044461148 | E7: =VLOOKUP($A7,BasinData!$1:$1048576,4,FALSE) -> 19.16502301 | F7: =VLOOKUP($A7,BasinData!$1:$1048576,5,FALSE) -> 16.9966004 | G7: 140.2462941 | H7: =VLOOKUP($A7,Sheet1!$1:$1048576,9,FALSE) -> 222.4452939 | I7: -62.23561603 | J7: =VLOOKUP($A7,Sheet1!$1:$1048576,10,FALSE) -> 208.7454605 | K7: -55.25039081 | L7: =VLOOKUP($A7,Sheet1!$1:$1048576,11,FALSE) -> 181.3457937 | M7: -39.78782627 | N7: =VLOOKUP($A7,Sheet1!$1:$1048576,12,FALSE) -> 140.2462936 | O7: -11.54538606
A8: 11003 | B8: =VLOOKUP($A8,BasinData!$1:$1048576,2,FALSE) -> 0.734921473 | C8: 35.8183458 | D8: =VLOOKUP($A8,BasinData!$1:$1048576,3,FALSE) -> 9.101394065 | E8: =VLOOKUP($A8,BasinData!$1:$1048576,4,FALSE) -> 29.24446562 | F8: =VLOOKUP($A8,BasinData!$1:$1048576,5,FALSE) -> 5.441370887 | G8: 111.7753953 | H8: =VLOOKUP($A8,Sheet1!$1:$1048576,9,FALSE) -> 177.2874521 | I8: -14.8718831 | J8: =VLOOKUP($A8,Sheet1!$1:$1048576,10,FALSE) -> 166.368774 | K8: -7.887257847 | L8: =VLOOKUP($A8,Sheet1!$1:$1048576,11,FALSE) -> 144.5314178 | M8: 7.575986918 | N8: =VLOOKUP($A8,Sheet1!$1:$1048576,12,FALSE) -> 111.7753836 | O8: 35.8183458
A9: 11004 | B9: =VLOOKUP($A9,BasinData!$1:$1048576,2,FALSE) -> 0.8836016476 | C9: 23.55045058 | D9: =VLOOKUP($A9,BasinData!$1:$1048576,3,FALSE) -> 8.864693047 | E9: =VLOOKUP($A9,BasinData!$1:$1048576,4,FALSE) -> 32.48091603 | F9: =VLOOKUP($A9,BasinData!$1:$1048576,5,FALSE) -> 8.434240799 | G9: 100.5316604 | H9: =VLOOKUP($A9,Sheet1!$1:$1048576,9,FALSE) -> 159.4531083 | I9: -27.13935113 | J9: =VLOOKUP($A9,Sheet1!$1:$1048576,10,FALSE) -> 149.6328015 | K9: -20.15412171 | L9: =VLOOKUP($A9,Sheet1!$1:$1048576,11,FALSE) -> 129.9921881 | M9: -4.691738348 | N9: =VLOOKUP($A9,Sheet1!$1:$1048576,12,FALSE) -> 100.5312679 | O9: 23.55045058
A10: 11005 | B10: =VLOOKUP($A10,BasinData!$1:$1048576,2,FALSE) -> 0.7885559236 | C10: 42.0292437 | D10: =VLOOKUP($A10,BasinData!$1:$1048576,3,FALSE) -> 14.96351396 | E10: =VLOOKUP($A10,BasinData!$1:$1048576,4,FALSE) -> 27.24189526 | F10: =VLOOKUP($A10,BasinData!$1:$1048576,5,FALSE) -> 3.926101127 | G10: 117.9028334 | H10: =VLOOKUP($A10,Sheet1!$1:$1048576,9,FALSE) -> 187.0061358 | I10: -8.660942497 | J10: =VLOOKUP($A10,Sheet1!$1:$1048576,10,FALSE) -> 175.488909 | K10: -1.675763513 | L10: =VLOOKUP($A10,Sheet1!$1:$1048576,11,FALSE) -> 152.4544554 | M10: 13.7869246 | N10: =VLOOKUP($A10,Sheet1!$1:$1048576,12,FALSE) -> 117.9027749 | O10: 42.0292437
A11: 11006 | B11: =VLOOKUP($A11,BasinData!$1:$1048576,2,FALSE) -> 1.311279976 | C11: 31.07650895 | D11: =VLOOKUP($A11,BasinData!$1:$1048576,3,FALSE) -> 4.839007885 | E11: =VLOOKUP($A11,BasinData!$1:$1048576,4,FALSE) -> 16.27906977 | F11: =VLOOKUP($A11,BasinData!$1:$1048576,5,FALSE) -> 6.598189976 | G11: 154.8998297 | H11: =VLOOKUP($A11,Sheet1!$1:$1048576,9,FALSE) -> 245.6869745 | I11: -19.61353803 | J11: =VLOOKUP($A11,Sheet1!$1:$1048576,10,FALSE) -> 230.5557458 | K11: -12.62841081 | L11: =VLOOKUP($A11,Sheet1!$1:$1048576,11,FALSE) -> 200.2932884 | M11: 2.834286989 | N11: =VLOOKUP($A11,Sheet1!$1:$1048576,12,FALSE) -> 154.8996023 | O11: 31.07650895
A12: 11007 | B12: =VLOOKUP($A12,BasinData!$1:$1048576,2,FALSE) -> 1.419646135 | C12: 26.76761617 | D12: =VLOOKUP($A12,BasinData!$1:$1048576,3,FALSE) -> 1.111165333 | E12: =VLOOKUP($A12,BasinData!$1:$1048576,4,FALSE) -> 37.39438539 | F12: =VLOOKUP($A12,BasinData!$1:$1048576,5,FALSE) -> 7.649431537 | G12: 83.38286923 | H12: =VLOOKUP($A12,Sheet1!$1:$1048576,9,FALSE) -> 132.2538108 | I12: -23.92195854 | J12: =VLOOKUP($A12,Sheet1!$1:$1048576,10,FALSE) -> 124.1086388 | K12: -16.93726651 | L12: =VLOOKUP($A12,Sheet1!$1:$1048576,11,FALSE) -> 107.8182949 | M12: -1.474635255 | N12: =VLOOKUP($A12,Sheet1!$1:$1048576,12,FALSE) -> 83.38277899 | O12: 26.76761617
A13: 11008 | B13: =VLOOKUP($A13,BasinData!$1:$1048576,2,FALSE) -> 0.7515318821 | C13: 37.77948767 | D13: =VLOOKUP($A13,BasinData!$1:$1048576,3,FALSE) -> 13.08049525 | E13: =VLOOKUP($A13,BasinData!$1:$1048576,4,FALSE) -> 27.63730807 | F13: =VLOOKUP($A13,BasinData!$1:$1048576,5,FALSE) -> 4.962806069 | G13: 116.926685 | H13: =VLOOKUP($A13,Sheet1!$1:$1048576,9,FALSE) -> 185.4571795 | I13: -12.91030794 | J13: =VLOOKUP($A13,Sheet1!$1:$1048576,10,FALSE) -> 174.0353489 | K13: -5.925053226 | L13: =VLOOKUP($A13,Sheet1!$1:$1048576,11,FALSE) -> 151.1916878 | M13: 9.537564479 | N13: =VLOOKUP($A13,Sheet1!$1:$1048576,12,FALSE) -> 116.926196 | O13: 37.77948767
A14: 11009 | B14: =VLOOKUP($A14,BasinData!$1:$1048576,2,FALSE) -> 0.2854494903 | C14: 35.75529005 | D14: =VLOOKUP($A14,BasinData!$1:$1048576,3,FALSE) -> 12.63842221 | E14: =VLOOKUP($A14,BasinData!$1:$1048576,4,FALSE) -> 28.89923722 | F14: =VLOOKUP($A14,BasinData!$1:$1048576,5,FALSE) -> 5.456754059 | G14: 117.2401296 | H14: =VLOOKUP($A14,Sheet1!$1:$1048576,9,FALSE) -> 185.9550887 | I14: -14.93493631 | J14: =VLOOKUP($A14,Sheet1!$1:$1048576,10,FALSE) -> 174.5025932 | K14: -7.950301122 | L14: =VLOOKUP($A14,Sheet1!$1:$1048576,11,FALSE) -> 151.5976021 | M14: 7.512932971 | N14: =VLOOKUP($A14,Sheet1!$1:$1048576,12,FALSE) -> 117.2401155 | O14: 35.75529005
A15: 11010 | B15: =VLOOKUP($A15,BasinData!$1:$1048576,2,FALSE) -> 0.4842961814 | C15: 35.56417513 | D15: =VLOOKUP($A15,BasinData!$1:$1048576,3,FALSE) -> 11.82538936 | E15: =VLOOKUP($A15,BasinData!$1:$1048576,4,FALSE) -> 25.32349227 | F15: =VLOOKUP($A15,BasinData!$1:$1048576,5,FALSE) -> 5.503378488 | G15: 127.8503172 | H15: =VLOOKUP($A15,Sheet1!$1:$1048576,9,FALSE) -> 202.7839432 | I15: -15.12604282 | J15: =VLOOKUP($A15,Sheet1!$1:$1048576,10,FALSE) -> 190.2950018 | K15: -8.14137789 | L15: =VLOOKUP($A15,Sheet1!$1:$1048576,11,FALSE) -> 165.317119 | M15: 7.321824456 | N15: =VLOOKUP($A15,Sheet1!$1:$1048576,12,FALSE) -> 127.8502949 | O15: 35.56417513
A16: 11011 | B16: =VLOOKUP($A16,BasinData!$1:$1048576,2,FALSE) -> 0.7312278922 | C16: 4.81972557 | D16: =VLOOKUP($A16,BasinData!$1:$1048576,3,FALSE) -> 1.431010725 | E16: =VLOOKUP($A16,BasinData!$1:$1048576,4,FALSE) -> 34.32122371 | F16: =VLOOKUP($A16,BasinData!$1:$1048576,5,FALSE) -> 13.00397576 | G16: 96.5523833 | H16: =VLOOKUP($A16,Sheet1!$1:$1048576,9,FALSE) -> 153.1418155 | I16: -45.8702497 | J16: =VLOOKUP($A16,Sheet1!$1:$1048576,10,FALSE) -> 143.710205 | K16: -38.88551245 | L16: =VLOOKUP($A16,Sheet1!$1:$1048576,11,FALSE) -> 124.8469841 | M16: -23.42238276 | N16: =VLOOKUP($A16,Sheet1!$1:$1048576,12,FALSE) -> 96.55215282 | O16: 4.81972557
A17: 11012 | B17: =VLOOKUP($A17,BasinData!$1:$1048576,2,FALSE) -> 0.2792088316 | C17: 39.67365356 | D17: =VLOOKUP($A17,BasinData!$1:$1048576,3,FALSE) -> 12.61669552 | E17: =VLOOKUP($A17,BasinData!$1:$1048576,4,FALSE) -> 26.83219589 | F17: =VLOOKUP($A17,BasinData!$1:$1048576,5,FALSE) -> 4.500752564 | G17: 124.5226564 | H17: =VLOOKUP($A17,Sheet1!$1:$1048576,9,FALSE) -> 197.5055915 | I17: -11.01638867 | J17: =VLOOKUP($A17,Sheet1!$1:$1048576,10,FALSE) -> 185.3417303 | K17: -4.031141894 | L17: =VLOOKUP($A17,Sheet1!$1:$1048576,11,FALSE) -> 161.0140077 | M17: 11.43148928 | N17: =VLOOKUP($A17,Sheet1!$1:$1048576,12,FALSE) -> 124.5224239 | O17: 39.67365356
A18: 11013 | B18: =VLOOKUP($A18,BasinData!$1:$1048576,2,FALSE) -> 0.3718150362 | C18: 33.8902732 | D18: =VLOOKUP($A18,BasinData!$1:$1048576,3,FALSE) -> 9.916466136 | E18: =VLOOKUP($A18,BasinData!$1:$1048576,4,FALSE) -> 28.45460264 | F18: =VLOOKUP($A18,BasinData!$1:$1048576,5,FALSE) -> 5.911717098 | G18: 117.8981347 | H18: =VLOOKUP($A18,Sheet1!$1:$1048576,9,FALSE) -> 186.9984671 | I18: -16.79964003 | J18: =VLOOKUP($A18,Sheet1!$1:$1048576,10,FALSE) -> 175.4817125 | K18: -9.814876833 | L18: =VLOOKUP($A18,Sheet1!$1:$1048576,11,FALSE) -> 152.4482035 | M18: 5.648014583 | N18: =VLOOKUP($A18,Sheet1!$1:$1048576,12,FALSE) -> 117.89794 | O18: 33.8902732
A19: 11014 | B19: =VLOOKUP($A19,BasinData!$1:$1048576,2,FALSE) -> 1.270876563 | C19: 46.4218413 | D19: =VLOOKUP($A19,BasinData!$1:$1048576,3,FALSE) -> 8.394075906 | E19: =VLOOKUP($A19,BasinData!$1:$1048576,4,FALSE) -> 37.30596758 | F19: =VLOOKUP($A19,BasinData!$1:$1048576,5,FALSE) -> 2.854294702 | G19: 84.64787099 | H19: =VLOOKUP($A19,Sheet1!$1:$1048576,9,FALSE) -> 134.2595416 | I19: -4.267706826 | J19: =VLOOKUP($A19,Sheet1!$1:$1048576,10,FALSE) -> 125.9908419 | K19: 2.717502894 | L19: =VLOOKUP($A19,Sheet1!$1:$1048576,11,FALSE) -> 109.4534423 | M19: 18.1801403 | N19: =VLOOKUP($A19,Sheet1!$1:$1048576,12,FALSE) -> 84.647343 | O19: 46.4218413
A20: 11015 | B20: =VLOOKUP($A20,BasinData!$1:$1048576,2,FALSE) -> 1.685209529 | C20: 37.49914244 | D20: =VLOOKUP($A20,BasinData!$1:$1048576,3,FALSE) -> 2.328012569 | E20: =VLOOKUP($A20,BasinData!$1:$1048576,4,FALSE) -> 17.73323053 | F20: =VLOOKUP($A20,BasinData!$1:$1048576,5,FALSE) -> 5.031188727 | G20: 143.9327968 | H20: =VLOOKUP($A20,Sheet1!$1:$1048576,9,FALSE) -> 228.2914121 | I20: -13.19060302 | J20: =VLOOKUP($A20,Sheet1!$1:$1048576,10,FALSE) -> 214.2315313 | K20: -6.205346947 | L20: =VLOOKUP($A20,Sheet1!$1:$1048576,11,FALSE) -> 186.1117698 | M20: 9.25727367 | N20: =VLOOKUP($A20,Sheet1!$1:$1048576,12,FALSE) -> 143.9321275 | O20: 37.49914244
A21: 11016 | B21: =VLOOKUP($A21,BasinData!$1:$1048576,2,FALSE) -> 1.011698075 | C21: 47.79390937 | D21: =VLOOKUP($A21,BasinData!$1:$1048576,3,FALSE) -> 3.262093537 | E21: =VLOOKUP($A21,BasinData!$1:$1048576,4,FALSE) -> 34.9126035 | F21: =VLOOKUP($A21,BasinData!$1:$1048576,5,FALSE) -> 2.51958845 | G21: 92.7064358 | H21: =VLOOKUP($A21,Sheet1!$1:$1048576,9,FALSE) -> 147.0413764 | I21: -2.895777745 | J21: =VLOOKUP($A21,Sheet1!$1:$1048576,10,FALSE) -> 137.9854763 | K21: 4.088768648 | L21: =VLOOKUP($A21,Sheet1!$1:$1048576,11,FALSE) -> 119.8736761 | M21: 19.55208521 | N21: =VLOOKUP($A21,Sheet1!$1:$1048576,12,FALSE) -> 92.70597585 | O21: 47.79390937
A22: 11017 | B22: =VLOOKUP($A22,BasinData!$1:$1048576,2,FALSE) -> 1.008204322 | C22: -9.36507606 | D22: =VLOOKUP($A22,BasinData!$1:$1048576,3,FALSE) -> 3.480762002 | E22: =VLOOKUP($A22,BasinData!$1:$1048576,4,FALSE) -> 31.13741637 | F22: =VLOOKUP($A22,BasinData!$1:$1048576,5,FALSE) -> 16.46443705 | G22: 103.424119 | H22: =VLOOKUP($A22,Sheet1!$1:$1048576,9,FALSE) -> 164.0400168 | I22: -60.05434234 | J22: =VLOOKUP($A22,Sheet1!$1:$1048576,10,FALSE) -> 153.9372141 | K22: -53.06911955 | L22: =VLOOKUP($A22,Sheet1!$1:$1048576,11,FALSE) -> 133.7316089 | M22: -37.60654713 | N22: =VLOOKUP($A22,Sheet1!$1:$1048576,12,FALSE) -> 103.423201 | O22: -9.36507606
A23: 11018 | B23: =VLOOKUP($A23,BasinData!$1:$1048576,2,FALSE) -> 0.7841415083 | C23: 23.72600582 | D23: =VLOOKUP($A23,BasinData!$1:$1048576,3,FALSE) -> 8.276413926 | E23: =VLOOKUP($A23,BasinData!$1:$1048576,4,FALSE) -> 36.33312356 | F23: =VLOOKUP($A23,BasinData!$1:$1048576,5,FALSE) -> 8.391395342 | G23: 90.69472015 | H23: =VLOOKUP($A23,Sheet1!$1:$1048576,9,FALSE) -> 143.8506691 | I23: -26.96373168 | J23: =VLOOKUP($A23,Sheet1!$1:$1048576,10,FALSE) -> 134.9912764 | K23: -19.97850243 | L23: =VLOOKUP($A23,Sheet1!$1:$1048576,11,FALSE) -> 117.2724912 | M23: -4.516177541 | N23: =VLOOKUP($A23,Sheet1!$1:$1048576,12,FALSE) -> 90.69431325 | O23: 23.72600582
A24: 11019 | B24: =VLOOKUP($A24,BasinData!$1:$1048576,2,FALSE) -> 0.082881172 | C24: 22.9625757 | D24: =VLOOKUP($A24,BasinData!$1:$1048576,3,FALSE) -> 9.231575405 | E24: =VLOOKUP($A24,BasinData!$1:$1048576,4,FALSE) -> 21.43178386 | F24: =VLOOKUP($A24,BasinData!$1:$1048576,5,FALSE) -> 8.577704896 | G24: 147.9762217 | H24: =VLOOKUP($A24,Sheet1!$1:$1048576,9,FALSE) -> 234.705216 | I24: -27.72739691 | J24: =VLOOKUP($A24,Sheet1!$1:$1048576,10,FALSE) -> 220.2503255 | K24: -20.74216679 | L24: =VLOOKUP($A24,Sheet1!$1:$1048576,11,FALSE) -> 191.3405446 | M24: -5.279633815 | N24: =VLOOKUP($A24,Sheet1!$1:$1048576,12,FALSE) -> 147.9758733 | O24: 22.9625757
A25: 11020 | B25: =VLOOKUP($A25,BasinData!$1:$1048576,2,FALSE) -> 0.1587240584 | C25: 11.98145348 | D25: =VLOOKUP($A25,BasinData!$1:$1048576,3,FALSE) -> 4.35004297 | E25: =VLOOKUP($A25,BasinData!$1:$1048576,4,FALSE) -> 13.60720738 | F25: =VLOOKUP($A25,BasinData!$1:$1048576,5,FALSE) -> 11.25680719 | G25: 184.3449537 | H25: =VLOOKUP($A25,Sheet1!$1:$1048576,9,FALSE) -> 292.3903675 | I25: -38.70877077 | J25: =VLOOKUP($A25,Sheet1!$1:$1048576,10,FALSE) -> 274.382797 | K25: -31.72354136 | L25: =VLOOKUP($A25,Sheet1!$1:$1048576,11,FALSE) -> 238.3676559 | M25: -16.26091984 | N25: =VLOOKUP($A25,Sheet1!$1:$1048576,12,FALSE) -> 184.3449443 | O25: 11.98145348
A26: 11021 | B26: =VLOOKUP($A26,BasinData!$1:$1048576,2,FALSE) -> 1.815915293 | C26: -14.43136427 | D26: =VLOOKUP($A26,BasinData!$1:$1048576,3,FALSE) -> 2.07203081 | E26: =VLOOKUP($A26,BasinData!$1:$1048576,4,FALSE) -> 14.55516014 | F26: =VLOOKUP($A26,BasinData!$1:$1048576,5,FALSE) -> 17.7005163 | G26: 156.0560355 | H26: =VLOOKUP($A26,Sheet1!$1:$1048576,9,FALSE) -> 247.5196285 | I26: -65.12081796 | J26: =VLOOKUP($A26,Sheet1!$1:$1048576,10,FALSE) -> 232.2755314 | K26: -58.13567238 | L26: =VLOOKUP($A26,Sheet1!$1:$1048576,11,FALSE) -> 201.7873371 | M26: -42.6731007 | N26: =VLOOKUP($A26,Sheet1!$1:$1048576,12,FALSE) -> 156.0550456 | O26: -14.43136427
A27: 11022 | B27: =VLOOKUP($A27,BasinData!$1:$1048576,2,FALSE) -> 0.1202463846 | C27: 14.25191664 | D27: =VLOOKUP($A27,BasinData!$1:$1048576,3,FALSE) -> 4.586686673 | E27: =VLOOKUP($A27,BasinData!$1:$1048576,4,FALSE) -> 13.53022795 | F27: =VLOOKUP($A27,BasinData!$1:$1048576,5,FALSE) -> 10.70287704 | G27: 185.3537129 | H27: =VLOOKUP($A27,Sheet1!$1:$1048576,9,FALSE) -> 293.9902533 | I27: -36.43815955 | J27: =VLOOKUP($A27,Sheet1!$1:$1048576,10,FALSE) -> 275.8841499 | K27: -29.45303655 | L27: =VLOOKUP($A27,Sheet1!$1:$1048576,11,FALSE) -> 239.6719431 | M27: -13.99041984 | N27: =VLOOKUP($A27,Sheet1!$1:$1048576,12,FALSE) -> 185.353633 | O27: 14.25191664
A28: 11023 | B28: =VLOOKUP($A28,BasinData!$1:$1048576,2,FALSE) -> 0.7718181818 | C28: 21.18834932 | D28: =VLOOKUP($A28,BasinData!$1:$1048576,3,FALSE) -> 25.75704361 | E28: =VLOOKUP($A28,BasinData!$1:$1048576,4,FALSE) -> 25.84592565 | F28: =VLOOKUP($A28,BasinData!$1:$1048576,5,FALSE) -> 9.010614711 | G28: 122.9293886 | H28: =VLOOKUP($A28,Sheet1!$1:$1048576,9,FALSE) -> 194.9788166 | I28: -29.50185476 | J28: =VLOOKUP($A28,Sheet1!$1:$1048576,10,FALSE) -> 182.9705729 | K28: -22.51662114 | L28: =VLOOKUP($A28,Sheet1!$1:$1048576,11,FALSE) -> 158.9540855 | M28: -7.054029487 | N28: =VLOOKUP($A28,Sheet1!$1:$1048576,12,FALSE) -> 122.9293544 | O28: 21.18834932
A29: 11024 | B29: =VLOOKUP($A29,BasinData!$1:$1048576,2,FALSE) -> 0.9511871624 | C29: 11.44094524 | D29: =VLOOKUP($A29,BasinData!$1:$1048576,3,FALSE) -> 2.090610619 | E29: =VLOOKUP($A29,BasinData!$1:$1048576,4,FALSE) -> 10.35940803 | F29: =VLOOKUP($A29,BasinData!$1:$1048576,5,FALSE) -> 11.38867456 | G29: 189.4458484 | H29: =VLOOKUP($A29,Sheet1!$1:$1048576,9,FALSE) -> 300.4809281 | I29: -39.24928282 | J29: =VLOOKUP($A29,Sheet1!$1:$1048576,10,FALSE) -> 281.9750808 | K29: -32.26405264 | L29: =VLOOKUP($A29,Sheet1!$1:$1048576,11,FALSE) -> 244.9633861 | M29: -16.80143016 | N29: =VLOOKUP($A29,Sheet1!$1:$1048576,12,FALSE) -> 189.4458441 | O29: 11.44094524
A30: 11025 | B30: =VLOOKUP($A30,BasinData!$1:$1048576,2,FALSE) -> 0.202565473 | C30: 16.27832232 | D30: =VLOOKUP($A30,BasinData!$1:$1048576,3,FALSE) -> 5.077021399 | E30: =VLOOKUP($A30,BasinData!$1:$1048576,4,FALSE) -> 13.38567013 | F30: =VLOOKUP($A30,BasinData!$1:$1048576,5,FALSE) -> 10.20847223 | G30: 184.8472644 | H30: =VLOOKUP($A30,Sheet1!$1:$1048576,9,FALSE) -> 293.186678 | I30: -34.41174632 | J30: =VLOOKUP($A30,Sheet1!$1:$1048576,10,FALSE) -> 275.1300647 | K30: -27.42652026 | L30: =VLOOKUP($A30,Sheet1!$1:$1048576,11,FALSE) -> 239.0168382 | M30: -11.96390908 | N30: =VLOOKUP($A30,Sheet1!$1:$1048576,12,FALSE) -> 184.8469985 | O30: 16.27832232
A31: 11026 | B31: =VLOOKUP($A31,BasinData!$1:$1048576,2,FALSE) -> 0.4761546068 | C31: -3.555416967 | D31: =VLOOKUP($A31,BasinData!$1:$1048576,3,FALSE) -> 6.037894856 | E31: =VLOOKUP($A31,BasinData!$1:$1048576,4,FALSE) -> 37.17896453 | F31: =VLOOKUP($A31,BasinData!$1:$1048576,5,FALSE) -> 15.04729918 | G31: 90.82376432 | H31: =VLOOKUP($A31,Sheet1!$1:$1048576,9,FALSE) -> 144.0559602 | I31: -54.24555833 | J31: =VLOOKUP($A31,Sheet1!$1:$1048576,10,FALSE) -> 135.1839242 | K31: -47.26052928 | L31: =VLOOKUP($A31,Sheet1!$1:$1048576,11,FALSE) -> 117.4398522 | M31: -31.79789892 | N31: =VLOOKUP($A31,Sheet1!$1:$1048576,12,FALSE) -> 90.82374427 | O31: -3.555416967
A32: 11027 | B32: =VLOOKUP($A32,BasinData!$1:$1048576,2,FALSE) -> 0.8328314735 | C32: 24.53266618 | D32: =VLOOKUP($A32,BasinData!$1:$1048576,3,FALSE) -> 36.69245152 | E32: =VLOOKUP($A32,BasinData!$1:$1048576,4,FALSE) -> 34.49403302 | F32: =VLOOKUP($A32,BasinData!$1:$1048576,5,FALSE) -> 8.194713394 | G32: 95.25471652 | H32: =VLOOKUP($A32,Sheet1!$1:$1048576,9,FALSE) -> 151.0839285 | I32: -26.15755126 | J32: =VLOOKUP($A32,Sheet1!$1:$1048576,10,FALSE) -> 141.7790581 | K32: -19.17232266 | L32: =VLOOKUP($A32,Sheet1!$1:$1048576,11,FALSE) -> 123.1693171 | M32: -3.710351116 | N32: =VLOOKUP($A32,Sheet1!$1:$1048576,12,FALSE) -> 95.25470566 | O32: 24.53266618
A33: 11028 | B33: =VLOOKUP($A33,BasinData!$1:$1048576,2,FALSE) -> 0.06513809276 | C33: 22.6122325 | D33: =VLOOKUP($A33,BasinData!$1:$1048576,3,FALSE) -> 11.693921 | E33: =VLOOKUP($A33,BasinData!$1:$1048576,4,FALSE) -> 23.36246355 | F33: =VLOOKUP($A33,BasinData!$1:$1048576,5,FALSE) -> 8.663195387 | G33: 140.1544039 | H33: =VLOOKUP($A33,Sheet1!$1:$1048576,9,FALSE) -> 222.2991733 | I33: -28.07781445 | J33: =VLOOKUP($A33,Sheet1!$1:$1048576,10,FALSE) -> 208.6083391 | K33: -21.09258382 | L33: =VLOOKUP($A33,Sheet1!$1:$1048576,11,FALSE) -> 181.2266707 | M33: -5.629999766 | N33: =VLOOKUP($A33,Sheet1!$1:$1048576,12,FALSE) -> 140.1541681 | O33: 22.6122325
A34: 11029 | B34: =VLOOKUP($A34,BasinData!$1:$1048576,2,FALSE) -> 0.7912713472 | C34: 32.31499843 | D34: =VLOOKUP($A34,BasinData!$1:$1048576,3,FALSE) -> 2.703198909 | E34: =VLOOKUP($A34,BasinData!$1:$1048576,4,FALSE) -> 16.98565741 | F34: =VLOOKUP($A34,BasinData!$1:$1048576,5,FALSE) -> 6.296077355 | G34: 158.5448529 | H34: =VLOOKUP($A34,Sheet1!$1:$1048576,9,FALSE) -> 251.4687196 | I34: -18.37522656 | J34: =VLOOKUP($A34,Sheet1!$1:$1048576,10,FALSE) -> 235.9814081 | K34: -11.3901688 | L34: =VLOOKUP($A34,Sheet1!$1:$1048576,11,FALSE) -> 205.0067851 | M34: 4.072608607 | N34: =VLOOKUP($A34,Sheet1!$1:$1048576,12,FALSE) -> 158.5448505 | O34: 32.31499843
A35: 11030 | B35: =VLOOKUP($A35,BasinData!$1:$1048576,2,FALSE) -> 0.001244555072 | C35: 29.0323819 | D35: =VLOOKUP($A35,BasinData!$1:$1048576,3,FALSE) -> 4.461782459 | E35: =VLOOKUP($A35,BasinData!$1:$1048576,4,FALSE) -> 15.36700529 | F35: =VLOOKUP($A35,BasinData!$1:$1048576,5,FALSE) -> 7.09691389 | G35: 177.5370716 | H35: =VLOOKUP($A35,Sheet1!$1:$1048576,9,FALSE) -> 281.5921938 | I35: -21.65763832 | J35: =VLOOKUP($A35,Sheet1!$1:$1048576,10,FALSE) -> 264.249655 | K35: -14.67255673 | L35: =VLOOKUP($A35,Sheet1!$1:$1048576,11,FALSE) -> 229.5645774 | M35: 0.7900754739 | N35: =VLOOKUP($A35,Sheet1!$1:$1048576,12,FALSE) -> 177.5369611 | O35: 29.0323819
A36: 11031 | B36: =VLOOKUP($A36,BasinData!$1:$1048576,2,FALSE) -> 0.9967633929 | C36: 42.68389306 | D36: =VLOOKUP($A36,BasinData!$1:$1048576,3,FALSE) -> 3.233281201 | E36: =VLOOKUP($A36,BasinData!$1:$1048576,4,FALSE) -> 18.85368405 | F36: =VLOOKUP($A36,BasinData!$1:$1048576,5,FALSE) -> 3.766392763 | G36: 147.6420154 | H36: =VLOOKUP($A36,Sheet1!$1:$1048576,9,FALSE) -> 234.1756101 | I36: -8.006312256 | J36: =VLOOKUP($A36,Sheet1!$1:$1048576,10,FALSE) -> 219.7533367 | K36: -1.021229113 | L36: =VLOOKUP($A36,Sheet1!$1:$1048576,11,FALSE) -> 190.90879 | M36: 14.44155786 | N36: =VLOOKUP($A36,Sheet1!$1:$1048576,12,FALSE) -> 147.6419698 | O36: 42.68389306
A37: 11032 | B37: =VLOOKUP($A37,BasinData!$1:$1048576,2,FALSE) -> 0.2673772011 | C37: 21.70401526 | D37: =VLOOKUP($A37,BasinData!$1:$1048576,3,FALSE) -> 12.97166189 | E37: =VLOOKUP($A37,BasinData!$1:$1048576,4,FALSE) -> 23.81629237 | F37: =VLOOKUP($A37,BasinData!$1:$1048576,5,FALSE) -> 8.884800375 | G37: 135.9979583 | H37: =VLOOKUP($A37,Sheet1!$1:$1048576,9,FALSE) -> 215.7068618 | I37: -28.986153 | J37: =VLOOKUP($A37,Sheet1!$1:$1048576,10,FALSE) -> 202.4220311 | K37: -22.00092067 | L37: =VLOOKUP($A37,Sheet1!$1:$1048576,11,FALSE) -> 175.8523697 | M37: -6.538331653 | N37: =VLOOKUP($A37,Sheet1!$1:$1048576,12,FALSE) -> 135.9978776 | O37: 21.70401526
A38: 11033 | B38: =VLOOKUP($A38,BasinData!$1:$1048576,2,FALSE) -> 0.07369498465 | C38: 22.06889712 | D38: =VLOOKUP($A38,BasinData!$1:$1048576,3,FALSE) -> 12.84059036 | E38: =VLOOKUP($A38,BasinData!$1:$1048576,4,FALSE) -> 23.95212078 | F38: =VLOOKUP($A38,BasinData!$1:$1048576,5,FALSE) -> 8.795771796 | G38: 137.6871495 | H38: =VLOOKUP($A38,Sheet1!$1:$1048576,9,FALSE) -> 218.3860197 | I38: -28.62123293 | J38: =VLOOKUP($A38,Sheet1!$1:$1048576,10,FALSE) -> 204.9361865 | K38: -21.63600136 | L38: =VLOOKUP($A38,Sheet1!$1:$1048576,11,FALSE) -> 178.0365203 | M38: -6.17341429 | N38: =VLOOKUP($A38,Sheet1!$1:$1048576,12,FALSE) -> 137.6870209 | O38: 22.06889712
A39: 11034 | B39: =VLOOKUP($A39,BasinData!$1:$1048576,2,FALSE) -> 0.1297247465 | C39: 36.79155663 | D39: =VLOOKUP($A39,BasinData!$1:$1048576,3,FALSE) -> 12.47031163 | E39: =VLOOKUP($A39,BasinData!$1:$1048576,4,FALSE) -> 19.28915941 | F39: =VLOOKUP($A39,BasinData!$1:$1048576,5,FALSE) -> 5.203941462 | G39: 156.8102118 | H39: =VLOOKUP($A39,Sheet1!$1:$1048576,9,FALSE) -> 248.7174002 | I39: -13.89870303 | J39: =VLOOKUP($A39,Sheet1!$1:$1048576,10,FALSE) -> 233.3995354 | K39: -6.913443249 | L39: =VLOOKUP($A39,Sheet1!$1:$1048576,11,FALSE) -> 202.7638057 | M39: 8.549182709 | N39: =VLOOKUP($A39,Sheet1!$1:$1048576,12,FALSE) -> 156.8102112 | O39: 36.79155663
A40: 11035 | B40: =VLOOKUP($A40,BasinData!$1:$1048576,2,FALSE) -> 1.238127501 | C40: 21.05242473 | D40: =VLOOKUP($A40,BasinData!$1:$1048576,3,FALSE) -> 5.165765155 | E40: =VLOOKUP($A40,BasinData!$1:$1048576,4,FALSE) -> 16.52298851 | F40: =VLOOKUP($A40,BasinData!$1:$1048576,5,FALSE) -> 9.043777465 | G40: 154.7596019 | H40: =VLOOKUP($A40,Sheet1!$1:$1048576,9,FALSE) -> 245.464865 | I40: -29.63778598 | J40: =VLOOKUP($A40,Sheet1!$1:$1048576,10,FALSE) -> 230.3473154 | K40: -22.65255198 | L40: =VLOOKUP($A40,Sheet1!$1:$1048576,11,FALSE) -> 200.1122163 | M40: -7.18995965 | N40: =VLOOKUP($A40,Sheet1!$1:$1048576,12,FALSE) -> 154.7595677 | O40: 21.05242473
A41: 11036 | B41: =VLOOKUP($A41,BasinData!$1:$1048576,2,FALSE) -> 1.662615394 | C41: 38.19610301 | D41: =VLOOKUP($A41,BasinData!$1:$1048576,3,FALSE) -> 3.306361118 | E41: =VLOOKUP($A41,BasinData!$1:$1048576,4,FALSE) -> 24.41145281 | F41: =VLOOKUP($A41,BasinData!$1:$1048576,5,FALSE) -> 4.861182224 | G41: 118.8952301 | H41: =VLOOKUP($A41,Sheet1!$1:$1048576,9,FALSE) -> 188.5796039 | I41: -12.49375996 | J41: =VLOOKUP($A41,Sheet1!$1:$1048576,10,FALSE) -> 176.9654712 | K41: -5.508507188 | L41: =VLOOKUP($A41,Sheet1!$1:$1048576,11,FALSE) -> 153.7372059 | M41: 9.954105172 | N41: =VLOOKUP($A41,Sheet1!$1:$1048576,12,FALSE) -> 118.8948079 | O41: 38.19610301
A42: 11037 | B42: =VLOOKUP($A42,BasinData!$1:$1048576,2,FALSE) -> 0.9719292157 | C42: 44.02252011 | D42: =VLOOKUP($A42,BasinData!$1:$1048576,3,FALSE) -> 2.123477271 | E42: =VLOOKUP($A42,BasinData!$1:$1048576,4,FALSE) -> 12.68011527 | F42: =VLOOKUP($A42,BasinData!$1:$1048576,5,FALSE) -> 3.439816681 | G42: 176.8483383 | H42: =VLOOKUP($A42,Sheet1!$1:$1048576,9,FALSE) -> 280.4999406 | I42: -6.667706702 | J42: =VLOOKUP($A42,Sheet1!$1:$1048576,10,FALSE) -> 263.2246709 | K42: 0.3175298761 | L42: =VLOOKUP($A42,Sheet1!$1:$1048576,11,FALSE) -> 228.6741314 | M42: 15.78014059 | N42: =VLOOKUP($A42,Sheet1!$1:$1048576,12,FALSE) -> 176.8483222 | O42: 44.02252011
A43: 11038 | B43: =VLOOKUP($A43,BasinData!$1:$1048576,2,FALSE) -> 0.1960604672 | C43: 37.71049184 | D43: =VLOOKUP($A43,BasinData!$1:$1048576,3,FALSE) -> 13.15976386 | E43: =VLOOKUP($A43,BasinData!$1:$1048576,4,FALSE) -> 18.64530892 | F43: =VLOOKUP($A43,BasinData!$1:$1048576,5,FALSE) -> 4.979635833 | G43: 158.8683069 | H43: =VLOOKUP($A43,Sheet1!$1:$1048576,9,FALSE) -> 251.9806734 | I43: -12.9792918 | J43: =VLOOKUP($A43,Sheet1!$1:$1048576,10,FALSE) -> 236.4618319 | K43: -5.994036757 | L43: =VLOOKUP($A43,Sheet1!$1:$1048576,11,FALSE) -> 205.4241491 | M43: 9.468581713 | N43: =VLOOKUP($A43,Sheet1!$1:$1048576,12,FALSE) -> 158.8676248 | O43: 37.71049184
A44: 11039 | B44: =VLOOKUP($A44,BasinData!$1:$1048576,2,FALSE) -> 1.877600237 | C44: 38.82257634 | D44: =VLOOKUP($A44,BasinData!$1:$1048576,3,FALSE) -> 5.379197903 | E44: =VLOOKUP($A44,BasinData!$1:$1048576,4,FALSE) -> 9.253162364 | F44: =VLOOKUP($A44,BasinData!$1:$1048576,5,FALSE) -> 4.708364642 | G44: 180.9566938 | H44: =VLOOKUP($A44,Sheet1!$1:$1048576,9,FALSE) -> 287.0154613 | I44: -11.8673732 | J44: =VLOOKUP($A44,Sheet1!$1:$1048576,10,FALSE) -> 269.3389174 | K44: -4.882123124 | L44: =VLOOKUP($A44,Sheet1!$1:$1048576,11,FALSE) -> 233.9858297 | M44: 10.58047848 | N44: =VLOOKUP($A44,Sheet1!$1:$1048576,12,FALSE) -> 180.956198 | O44: 38.82257634
A45: 11040 | B45: =VLOOKUP($A45,BasinData!$1:$1048576,2,FALSE) -> 2.093550654 | C45: 41.77272955 | D45: =VLOOKUP($A45,BasinData!$1:$1048576,3,FALSE) -> 7.385738041 | E45: =VLOOKUP($A45,BasinData!$1:$1048576,4,FALSE) -> 15.31194296 | F45: =VLOOKUP($A45,BasinData!$1:$1048576,5,FALSE) -> 3.988679866 | G45: 149.1596182 | H45: =VLOOKUP($A45,Sheet1!$1:$1048576,9,FALSE) -> 236.5826202 | I45: -8.917447173 | J45: =VLOOKUP($A45,Sheet1!$1:$1048576,10,FALSE) -> 222.0121052 | K45: -1.932242965 | L45: =VLOOKUP($A45,Sheet1!$1:$1048576,11,FALSE) -> 192.8710753 | M45: 13.53042424 | N45: =VLOOKUP($A45,Sheet1!$1:$1048576,12,FALSE) -> 149.1595305 | O45: 41.77272955
A46: 11041 | B46: =VLOOKUP($A46,BasinData!$1:$1048576,2,FALSE) -> 2.248663102 | C46: 40.33538297 | D46: =VLOOKUP($A46,BasinData!$1:$1048576,3,FALSE) -> 6.082965507 | E46: =VLOOKUP($A46,BasinData!$1:$1048576,4,FALSE) -> 14.3904064 | F46: =VLOOKUP($A46,BasinData!$1:$1048576,5,FALSE) -> 4.339325851 | G46: 151.2026085 | H46: =VLOOKUP($A46,Sheet1!$1:$1048576,9,FALSE) -> 239.8228326 | I46: -10.35471437 | J46: =VLOOKUP($A46,Sheet1!$1:$1048576,10,FALSE) -> 225.0527613 | K46: -3.369469895 | L46: =VLOOKUP($A46,Sheet1!$1:$1048576,11,FALSE) -> 195.5126187 | M46: 12.09315691 | N46: =VLOOKUP($A46,Sheet1!$1:$1048576,12,FALSE) -> 151.2024049 | O46: 40.33538297
A47: 11042 | B47: =VLOOKUP($A47,BasinData!$1:$1048576,2,FALSE) -> 0.2348690154 | C47: 44.33688681 | D47: =VLOOKUP($A47,BasinData!$1:$1048576,3,FALSE) -> 6.621877545 | E47: =VLOOKUP($A47,BasinData!$1:$1048576,4,FALSE) -> 14.83704974 | F47: =VLOOKUP($A47,BasinData!$1:$1048576,5,FALSE) -> 3.363122062 | G47: 176.7736574 | H47: =VLOOKUP($A47,Sheet1!$1:$1048576,9,FALSE) -> 280.3814966 | I47: -6.353342539 | J47: =VLOOKUP($A47,Sheet1!$1:$1048576,10,FALSE) -> 263.1135216 | K47: 0.6318934919 | L47: =VLOOKUP($A47,Sheet1!$1:$1048576,11,FALSE) -> 228.5775714 | M47: 16.09450349 | N47: =VLOOKUP($A47,Sheet1!$1:$1048576,12,FALSE) -> 176.7736462 | O47: 44.33688681
A48: 11043 | B48: =VLOOKUP($A48,BasinData!$1:$1048576,2,FALSE) -> 0.6167239938 | C48: 29.99729565 | D48: =VLOOKUP($A48,BasinData!$1:$1048576,3,FALSE) -> 8.254029168 | E48: =VLOOKUP($A48,BasinData!$1:$1048576,4,FALSE) -> 34.13559322 | F48: =VLOOKUP($A48,BasinData!$1:$1048576,5,FALSE) -> 6.861516711 | G48: 98.00971209 | H48: =VLOOKUP($A48,Sheet1!$1:$1048576,9,FALSE) -> 155.4536224 | I48: -20.69284409 | J48: =VLOOKUP($A48,Sheet1!$1:$1048576,10,FALSE) -> 145.8796338 | K48: -13.70771146 | L48: =VLOOKUP($A48,Sheet1!$1:$1048576,11,FALSE) -> 126.7316564 | M48: 1.754941881 | N48: =VLOOKUP($A48,Sheet1!$1:$1048576,12,FALSE) -> 98.00969033 | O48: 29.99729565
A49: 11044 | B49: =VLOOKUP($A49,BasinData!$1:$1048576,2,FALSE) -> 0.1099902376 | C49: 42.73740487 | D49: =VLOOKUP($A49,BasinData!$1:$1048576,3,FALSE) -> 14.7182965 | E49: =VLOOKUP($A49,BasinData!$1:$1048576,4,FALSE) -> 15.44210238 | F49: =VLOOKUP($A49,BasinData!$1:$1048576,5,FALSE) -> 3.753337938 | G49: 175.54127 | H49: =VLOOKUP($A49,Sheet1!$1:$1048576,9,FALSE) -> 278.4267364 | I49: -7.952801711 | J49: =VLOOKUP($A49,Sheet1!$1:$1048576,10,FALSE) -> 261.27915 | K49: -0.9677285126 | L49: =VLOOKUP($A49,Sheet1!$1:$1048576,11,FALSE) -> 226.9839772 | M49: 14.49506767 | N49: =VLOOKUP($A49,Sheet1!$1:$1048576,12,FALSE) -> 175.5412179 | O49: 42.73740487
A50: 11045 | B50: =VLOOKUP($A50,BasinData!$1:$1048576,2,FALSE) -> 1.236030189 | C50: 42.89562356 | D50: =VLOOKUP($A50,BasinData!$1:$1048576,3,FALSE) -> 100 | E50: =VLOOKUP($A50,BasinData!$1:$1048576,4,FALSE) -> 16.36848116 | F50: =VLOOKUP($A50,BasinData!$1:$1048576,5,FALSE) -> 3.714738611 | G50: 155.4795846 | H50: =VLOOKUP($A50,Sheet1!$1:$1048576,9,FALSE) -> 246.6068227 | I50: -7.794586561 | J50: =VLOOKUP($A50,Sheet1!$1:$1048576,10,FALSE) -> 231.4189429 | K50: -0.8095447242 | L50: =VLOOKUP($A50,Sheet1!$1:$1048576,11,FALSE) -> 201.0431833 | M50: 14.65327762 | N50: =VLOOKUP($A50,Sheet1!$1:$1048576,12,FALSE) -> 155.479544 | O50: 42.89562356
A51: 11046 | B51: =VLOOKUP($A51,BasinData!$1:$1048576,2,FALSE) -> 0.07437255353 | C51: 42.00329962 | D51: =VLOOKUP($A51,BasinData!$1:$1048576,3,FALSE) -> 7.345188357 | E51: =VLOOKUP($A51,BasinData!$1:$1048576,4,FALSE) -> 14.20754657 | F51: =VLOOKUP($A51,BasinData!$1:$1048576,5,FALSE) -> 3.932430412 | G51: 182.4625467 | H51: =VLOOKUP($A51,Sheet1!$1:$1048576,9,FALSE) -> 289.4045419 | I51: -8.686885671 | J51: =VLOOKUP($A51,Sheet1!$1:$1048576,10,FALSE) -> 271.5808607 | K51: -1.701703833 | L51: =VLOOKUP($A51,Sheet1!$1:$1048576,11,FALSE) -> 235.9334983 | M51: 13.76098204 | N51: =VLOOKUP($A51,Sheet1!$1:$1048576,12,FALSE) -> 182.4624546 | O51: 42.00329962
A52: 11047 | B52: =VLOOKUP($A52,BasinData!$1:$1048576,2,FALSE) -> 0.05764533464 | C52: 20.78022058 | D52: =VLOOKUP($A52,BasinData!$1:$1048576,3,FALSE) -> 12.20084226 | E52: =VLOOKUP($A52,BasinData!$1:$1048576,4,FALSE) -> 23.52074665 | F52: =VLOOKUP($A52,BasinData!$1:$1048576,5,FALSE) -> 9.110188886 | G52: 139.6023691 | H52: =VLOOKUP($A52,Sheet1!$1:$1048576,9,FALSE) -> 221.4239329 | I52: -29.91000064 | J52: =VLOOKUP($A52,Sheet1!$1:$1048576,10,FALSE) -> 207.7870025 | K52: -22.9247658 | L52: =VLOOKUP($A52,Sheet1!$1:$1048576,11,FALSE) -> 180.5131417 | M52: -7.462172147 | N52: =VLOOKUP($A52,Sheet1!$1:$1048576,12,FALSE) -> 139.6023506 | O52: 20.78022058
A53: 11048 | B53: =VLOOKUP($A53,BasinData!$1:$1048576,2,FALSE) -> 0.09094942325 | C53: 14.31138051 | D53: =VLOOKUP($A53,BasinData!$1:$1048576,3,FALSE) -> 5.747863889 | E53: =VLOOKUP($A53,BasinData!$1:$1048576,4,FALSE) -> 16.97153022 | F53: =VLOOKUP($A53,BasinData!$1:$1048576,5,FALSE) -> 10.68836927 | G53: 168.220108 | H53: =VLOOKUP($A53,Sheet1!$1:$1048576,9,FALSE) -> 266.8145703 | I53: -36.37870329 | J53: =VLOOKUP($A53,Sheet1!$1:$1048576,10,FALSE) -> 250.3821473 | K53: -29.39357067 | L53: =VLOOKUP($A53,Sheet1!$1:$1048576,11,FALSE) -> 217.5173014 | M53: -13.9309541 | N53: =VLOOKUP($A53,Sheet1!$1:$1048576,12,FALSE) -> 168.2200325 | O53: 14.31138051
A54: 11049 | B54: =VLOOKUP($A54,BasinData!$1:$1048576,2,FALSE) -> 0.1038142272 | C54: 19.6463302 | D54: =VLOOKUP($A54,BasinData!$1:$1048576,3,FALSE) -> 12.04390802 | E54: =VLOOKUP($A54,BasinData!$1:$1048576,4,FALSE) -> 23.73075187 | F54: =VLOOKUP($A54,BasinData!$1:$1048576,5,FALSE) -> 9.386654132 | G54: 138.2214449 | H54: =VLOOKUP($A54,Sheet1!$1:$1048576,9,FALSE) -> 219.2322729 | I54: -31.04320881 | J54: =VLOOKUP($A54,Sheet1!$1:$1048576,10,FALSE) -> 205.7303212 | K54: -24.05796941 | L54: =VLOOKUP($A54,Sheet1!$1:$1048576,11,FALSE) -> 178.7264178 | M54: -8.595370581 | N54: =VLOOKUP($A54,Sheet1!$1:$1048576,12,FALSE) -> 138.2205628 | O54: 19.6463302
A55: 11050 | B55: =VLOOKUP($A55,BasinData!$1:$1048576,2,FALSE) -> 0.3870608806 | C55: 14.37576976 | D55: =VLOOKUP($A55,BasinData!$1:$1048576,3,FALSE) -> 40.26271768 | E55: =VLOOKUP($A55,BasinData!$1:$1048576,4,FALSE) -> 35.19890051 | F55: =VLOOKUP($A55,BasinData!$1:$1048576,5,FALSE) -> 10.67265982 | G55: 96.89509954 | H55: =VLOOKUP($A55,Sheet1!$1:$1048576,9,FALSE) -> 153.6856926 | I55: -36.31432149 | J55: =VLOOKUP($A55,Sheet1!$1:$1048576,10,FALSE) -> 144.2205862 | K55: -29.32917917 | L55: =VLOOKUP($A55,Sheet1!$1:$1048576,11,FALSE) -> 125.2903733 | M55: -13.86656276 | N55: =VLOOKUP($A55,Sheet1!$1:$1048576,12,FALSE) -> 96.89505402 | O55: 14.37576976
A56: 11051 | B56: =VLOOKUP($A56,BasinData!$1:$1048576,2,FALSE) -> 6.132647762 | C56: 23.29261868 | D56: =VLOOKUP($A56,BasinData!$1:$1048576,3,FALSE) -> 10.00790133 | E56: =VLOOKUP($A56,BasinData!$1:$1048576,4,FALSE) -> 22.63809452 | F56: =VLOOKUP($A56,BasinData!$1:$1048576,5,FALSE) -> 8.497163628 | G56: 85.97096502 | H56: =VLOOKUP($A56,Sheet1!$1:$1048576,9,FALSE) -> 136.3585148 | I56: -27.39726584 | J56: =VLOOKUP($A56,Sheet1!$1:$1048576,10,FALSE) -> 127.9605446 | K56: -20.41203613 | L56: =VLOOKUP($A56,Sheet1!$1:$1048576,11,FALSE) -> 111.1646044 | M56: -4.949578506 | N56: =VLOOKUP($A56,Sheet1!$1:$1048576,12,FALSE) -> 85.970694 | O56: 23.29261868
A57: 11052 | B57: =VLOOKUP($A57,BasinData!$1:$1048576,2,FALSE) -> 1.660066674 | C57: 31.25085316 | D57: =VLOOKUP($A57,BasinData!$1:$1048576,3,FALSE) -> 3.780043963 | E57: =VLOOKUP($A57,BasinData!$1:$1048576,4,FALSE) -> 9.441923414 | F57: =VLOOKUP($A57,BasinData!$1:$1048576,5,FALSE) -> 6.555668215 | G57: 183.290738 | H57: =VLOOKUP($A57,Sheet1!$1:$1048576,9,FALSE) -> 290.717996 | I57: -19.43924976 | J57: =VLOOKUP($A57,Sheet1!$1:$1048576,10,FALSE) -> 272.8134225 | K57: -12.45412863 | L57: =VLOOKUP($A57,Sheet1!$1:$1048576,11,FALSE) -> 237.0042756 | M57: 3.008578493 | N57: =VLOOKUP($A57,Sheet1!$1:$1048576,12,FALSE) -> 183.2905552 | O57: 31.25085316
A58: 11053 | B58: =VLOOKUP($A58,BasinData!$1:$1048576,2,FALSE) -> 0.5069637883 | C58: 41.65735386 | D58: =VLOOKUP($A58,BasinData!$1:$1048576,3,FALSE) -> 6.024611848 | E58: =VLOOKUP($A58,BasinData!$1:$1048576,4,FALSE) -> 14.73548212 | F58: =VLOOKUP($A58,BasinData!$1:$1048576,5,FALSE) -> 4.016826615 | G58: 173.2871519 | H58: =VLOOKUP($A58,Sheet1!$1:$1048576,9,FALSE) -> 274.8513778 | I58: -9.0328182 | J58: =VLOOKUP($A58,Sheet1!$1:$1048576,10,FALSE) -> 257.9239886 | K58: -2.047604775 | L58: =VLOOKUP($A58,Sheet1!$1:$1048576,11,FALSE) -> 224.06921 | M58: 13.41505422 | N58: =VLOOKUP($A58,Sheet1!$1:$1048576,12,FALSE) -> 173.2870422 | O58: 41.65735386
A59: 11054 | B59: =VLOOKUP($A59,BasinData!$1:$1048576,2,FALSE) -> 1.996030433 | C59: 45.90756623 | D59: =VLOOKUP($A59,BasinData!$1:$1048576,3,FALSE) -> 28.30852663 | E59: =VLOOKUP($A59,BasinData!$1:$1048576,4,FALSE) -> 10.03664171 | F59: =VLOOKUP($A59,BasinData!$1:$1048576,5,FALSE) -> 2.979928407 | G59: 175.1537774 | H59: =VLOOKUP($A59,Sheet1!$1:$1048576,9,FALSE) -> 277.8122142 | I59: -4.782667527 | J59: =VLOOKUP($A59,Sheet1!$1:$1048576,10,FALSE) -> 260.7024746 | K59: 2.202565962 | L59: =VLOOKUP($A59,Sheet1!$1:$1048576,11,FALSE) -> 226.4829955 | M59: 17.66476935 | N59: =VLOOKUP($A59,Sheet1!$1:$1048576,12,FALSE) -> 175.1537768 | O59: 45.90756623
A60: 11055 | B60: =VLOOKUP($A60,BasinData!$1:$1048576,2,FALSE) -> 1.097007948 | C60: 45.40979677 | D60: =VLOOKUP($A60,BasinData!$1:$1048576,3,FALSE) -> 9.024231091 | E60: =VLOOKUP($A60,BasinData!$1:$1048576,4,FALSE) -> 29.55496652 | F60: =VLOOKUP($A60,BasinData!$1:$1048576,5,FALSE) -> 3.10136792 | G60: 107.4582743 | H60: =VLOOKUP($A60,Sheet1!$1:$1048576,9,FALSE) -> 170.4400631 | I60: -5.280436684 | J60: =VLOOKUP($A60,Sheet1!$1:$1048576,10,FALSE) -> 159.9430981 | K60: 1.704797588 | L60: =VLOOKUP($A60,Sheet1!$1:$1048576,11,FALSE) -> 138.949168 | M60: 17.16742506 | N60: =VLOOKUP($A60,Sheet1!$1:$1048576,12,FALSE) -> 107.458273 | O60: 45.40979677
A61: 11056 | B61: =VLOOKUP($A61,BasinData!$1:$1048576,2,FALSE) -> 0.9146694135 | C61: 31.95257573 | D61: =VLOOKUP($A61,BasinData!$1:$1048576,3,FALSE) -> 5.086690118 | E61: =VLOOKUP($A61,BasinData!$1:$1048576,4,FALSE) -> 22.80315408 | F61: =VLOOKUP($A61,BasinData!$1:$1048576,5,FALSE) -> 6.384494174 | G61: 132.6277782 | H61: =VLOOKUP($A61,Sheet1!$1:$1048576,9,FALSE) -> 210.3615075 | I61: -18.73763544 | J61: =VLOOKUP($A61,Sheet1!$1:$1048576,10,FALSE) -> 197.4058834 | K61: -11.75255138 | L61: =VLOOKUP($A61,Sheet1!$1:$1048576,11,FALSE) -> 171.4946353 | M61: 3.710199469 | N61: =VLOOKUP($A61,Sheet1!$1:$1048576,12,FALSE) -> 132.6277631 | O61: 31.95257573
A62: 11057 | B62: =VLOOKUP($A62,BasinData!$1:$1048576,2,FALSE) -> 1.660150889 | C62: 39.77377626 | D62: =VLOOKUP($A62,BasinData!$1:$1048576,3,FALSE) -> 4.817667941 | E62: =VLOOKUP($A62,BasinData!$1:$1048576,4,FALSE) -> 30.3266407 | F62: =VLOOKUP($A62,BasinData!$1:$1048576,5,FALSE) -> 4.47632818 | G62: 100.2331532 | H62: =VLOOKUP($A62,Sheet1!$1:$1048576,9,FALSE) -> 158.9799841 | I62: -10.91627519 | J62: =VLOOKUP($A62,Sheet1!$1:$1048576,10,FALSE) -> 149.1888158 | K62: -3.931028778 | L62: =VLOOKUP($A62,Sheet1!$1:$1048576,11,FALSE) -> 129.6064794 | M62: 11.53160205 | N62: =VLOOKUP($A62,Sheet1!$1:$1048576,12,FALSE) -> 100.2329747 | O62: 39.77377626
A63: 11058 | B63: =VLOOKUP($A63,BasinData!$1:$1048576,2,FALSE) -> 0.5234172747 | C63: 33.11334772 | D63: =VLOOKUP($A63,BasinData!$1:$1048576,3,FALSE) -> 13.64199151 | E63: =VLOOKUP($A63,BasinData!$1:$1048576,4,FALSE) -> 27.46195385 | F63: =VLOOKUP($A63,BasinData!$1:$1048576,5,FALSE) -> 6.10121592 | G63: 119.7942472 | H63: =VLOOKUP($A63,Sheet1!$1:$1048576,9,FALSE) -> 190.0055688 | I63: -17.57623282 | J63: =VLOOKUP($A63,Sheet1!$1:$1048576,10,FALSE) -> 178.3036146 | K63: -10.59152607 | L63: =VLOOKUP($A63,Sheet1!$1:$1048576,11,FALSE) -> 154.8997063 | M63: 4.871319588 | N63: =VLOOKUP($A63,Sheet1!$1:$1048576,12,FALSE) -> 119.7938438 | O63: 33.11334772
A64: 11059 | B64: =VLOOKUP($A64,BasinData!$1:$1048576,2,FALSE) -> 1.190460591 | C64: 42.62600581 | D64: =VLOOKUP($A64,BasinData!$1:$1048576,3,FALSE) -> 6.527967363 | E64: =VLOOKUP($A64,BasinData!$1:$1048576,4,FALSE) -> 20.88353414 | F64: =VLOOKUP($A64,BasinData!$1:$1048576,5,FALSE) -> 3.780515004 | G64: 136.9830658 | H64: =VLOOKUP($A64,Sheet1!$1:$1048576,9,FALSE) -> 217.2694031 | I64: -8.06419805 | J64: =VLOOKUP($A64,Sheet1!$1:$1048576,10,FALSE) -> 203.8883395 | K64: -1.079104519 | L64: =VLOOKUP($A64,Sheet1!$1:$1048576,11,FALSE) -> 177.1262123 | M64: 14.38313576 | N64: =VLOOKUP($A64,Sheet1!$1:$1048576,12,FALSE) -> 136.9830216 | O64: 42.62600581
A65: 11060 | B65: =VLOOKUP($A65,BasinData!$1:$1048576,2,FALSE) -> 0.7687177281 | C65: 22.13612548 | D65: =VLOOKUP($A65,BasinData!$1:$1048576,3,FALSE) -> 6.40359498 | E65: =VLOOKUP($A65,BasinData!$1:$1048576,4,FALSE) -> 14.84793136 | F65: =VLOOKUP($A65,BasinData!$1:$1048576,5,FALSE) -> 8.779368209 | G65: 168.9686709 | H65: =VLOOKUP($A65,Sheet1!$1:$1048576,9,FALSE) -> 268.0017186 | I65: -28.55399613 | J65: =VLOOKUP($A65,Sheet1!$1:$1048576,10,FALSE) -> 251.4961823 | K65: -21.56876469 | L65: =VLOOKUP($A65,Sheet1!$1:$1048576,11,FALSE) -> 218.4851095 | M65: -6.106177982 | N65: =VLOOKUP($A65,Sheet1!$1:$1048576,12,FALSE) -> 168.9685003 | O65: 22.13612548
A66: 11061 | B66: =VLOOKUP($A66,BasinData!$1:$1048576,2,FALSE) -> 0.2948964853 | C66: 18.53838595 | D66: =VLOOKUP($A66,BasinData!$1:$1048576,3,FALSE) -> 3.472405809 | E66: =VLOOKUP($A66,BasinData!$1:$1048576,4,FALSE) -> 10.41437477 | F66: =VLOOKUP($A66,BasinData!$1:$1048576,5,FALSE) -> 9.657022851 | G66: 199.8659716 | H66: =VLOOKUP($A66,Sheet1!$1:$1048576,9,FALSE) -> 317.0070974 | I66: -32.15143004 | J66: =VLOOKUP($A66,Sheet1!$1:$1048576,10,FALSE) -> 297.4834458 | K66: -25.16618396 | L66: =VLOOKUP($A66,Sheet1!$1:$1048576,11,FALSE) -> 258.4361427 | M66: -9.703580597 | N66: =VLOOKUP($A66,Sheet1!$1:$1048576,12,FALSE) -> 199.8651879 | O66: 18.53838595
A67: 11062 | B67: =VLOOKUP($A67,BasinData!$1:$1048576,2,FALSE) -> 0.7570887268 | C67: 26.1370718 | D67: =VLOOKUP($A67,BasinData!$1:$1048576,3,FALSE) -> 9.252152294 | E67: =VLOOKUP($A67,BasinData!$1:$1048576,4,FALSE) -> 10.255191 | F67: =VLOOKUP($A67,BasinData!$1:$1048576,5,FALSE) -> 7.803293022 | G67: =EXP(6.1523-(0.084*B67)-(0.0091*C67)-(0.0289*E67)-(0.0373*F67)) -> 193.1407783 | H67: =VLOOKUP($A67,Sheet1!$1:$1048576,9,FALSE) -> 306.3414795 | I67: -24.55315727 | J67: =VLOOKUP($A67,Sheet1!$1:$1048576,10,FALSE) -> 287.4746959 | K67: -17.56792945 | L67: =VLOOKUP($A67,Sheet1!$1:$1048576,11,FALSE) -> 249.7411286 | M67: -2.105297632 | N67: =VLOOKUP($A67,Sheet1!$1:$1048576,12,FALSE) -> 193.1407777 | O67: 26.1370718
A68: 11063 | B68: =VLOOKUP($A68,BasinData!$1:$1048576,2,FALSE) -> 2.608610753 | C68: 41.40843263 | D68: =VLOOKUP($A68,BasinData!$1:$1048576,3,FALSE) -> 4.920265492 | E68: =VLOOKUP($A68,BasinData!$1:$1048576,4,FALSE) -> 24.035798 | F68: =VLOOKUP($A68,BasinData!$1:$1048576,5,FALSE) -> 4.077552549 | G68: 111.0113766 | H68: =VLOOKUP($A68,Sheet1!$1:$1048576,9,FALSE) -> 176.0755269 | I68: -9.28172843 | J68: =VLOOKUP($A68,Sheet1!$1:$1048576,10,FALSE) -> 165.2314882 | K68: -2.296499442 | L68: =VLOOKUP($A68,Sheet1!$1:$1048576,11,FALSE) -> 143.5434107 | M68: 13.16598506 | N68: =VLOOKUP($A68,Sheet1!$1:$1048576,12,FALSE) -> 111.0112945 | O68: 41.40843263
A69: 11064 | B69: =VLOOKUP($A69,BasinData!$1:$1048576,2,FALSE) -> 1.22059706 | C69: 46.9877871 | D69: =VLOOKUP($A69,BasinData!$1:$1048576,3,FALSE) -> 28.52431857 | E69: =VLOOKUP($A69,BasinData!$1:$1048576,4,FALSE) -> 25.77329491 | F69: =VLOOKUP($A69,BasinData!$1:$1048576,5,FALSE) -> 2.71623695 | G69: 118.6309155 | H69: =VLOOKUP($A69,Sheet1!$1:$1048576,9,FALSE) -> 188.1599733 | I69: -3.701821198 | J69: =VLOOKUP($A69,Sheet1!$1:$1048576,10,FALSE) -> 176.5716846 | K69: 3.283237993 | L69: =VLOOKUP($A69,Sheet1!$1:$1048576,11,FALSE) -> 153.3951072 | M69: 18.74603671 | N69: =VLOOKUP($A69,Sheet1!$1:$1048576,12,FALSE) -> 118.6302411 | O69: 46.9877871
A70: 11065 | B70: =VLOOKUP($A70,BasinData!$1:$1048576,2,FALSE) -> 2.10986544 | C70: 37.99321272 | D70: =VLOOKUP($A70,BasinData!$1:$1048576,3,FALSE) -> 10.72075745 | E70: =VLOOKUP($A70,BasinData!$1:$1048576,4,FALSE) -> 14.64663708 | F70: =VLOOKUP($A70,BasinData!$1:$1048576,5,FALSE) -> 4.910672956 | G70: 151.8475648 | H70: =VLOOKUP($A70,Sheet1!$1:$1048576,9,FALSE) -> 240.8451968 | I70: -12.69661848 | J70: =VLOOKUP($A70,Sheet1!$1:$1048576,10,FALSE) -> 226.0121607 | K70: -5.71136478 | L70: =VLOOKUP($A70,Sheet1!$1:$1048576,11,FALSE) -> 196.3460886 | M70: 9.751250345 | N70: =VLOOKUP($A70,Sheet1!$1:$1048576,12,FALSE) -> 151.8469804 | O70: 37.99321272
A71: 11066 | B71: =VLOOKUP($A71,BasinData!$1:$1048576,2,FALSE) -> 1.774237495 | C71: 47.59520405 | D71: =VLOOKUP($A71,BasinData!$1:$1048576,3,FALSE) -> 3.877585441 | E71: =VLOOKUP($A71,BasinData!$1:$1048576,4,FALSE) -> 12.74656306 | F71: =VLOOKUP($A71,BasinData!$1:$1048576,5,FALSE) -> 2.568061554 | G71: 165.0062456 | H71: =VLOOKUP($A71,Sheet1!$1:$1048576,9,FALSE) -> 261.7158247 | I71: -3.094464366 | J71: =VLOOKUP($A71,Sheet1!$1:$1048576,10,FALSE) -> 245.5974204 | K71: 3.890767922 | L71: =VLOOKUP($A71,Sheet1!$1:$1048576,11,FALSE) -> 213.3606117 | M71: 19.35339805 | N71: =VLOOKUP($A71,Sheet1!$1:$1048576,12,FALSE) -> 165.0053986 | O71: 47.59520405
A72: 11067 | B72: =VLOOKUP($A72,BasinData!$1:$1048576,2,FALSE) -> 0.8676465764 | C72: 34.19101832 | D72: =VLOOKUP($A72,BasinData!$1:$1048576,3,FALSE) -> 15.15858444 | E72: =VLOOKUP($A72,BasinData!$1:$1048576,4,FALSE) -> 21.02097471 | F72: =VLOOKUP($A72,BasinData!$1:$1048576,5,FALSE) -> 5.838356947 | G72: 140.1905457 | H72: =VLOOKUP($A72,Sheet1!$1:$1048576,9,FALSE) -> 222.356604 | I72: -16.4990786 | J72: =VLOOKUP($A72,Sheet1!$1:$1048576,10,FALSE) -> 208.6622328 | K72: -9.514218803 | L72: =VLOOKUP($A72,Sheet1!$1:$1048576,11,FALSE) -> 181.2734904 | M72: 5.948568922 | N72: =VLOOKUP($A72,Sheet1!$1:$1048576,12,FALSE) -> 140.1903767 | O72: 34.19101832
A73: 11068 | B73: =VLOOKUP($A73,BasinData!$1:$1048576,2,FALSE) -> 0.2946604925 | C73: 42.06107693 | D73: =VLOOKUP($A73,BasinData!$1:$1048576,3,FALSE) -> 10.00152256 | E73: =VLOOKUP($A73,BasinData!$1:$1048576,4,FALSE) -> 34.87490523 | F73: =VLOOKUP($A73,BasinData!$1:$1048576,5,FALSE) -> 3.918335128 | G73: 98.5687286 | H73: =VLOOKUP($A73,Sheet1!$1:$1048576,9,FALSE) -> 156.3402397 | I73: -8.62911036 | J73: =VLOOKUP($A73,Sheet1!$1:$1048576,10,FALSE) -> 146.7116466 | K73: -1.643934972 | L73: =VLOOKUP($A73,Sheet1!$1:$1048576,11,FALSE) -> 127.4544602 | M73: 13.81875592 | N73: =VLOOKUP($A73,Sheet1!$1:$1048576,12,FALSE) -> 98.56868075 | O73: 42.06107693
A74: 11069 | B74: =VLOOKUP($A74,BasinData!$1:$1048576,2,FALSE) -> 0.03625280719 | C74: 20.45169747 | D74: =VLOOKUP($A74,BasinData!$1:$1048576,3,FALSE) -> 12.33903906 | E74: =VLOOKUP($A74,BasinData!$1:$1048576,4,FALSE) -> 23.16644285 | F74: =VLOOKUP($A74,BasinData!$1:$1048576,5,FALSE) -> 9.190339811 | G74: 141.2928157 | H74: =VLOOKUP($A74,Sheet1!$1:$1048576,9,FALSE) -> 224.1051731 | I74: -30.23853246 | J74: =VLOOKUP($A74,Sheet1!$1:$1048576,10,FALSE) -> 210.303112 | K74: -23.25329649 | L74: =VLOOKUP($A74,Sheet1!$1:$1048576,11,FALSE) -> 182.6989899 | M74: -7.790701274 | N74: =VLOOKUP($A74,Sheet1!$1:$1048576,12,FALSE) -> 141.2928067 | O74: 20.45169747
A75: 11070 | B75: =VLOOKUP($A75,BasinData!$1:$1048576,2,FALSE) -> 0.001639792293 | C75: 19.68751677 | D75: =VLOOKUP($A75,BasinData!$1:$1048576,3,FALSE) -> 12.16451054 | E75: =VLOOKUP($A75,BasinData!$1:$1048576,4,FALSE) -> 23.59927728 | F75: =VLOOKUP($A75,BasinData!$1:$1048576,5,FALSE) -> 9.376776926 | G75: 139.9426873 | H75: =VLOOKUP($A75,Sheet1!$1:$1048576,9,FALSE) -> 221.9637417 | I75: -31.00272292 | J75: =VLOOKUP($A75,Sheet1!$1:$1048576,10,FALSE) -> 208.2935659 | K75: -24.01748372 | L75: =VLOOKUP($A75,Sheet1!$1:$1048576,11,FALSE) -> 180.9532142 | M75: -8.554885068 | N75: =VLOOKUP($A75,Sheet1!$1:$1048576,12,FALSE) -> 139.9426867 | O75: 19.68751677
A76: 11071 | B76: =VLOOKUP($A76,BasinData!$1:$1048576,2,FALSE) -> 0.4835379408 | C76: 36.81873427 | D76: =VLOOKUP($A76,BasinData!$1:$1048576,3,FALSE) -> 21.01853821 | E76: =VLOOKUP($A76,BasinData!$1:$1048576,4,FALSE) -> 30.38273173 | F76: =VLOOKUP($A76,BasinData!$1:$1048576,5,FALSE) -> 5.197126615 | G76: 110.4671908 | H76: =VLOOKUP($A76,Sheet1!$1:$1048576,9,FALSE) -> 175.2113159 | I76: -13.8707695 | J76: =VLOOKUP($A76,Sheet1!$1:$1048576,10,FALSE) -> 164.4205017 | K76: -6.88550987 | L76: =VLOOKUP($A76,Sheet1!$1:$1048576,11,FALSE) -> 142.8388733 | M76: 8.577115925 | N76: =VLOOKUP($A76,Sheet1!$1:$1048576,12,FALSE) -> 110.4664307 | O76: 36.81873427
A77: 11072 | B77: =VLOOKUP($A77,BasinData!$1:$1048576,2,FALSE) -> 0.1704761482 | C77: 14.408537 | D77: =VLOOKUP($A77,BasinData!$1:$1048576,3,FALSE) -> 2.451801952 | E77: =VLOOKUP($A77,BasinData!$1:$1048576,4,FALSE) -> 34.36807095 | F77: =VLOOKUP($A77,BasinData!$1:$1048576,5,FALSE) -> 10.66466538 | G77: 101.0719913 | H77: =VLOOKUP($A77,Sheet1!$1:$1048576,9,FALSE) -> 160.3106751 | I77: -36.28155773 | J77: =VLOOKUP($A77,Sheet1!$1:$1048576,10,FALSE) -> 150.437553 | K77: -29.29641076 | L77: =VLOOKUP($A77,Sheet1!$1:$1048576,11,FALSE) -> 130.6913089 | M77: -13.83379442 | N77: =VLOOKUP($A77,Sheet1!$1:$1048576,12,FALSE) -> 101.0719427 | O77: 14.408537
A78: 11073 | B78: =VLOOKUP($A78,BasinData!$1:$1048576,2,FALSE) -> 0.1300670284 | C78: 24.11902393 | D78: =VLOOKUP($A78,BasinData!$1:$1048576,3,FALSE) -> 21.27702971 | E78: =VLOOKUP($A78,BasinData!$1:$1048576,4,FALSE) -> 35.10309278 | F78: =VLOOKUP($A78,BasinData!$1:$1048576,5,FALSE) -> 8.295631593 | G78: 99.28403791 | H78: =VLOOKUP($A78,Sheet1!$1:$1048576,9,FALSE) -> 157.4748695 | I78: -26.57120524 | J78: =VLOOKUP($A78,Sheet1!$1:$1048576,10,FALSE) -> 147.7763974 | K78: -19.58597633 | L78: =VLOOKUP($A78,Sheet1!$1:$1048576,11,FALSE) -> 128.3794532 | M78: -4.123805793 | N78: =VLOOKUP($A78,Sheet1!$1:$1048576,12,FALSE) -> 99.28403695 | O78: 24.11902393
A79: 11074 | B79: =VLOOKUP($A79,BasinData!$1:$1048576,2,FALSE) -> 0.9206056538 | C79: 41.5085021 | D79: =VLOOKUP($A79,BasinData!$1:$1048576,3,FALSE) -> 4.052445598 | E79: =VLOOKUP($A79,BasinData!$1:$1048576,4,FALSE) -> 12.6665341 | F79: =VLOOKUP($A79,BasinData!$1:$1048576,5,FALSE) -> 4.053139989 | G79: 177.6822422 | H79: =VLOOKUP($A79,Sheet1!$1:$1048576,9,FALSE) -> 281.822429 | I79: -9.181663505 | J79: =VLOOKUP($A79,Sheet1!$1:$1048576,10,FALSE) -> 264.4657106 | K79: -2.196440075 | L79: =VLOOKUP($A79,Sheet1!$1:$1048576,11,FALSE) -> 229.7522738 | M79: 13.26575883 | N79: =VLOOKUP($A79,Sheet1!$1:$1048576,12,FALSE) -> 177.6821187 | O79: 41.5085021
A80: 11075 | B80: =VLOOKUP($A80,BasinData!$1:$1048576,2,FALSE) -> 0.08389763433 | C80: 38.50316581 | D80: =VLOOKUP($A80,BasinData!$1:$1048576,3,FALSE) -> 10.71868783 | E80: =VLOOKUP($A80,BasinData!$1:$1048576,4,FALSE) -> 16.87842302 | F80: =VLOOKUP($A80,BasinData!$1:$1048576,5,FALSE) -> 4.786279965 | G80: 168.7737603 | H80: =VLOOKUP($A80,Sheet1!$1:$1048576,9,FALSE) -> 267.6920016 | I80: -12.1867417 | J80: =VLOOKUP($A80,Sheet1!$1:$1048576,10,FALSE) -> 251.2055399 | K80: -5.201490281 | L80: =VLOOKUP($A80,Sheet1!$1:$1048576,11,FALSE) -> 218.2326165 | M80: 10.26111725 | N80: =VLOOKUP($A80,Sheet1!$1:$1048576,12,FALSE) -> 168.7732313 | O80: 38.50316581
A81: 11076 | B81: =VLOOKUP($A81,BasinData!$1:$1048576,2,FALSE) -> 1.129020563 | C81: 37.44762877 | D81: =VLOOKUP($A81,BasinData!$1:$1048576,3,FALSE) -> 5.631598784 | E81: =VLOOKUP($A81,BasinData!$1:$1048576,4,FALSE) -> 25.37448933 | F81: =VLOOKUP($A81,BasinData!$1:$1048576,5,FALSE) -> 5.043753989 | G81: 120.932687 | H81: =VLOOKUP($A81,Sheet1!$1:$1048576,9,FALSE) -> 191.8109842 | I81: -13.24210704 | J81: =VLOOKUP($A81,Sheet1!$1:$1048576,10,FALSE) -> 179.9978391 | K81: -6.256850707 | L81: =VLOOKUP($A81,Sheet1!$1:$1048576,11,FALSE) -> 156.371549 | M81: 9.205770392 | N81: =VLOOKUP($A81,Sheet1!$1:$1048576,12,FALSE) -> 120.9321138 | O81: 37.44762877
A82: 12001 | B82: =VLOOKUP($A82,BasinData!$1:$1048576,2,FALSE) -> 0.1130136986 | C82: -0.04217525088 | D82: =VLOOKUP($A82,BasinData!$1:$1048576,3,FALSE) -> 34.18995845 | E82: =VLOOKUP($A82,BasinData!$1:$1048576,4,FALSE) -> 25.44487761 | F82: =VLOOKUP($A82,BasinData!$1:$1048576,5,FALSE) -> 14.19016761 | G82: 131.4386798 | H82: =VLOOKUP($A82,Sheet1!$1:$1048576,9,FALSE) -> 208.4753451 | I82: -50.73232638 | J82: =VLOOKUP($A82,Sheet1!$1:$1048576,10,FALSE) -> 195.6358849 | K82: -43.74735613 | L82: =VLOOKUP($A82,Sheet1!$1:$1048576,11,FALSE) -> 169.9569645 | M82: -28.28446411 | N82: =VLOOKUP($A82,Sheet1!$1:$1048576,12,FALSE) -> 131.438584 | O82: -0.04217525088
A83: 12002 | B83: =VLOOKUP($A83,BasinData!$1:$1048576,2,FALSE) -> 1.830270903 | C83: -54.32598413 | D83: =VLOOKUP($A83,BasinData!$1:$1048576,3,FALSE) -> 6.6947904 | E83: =VLOOKUP($A83,BasinData!$1:$1048576,4,FALSE) -> 19.66338259 | F83: =VLOOKUP($A83,BasinData!$1:$1048576,5,FALSE) -> 27.43368946 | G83: 134.474599 | H83: =VLOOKUP($A83,Sheet1!$1:$1048576,9,FALSE) -> 213.2907772 | I83: -105.016211 | J83: =VLOOKUP($A83,Sheet1!$1:$1048576,10,FALSE) -> 200.1547469 | K83: -98.03098566 | L83: =VLOOKUP($A83,Sheet1!$1:$1048576,11,FALSE) -> 173.8826864 | M83: -82.56835867 | N83: =VLOOKUP($A83,Sheet1!$1:$1048576,12,FALSE) -> 134.4745957 | O83: -54.32598413
A84: 12003 | B84: =VLOOKUP($A84,BasinData!$1:$1048576,2,FALSE) -> 0.3284516233 | C84: -9.49011706 | D84: =VLOOKUP($A84,BasinData!$1:$1048576,3,FALSE) -> 5.368242284 | E84: =VLOOKUP($A84,BasinData!$1:$1048576,4,FALSE) -> 25.976275 | F84: =VLOOKUP($A84,BasinData!$1:$1048576,5,FALSE) -> 16.49518086 | G84: 127.1141543 | H84: =VLOOKUP($A84,Sheet1!$1:$1048576,9,FALSE) -> 201.6163461 | I84: -60.18035687 | J84: =VLOOKUP($A84,Sheet1!$1:$1048576,10,FALSE) -> 189.199314 | K84: -53.19513404 | L84: =VLOOKUP($A84,Sheet1!$1:$1048576,11,FALSE) -> 164.3652499 | M84: -37.73256263 | N84: =VLOOKUP($A84,Sheet1!$1:$1048576,12,FALSE) -> 127.1141536 | O84: -9.49011706
A85: 12004 | B85: =VLOOKUP($A85,BasinData!$1:$1048576,2,FALSE) -> 0.01118133204 | C85: -9.699987283 | D85: =VLOOKUP($A85,BasinData!$1:$1048576,3,FALSE) -> 3.745753128 | E85: =VLOOKUP($A85,BasinData!$1:$1048576,4,FALSE) -> 20.269329 | F85: =VLOOKUP($A85,BasinData!$1:$1048576,5,FALSE) -> 16.54638244 | G85: 153.9560203 | H85: =VLOOKUP($A85,Sheet1!$1:$1048576,9,FALSE) -> 244.1903536 | I85: -60.39022516 | J85: =VLOOKUP($A85,Sheet1!$1:$1048576,10,FALSE) -> 229.1512979 | K85: -53.40500213 | L85: =VLOOKUP($A85,Sheet1!$1:$1048576,11,FALSE) -> 199.0731866 | M85: -37.94243229 | N85: =VLOOKUP($A85,Sheet1!$1:$1048576,12,FALSE) -> 153.9560195 | O85: -9.699987283
A86: 12005 | B86: =VLOOKUP($A86,BasinData!$1:$1048576,2,FALSE) -> 0.5096656811 | C86: -10.9716014 | D86: =VLOOKUP($A86,BasinData!$1:$1048576,3,FALSE) -> 3.287285805 | E86: =VLOOKUP($A86,BasinData!$1:$1048576,4,FALSE) -> 19.74359964 | F86: =VLOOKUP($A86,BasinData!$1:$1048576,5,FALSE) -> 16.85661539 | G86: 149.902918 | H86: =VLOOKUP($A86,Sheet1!$1:$1048576,9,FALSE) -> 237.7617096 | I86: -61.66183262 | J86: =VLOOKUP($A86,Sheet1!$1:$1048576,10,FALSE) -> 223.1185775 | K86: -54.67660635 | L86: =VLOOKUP($A86,Sheet1!$1:$1048576,11,FALSE) -> 193.8323135 | M86: -39.21404308 | N86: =VLOOKUP($A86,Sheet1!$1:$1048576,12,FALSE) -> 149.9029174 | O86: -10.9716014
A87: 12006 | B87: =VLOOKUP($A87,BasinData!$1:$1048576,2,FALSE) -> 0.09914582062 | C87: -2.947802367 | D87: =VLOOKUP($A87,BasinData!$1:$1048576,3,FALSE) -> 33.34242032 | E87: =VLOOKUP($A87,BasinData!$1:$1048576,4,FALSE) -> 24.14256224 | F87: =VLOOKUP($A87,BasinData!$1:$1048576,5,FALSE) -> 14.89905918 | G87: 136.638916 | H87: =VLOOKUP($A87,Sheet1!$1:$1048576,9,FALSE) -> 216.7235549 | I87: -53.63800134 | J87: =VLOOKUP($A87,Sheet1!$1:$1048576,10,FALSE) -> 203.3761087 | K87: -46.6529268 | L87: =VLOOKUP($A87,Sheet1!$1:$1048576,11,FALSE) -> 176.6812163 | M87: -31.19035026 | N87: =VLOOKUP($A87,Sheet1!$1:$1048576,12,FALSE) -> 136.6388777 | O87: -2.947802367
A88: 12007 | B88: =VLOOKUP($A88,BasinData!$1:$1048576,2,FALSE) -> 0.1246470773 | C88: 10.46058601 | D88: =VLOOKUP($A88,BasinData!$1:$1048576,3,FALSE) -> 70.71053316 | E88: =VLOOKUP($A88,BasinData!$1:$1048576,4,FALSE) -> 21.58907827 | F88: =VLOOKUP($A88,BasinData!$1:$1048576,5,FALSE) -> 11.62767299 | G88: 146.7898171 | H88: =VLOOKUP($A88,Sheet1!$1:$1048576,9,FALSE) -> 232.8224585 | I88: -40.22891674 | J88: =VLOOKUP($A88,Sheet1!$1:$1048576,10,FALSE) -> 218.4835222 | K88: -33.24368355 | L88: =VLOOKUP($A88,Sheet1!$1:$1048576,11,FALSE) -> 189.8056497 | M88: -17.78105952 | N88: =VLOOKUP($A88,Sheet1!$1:$1048576,12,FALSE) -> 146.7888409 | O88: 10.46058601
A89: 12008 | B89: =VLOOKUP($A89,BasinData!$1:$1048576,2,FALSE) -> 0.6026001383 | C89: 2.300193354 | D89: =VLOOKUP($A89,BasinData!$1:$1048576,3,FALSE) -> 100 | E89: =VLOOKUP($A89,BasinData!$1:$1048576,4,FALSE) -> 33.70020964 | F89: =VLOOKUP($A89,BasinData!$1:$1048576,5,FALSE) -> 13.61868826 | G89: 99.36865264 | H89: =VLOOKUP($A89,Sheet1!$1:$1048576,9,FALSE) -> 157.6088654 | I89: -48.38989879 | J89: =VLOOKUP($A89,Sheet1!$1:$1048576,10,FALSE) -> 147.9021408 | K89: -41.40502432 | L89: =VLOOKUP($A89,Sheet1!$1:$1048576,11,FALSE) -> 128.4886917 | M89: -25.94202735 | N89: =VLOOKUP($A89,Sheet1!$1:$1048576,12,FALSE) -> 99.36851807 | O89: 2.300193354
A90: 12009 | B90: =VLOOKUP($A90,BasinData!$1:$1048576,2,FALSE) -> 0.3456221198 | C90: 1.583943575 | D90: =VLOOKUP($A90,BasinData!$1:$1048576,3,FALSE) -> 36.78795331 | E90: =VLOOKUP($A90,BasinData!$1:$1048576,4,FALSE) -> 20.7253886 | F90: =VLOOKUP($A90,BasinData!$1:$1048576,5,FALSE) -> 13.7934361 | G90: 147.7312816 | H90: =VLOOKUP($A90,Sheet1!$1:$1048576,9,FALSE) -> 234.3170025 | I90: -49.10616117 | J90: =VLOOKUP($A90,Sheet1!$1:$1048576,10,FALSE) -> 219.8860211 | K90: -42.12126422 | L90: =VLOOKUP($A90,Sheet1!$1:$1048576,11,FALSE) -> 191.0240584 | M90: -26.65830124 | N90: =VLOOKUP($A90,Sheet1!$1:$1048576,12,FALSE) -> 147.7311142 | O90: 1.583943575
A91: 12010 | B91: =VLOOKUP($A91,BasinData!$1:$1048576,2,FALSE) -> 0.2357806783 | C91: -2.245519834 | D91: =VLOOKUP($A91,BasinData!$1:$1048576,3,FALSE) -> 52.57066564 | E91: =VLOOKUP($A91,BasinData!$1:$1048576,4,FALSE) -> 46.79970796 | F91: =VLOOKUP($A91,BasinData!$1:$1048576,5,FALSE) -> 14.72772264 | G91: 70.18067856 | H91: =VLOOKUP($A91,Sheet1!$1:$1048576,9,FALSE) -> 111.3138581 | I91: -52.93572358 | J91: =VLOOKUP($A91,Sheet1!$1:$1048576,10,FALSE) -> 104.4583239 | K91: -45.95065831 | L91: =VLOOKUP($A91,Sheet1!$1:$1048576,11,FALSE) -> 90.74725564 | M91: -30.48816221 | N91: =VLOOKUP($A91,Sheet1!$1:$1048576,12,FALSE) -> 70.18065317 | O91: -2.245519834
A92: 12011 | B92: =VLOOKUP($A92,BasinData!$1:$1048576,2,FALSE) -> 0.1491935484 | C92: -44.56649407 | D92: =VLOOKUP($A92,BasinData!$1:$1048576,3,FALSE) -> 100 | E92: =VLOOKUP($A92,BasinData!$1:$1048576,4,FALSE) -> 19.58312442 | F92: =VLOOKUP($A92,BasinData!$1:$1048576,5,FALSE) -> 25.05268137 | G92: 155.2296335 | H92: =VLOOKUP($A92,Sheet1!$1:$1048576,9,FALSE) -> 246.2103729 | I92: -95.25670068 | J92: =VLOOKUP($A92,Sheet1!$1:$1048576,10,FALSE) -> 231.0469095 | K92: -88.27146922 | L92: =VLOOKUP($A92,Sheet1!$1:$1048576,11,FALSE) -> 200.7199825 | M92: -72.80884955 | N92: =VLOOKUP($A92,Sheet1!$1:$1048576,12,FALSE) -> 155.2295921 | O92: -44.56649407
A93: 12012 | B93: =VLOOKUP($A93,BasinData!$1:$1048576,2,FALSE) -> 0.1062392673 | C93: -4.334266652 | D93: =VLOOKUP($A93,BasinData!$1:$1048576,3,FALSE) -> 29.24024714 | E93: =VLOOKUP($A93,BasinData!$1:$1048576,4,FALSE) -> 24.66856455 | F93: =VLOOKUP($A93,BasinData!$1:$1048576,5,FALSE) -> 15.23731512 | G93: 134.4973315 | H93: =VLOOKUP($A93,Sheet1!$1:$1048576,9,FALSE) -> 213.3268048 | I93: -55.02449837 | J93: =VLOOKUP($A93,Sheet1!$1:$1048576,10,FALSE) -> 200.1885557 | K93: -48.03936371 | L93: =VLOOKUP($A93,Sheet1!$1:$1048576,11,FALSE) -> 173.9120575 | M93: -32.57671028 | N93: =VLOOKUP($A93,Sheet1!$1:$1048576,12,FALSE) -> 134.4973102 | O93: -4.334266652
A94: 12013 | B94: =VLOOKUP($A94,BasinData!$1:$1048576,2,FALSE) -> 3.006430868 | C94: 9.159667607 | D94: =VLOOKUP($A94,BasinData!$1:$1048576,3,FALSE) -> 32.44214047 | E94: =VLOOKUP($A94,BasinData!$1:$1048576,4,FALSE) -> 20.9649213 | F94: =VLOOKUP($A94,BasinData!$1:$1048576,5,FALSE) -> 11.94508944 | G94: 117.3274531 | H94: =VLOOKUP($A94,Sheet1!$1:$1048576,9,FALSE) -> 186.092615 | I94: -41.52998591 | J94: =VLOOKUP($A94,Sheet1!$1:$1048576,10,FALSE) -> 174.6316496 | K94: -34.54474213 | L94: =VLOOKUP($A94,Sheet1!$1:$1048576,11,FALSE) -> 151.7097188 | M94: -19.08211634 | N94: =VLOOKUP($A94,Sheet1!$1:$1048576,12,FALSE) -> 117.3268225 | O94: 9.159667607
A95: 12014 | B95: =VLOOKUP($A95,BasinData!$1:$1048576,2,FALSE) -> 0.116751269 | C95: -1.542194116 | D95: =VLOOKUP($A95,BasinData!$1:$1048576,3,FALSE) -> 42.68742493 | E95: =VLOOKUP($A95,BasinData!$1:$1048576,4,FALSE) -> 20.54202671 | F95: =VLOOKUP($A95,BasinData!$1:$1048576,5,FALSE) -> 14.55613117 | G95: 151.3989787 | H95: =VLOOKUP($A95,Sheet1!$1:$1048576,9,FALSE) -> 240.1345089 | I95: -52.23237298 | J95: =VLOOKUP($A95,Sheet1!$1:$1048576,10,FALSE) -> 225.3452423 | K95: -45.24734653 | L95: =VLOOKUP($A95,Sheet1!$1:$1048576,11,FALSE) -> 195.766709 | M95: -29.78495094 | N95: =VLOOKUP($A95,Sheet1!$1:$1048576,12,FALSE) -> 151.3989091 | O95: -1.542194116
A96: 12015 | B96: =VLOOKUP($A96,BasinData!$1:$1048576,2,FALSE) -> 0.5843844456 | C96: -2.135669143 | D96: =VLOOKUP($A96,BasinData!$1:$1048576,3,FALSE) -> 1.761882728 | E96: =VLOOKUP($A96,BasinData!$1:$1048576,4,FALSE) -> 20.09767092 | F96: =VLOOKUP($A96,BasinData!$1:$1048576,5,FALSE) -> 14.70092223 | G96: 147.4485361 | H96: =VLOOKUP($A96,Sheet1!$1:$1048576,9,FALSE) -> 233.8687161 | I96: -52.82587055 | J96: =VLOOKUP($A96,Sheet1!$1:$1048576,10,FALSE) -> 219.4653435 | K96: -45.84080981 | L96: =VLOOKUP($A96,Sheet1!$1:$1048576,11,FALSE) -> 190.6585984 | M96: -30.37832808 | N96: =VLOOKUP($A96,Sheet1!$1:$1048576,12,FALSE) -> 147.4484807 | O96: -2.135669143
A97: 12016 | B97: =VLOOKUP($A97,BasinData!$1:$1048576,2,FALSE) -> 0 | C97: -40.30926931 | D97: =VLOOKUP($A97,BasinData!$1:$1048576,3,FALSE) -> 100 | E97: =VLOOKUP($A97,BasinData!$1:$1048576,4,FALSE) -> 21.28937112 | F97: =VLOOKUP($A97,BasinData!$1:$1048576,5,FALSE) -> 24.01404873 | G97: 149.6243033 | H97: =VLOOKUP($A97,Sheet1!$1:$1048576,9,FALSE) -> 237.3196754 | I97: -90.99945769 | J97: =VLOOKUP($A97,Sheet1!$1:$1048576,10,FALSE) -> 222.7037671 | K97: -84.01421684 | L97: =VLOOKUP($A97,Sheet1!$1:$1048576,11,FALSE) -> 193.4719505 | M97: -68.55160143 | N97: =VLOOKUP($A97,Sheet1!$1:$1048576,12,FALSE) -> 149.6242257 | O97: -40.30926931
A98: 12017 | B98: =VLOOKUP($A98,BasinData!$1:$1048576,2,FALSE) -> 1.036613975 | C98: -3.25434655 | D98: =VLOOKUP($A98,BasinData!$1:$1048576,3,FALSE) -> 8.907208056 | E98: =VLOOKUP($A98,BasinData!$1:$1048576,4,FALSE) -> 16.7194191 | F98: =VLOOKUP($A98,BasinData!$1:$1048576,5,FALSE) -> 14.97384693 | G98: 156.5105277 | H98: =VLOOKUP($A98,Sheet1!$1:$1048576,9,FALSE) -> 248.2420089 | I98: -53.94418809 | J98: =VLOOKUP($A98,Sheet1!$1:$1048576,10,FALSE) -> 232.9534222 | K98: -46.95946476 | L98: =VLOOKUP($A98,Sheet1!$1:$1048576,11,FALSE) -> 202.3762488 | M98: -31.49685936 | N98: =VLOOKUP($A98,Sheet1!$1:$1048576,12,FALSE) -> 156.5104887 | O98: -3.25434655
A99: 12018 | B99: =VLOOKUP($A99,BasinData!$1:$1048576,2,FALSE) -> 1.469600295 | C99: -30.47202615 | D99: =VLOOKUP($A99,BasinData!$1:$1048576,3,FALSE) -> 5.168335861 | E99: =VLOOKUP($A99,BasinData!$1:$1048576,4,FALSE) -> 13.8832315 | F99: =VLOOKUP($A99,BasinData!$1:$1048576,5,FALSE) -> 21.61404697 | G99: 163.8120396 | H99: =VLOOKUP($A99,Sheet1!$1:$1048576,9,FALSE) -> 259.8225982 | I99: -81.16203033 | J99: =VLOOKUP($A99,Sheet1!$1:$1048576,10,FALSE) -> 243.8207928 | K99: -74.17684721 | L99: =VLOOKUP($A99,Sheet1!$1:$1048576,11,FALSE) -> 211.817182 | M99: -58.71424451 | N99: =VLOOKUP($A99,Sheet1!$1:$1048576,12,FALSE) -> 163.8117658 | O99: -30.47202615
A100: 12019 | B100: =VLOOKUP($A100,BasinData!$1:$1048576,2,FALSE) -> 0.2217649749 | C100: -12.07168078 | D100: =VLOOKUP($A100,BasinData!$1:$1048576,3,FALSE) -> 7.411715642 | E100: =VLOOKUP($A100,BasinData!$1:$1048576,4,FALSE) -> 16.08265948 | F100: =VLOOKUP($A100,BasinData!$1:$1048576,5,FALSE) -> 17.12499939 | G100: 170.711108 | H100: =VLOOKUP($A100,Sheet1!$1:$1048576,9,FALSE) -> 270.7656758 | I100: -62.76191011 | J100: =VLOOKUP($A100,Sheet1!$1:$1048576,10,FALSE) -> 254.0899144 | K100: -55.77668554 | L100: =VLOOKUP($A100,Sheet1!$1:$1048576,11,FALSE) -> 220.7383916 | M100: -40.31411967 | N100: =VLOOKUP($A100,Sheet1!$1:$1048576,12,FALSE) -> 170.7111074 | O100: -12.07168078
A101: 12020 | B101: =VLOOKUP($A101,BasinData!$1:$1048576,2,FALSE) -> 0.6031819693 | C101: 9.037220125 | D101: =VLOOKUP($A101,BasinData!$1:$1048576,3,FALSE) -> 64.90278564 | E101: =VLOOKUP($A101,BasinData!$1:$1048576,4,FALSE) -> 23.65591398 | F101: =VLOOKUP($A101,BasinData!$1:$1048576,5,FALSE) -> 11.97496564 | G101: 132.8302343 | H101: =VLOOKUP($A101,Sheet1!$1:$1048576,9,FALSE) -> 210.681539 | I101: -41.65244712 | J101: =VLOOKUP($A101,Sheet1!$1:$1048576,10,FALSE) -> 197.706205 | K101: -34.66720169 | L101: =VLOOKUP($A101,Sheet1!$1:$1048576,11,FALSE) -> 171.755537 | M101: -19.20457576 | N101: =VLOOKUP($A101,Sheet1!$1:$1048576,12,FALSE) -> 132.8295351 | O101: 9.037220125
A102: 12021 | B102: =VLOOKUP($A102,BasinData!$1:$1048576,2,FALSE) -> 0.1408282663 | C102: -62.21251403 | D102: =VLOOKUP($A102,BasinData!$1:$1048576,3,FALSE) -> 3.060990096 | E102: =VLOOKUP($A102,BasinData!$1:$1048576,4,FALSE) -> 19.99260218 | F102: =VLOOKUP($A102,BasinData!$1:$1048576,5,FALSE) -> 29.35774938 | G102: 153.5112798 | H102: =VLOOKUP($A102,Sheet1!$1:$1048576,9,FALSE) -> 243.484947 | I102: -112.9026096 | J102: =VLOOKUP($A102,Sheet1!$1:$1048576,10,FALSE) -> 228.4893355 | K102: -105.9175168 | L102: =VLOOKUP($A102,Sheet1!$1:$1048576,11,FALSE) -> 198.4981125 | M102: -90.454886 | N102: =VLOOKUP($A102,Sheet1!$1:$1048576,12,FALSE) -> 153.511278 | O102: -62.21251403
A103: 12022 | B103: =VLOOKUP($A103,BasinData!$1:$1048576,2,FALSE) -> 0.4207312834 | C103: 23.33701012 | D103: =VLOOKUP($A103,BasinData!$1:$1048576,3,FALSE) -> 12.32600842 | E103: =VLOOKUP($A103,BasinData!$1:$1048576,4,FALSE) -> 40.83409716 | F103: =VLOOKUP($A103,BasinData!$1:$1048576,5,FALSE) -> 8.486330304 | G103: 82.10067613 | H103: =VLOOKUP($A103,Sheet1!$1:$1048576,9,FALSE) -> 130.2198353 | I103: -27.35286107 | J103: =VLOOKUP($A103,Sheet1!$1:$1048576,10,FALSE) -> 122.1999306 | K103: -20.36763141 | L103: =VLOOKUP($A103,Sheet1!$1:$1048576,11,FALSE) -> 106.1601213 | M103: -4.905185599 | N103: =VLOOKUP($A103,Sheet1!$1:$1048576,12,FALSE) -> 82.10040739 | O103: 23.33701012
A104: 12023 | B104: =VLOOKUP($A104,BasinData!$1:$1048576,2,FALSE) -> 0.6613309022 | C104: -36.21668605 | D104: =VLOOKUP($A104,BasinData!$1:$1048576,3,FALSE) -> 0.5322002995 | E104: =VLOOKUP($A104,BasinData!$1:$1048576,4,FALSE) -> 43.90928726 | F104: =VLOOKUP($A104,BasinData!$1:$1048576,5,FALSE) -> 23.01558022 | G104: 73.61586085 | H104: =VLOOKUP($A104,Sheet1!$1:$1048576,9,FALSE) -> 116.7623533 | I104: -86.90683576 | J104: =VLOOKUP($A104,Sheet1!$1:$1048576,10,FALSE) -> 109.5712604 | K104: -79.92159326 | L104: =VLOOKUP($A104,Sheet1!$1:$1048576,11,FALSE) -> 95.18907447 | M104: -64.45898262 | N104: =VLOOKUP($A104,Sheet1!$1:$1048576,12,FALSE) -> 73.61579559 | O104: -36.21668605
A105: 12024 | B105: =VLOOKUP($A105,BasinData!$1:$1048576,2,FALSE) -> 0.3018108652 | C105: -19.05392279 | D105: =VLOOKUP($A105,BasinData!$1:$1048576,3,FALSE) -> 28.28119292 | E105: =VLOOKUP($A105,BasinData!$1:$1048576,4,FALSE) -> 36.84844107 | F105: =VLOOKUP($A105,BasinData!$1:$1048576,5,FALSE) -> 18.82832041 | G105: 93.04863248 | H105: =VLOOKUP($A105,Sheet1!$1:$1048576,9,FALSE) -> 147.5841968 | I105: -69.74366829 | J105: =VLOOKUP($A105,Sheet1!$1:$1048576,10,FALSE) -> 138.4948658 | K105: -62.7584298 | L105: =VLOOKUP($A105,Sheet1!$1:$1048576,11,FALSE) -> 120.3162038 | M105: -47.29584772 | N105: =VLOOKUP($A105,Sheet1!$1:$1048576,12,FALSE) -> 93.0482108 | O105: -19.05392279
A106: 12025 | B106: =VLOOKUP($A106,BasinData!$1:$1048576,2,FALSE) -> 0.3079828386 | C106: 27.29311307 | D106: =VLOOKUP($A106,BasinData!$1:$1048576,3,FALSE) -> 78.79254725 | E106: =VLOOKUP($A106,BasinData!$1:$1048576,4,FALSE) -> 30.34016722 | F106: =VLOOKUP($A106,BasinData!$1:$1048576,5,FALSE) -> 7.521254547 | G106: 112.2455055 | H106: =VLOOKUP($A106,Sheet1!$1:$1048576,9,FALSE) -> 178.0331035 | I106: -23.39670015 | J106: =VLOOKUP($A106,Sheet1!$1:$1048576,10,FALSE) -> 167.0685026 | K106: -16.41188177 | L106: =VLOOKUP($A106,Sheet1!$1:$1048576,11,FALSE) -> 145.139301 | M106: -0.9492511443 | N106: =VLOOKUP($A106,Sheet1!$1:$1048576,12,FALSE) -> 112.2454985 | O106: 27.29311307
A107: 12026 | B107: =VLOOKUP($A107,BasinData!$1:$1048576,2,FALSE) -> 1.772483521 | C107: -0.09199594341 | D107: =VLOOKUP($A107,BasinData!$1:$1048576,3,FALSE) -> 71.53529484 | E107: =VLOOKUP($A107,BasinData!$1:$1048576,4,FALSE) -> 23.11985899 | F107: =VLOOKUP($A107,BasinData!$1:$1048576,5,FALSE) -> 14.20232253 | G107: 122.2829953 | H107: =VLOOKUP($A107,Sheet1!$1:$1048576,9,FALSE) -> 193.9534842 | I107: -50.78214668 | J107: =VLOOKUP($A107,Sheet1!$1:$1048576,10,FALSE) -> 182.0083881 | K107: -43.79717592 | L107: =VLOOKUP($A107,Sheet1!$1:$1048576,11,FALSE) -> 158.1181958 | M107: -28.33428594 | N107: =VLOOKUP($A107,Sheet1!$1:$1048576,12,FALSE) -> 122.2829074 | O107: -0.09199594341
A108: 12027 | B108: =VLOOKUP($A108,BasinData!$1:$1048576,2,FALSE) -> 1.026705845 | C108: 10.02697659 | D108: =VLOOKUP($A108,BasinData!$1:$1048576,3,FALSE) -> 3.015825028 | E108: =VLOOKUP($A108,BasinData!$1:$1048576,4,FALSE) -> 36.47058824 | F108: =VLOOKUP($A108,BasinData!$1:$1048576,5,FALSE) -> 11.73347175 | G108: 88.51329138 | H108: =VLOOKUP($A108,Sheet1!$1:$1048576,9,FALSE) -> 140.3904694 | I108: -40.66257776 | J108: =VLOOKUP($A108,Sheet1!$1:$1048576,10,FALSE) -> 131.7441816 | K108: -33.67734216 | L108: =VLOOKUP($A108,Sheet1!$1:$1048576,11,FALSE) -> 114.4516059 | M108: -18.2147175 | N108: =VLOOKUP($A108,Sheet1!$1:$1048576,12,FALSE) -> 88.51274237 | O108: 10.02697659
A109: 12028 | B109: =VLOOKUP($A109,BasinData!$1:$1048576,2,FALSE) -> 0.2610972001 | C109: 3.685153201 | D109: =VLOOKUP($A109,BasinData!$1:$1048576,3,FALSE) -> 36.88500052 | E109: =VLOOKUP($A109,BasinData!$1:$1048576,4,FALSE) -> 31.29543472 | F109: =VLOOKUP($A109,BasinData!$1:$1048576,5,FALSE) -> 13.28078881 | G109: 109.6201771 | H109: =VLOOKUP($A109,Sheet1!$1:$1048576,9,FALSE) -> 173.8687441 | I109: -47.00485012 | J109: =VLOOKUP($A109,Sheet1!$1:$1048576,10,FALSE) -> 163.1606155 | K109: -40.02007882 | L109: =VLOOKUP($A109,Sheet1!$1:$1048576,11,FALSE) -> 141.7443582 | M109: -24.55701145 | N109: =VLOOKUP($A109,Sheet1!$1:$1048576,12,FALSE) -> 109.6199722 | O109: 3.685153201
A110: 12029 | B110: =VLOOKUP($A110,BasinData!$1:$1048576,2,FALSE) -> 0.5374523304 | C110: 18.74671604 | D110: =VLOOKUP($A110,BasinData!$1:$1048576,3,FALSE) -> 100 | E110: =VLOOKUP($A110,BasinData!$1:$1048576,4,FALSE) -> 29.22525503 | F110: =VLOOKUP($A110,BasinData!$1:$1048576,5,FALSE) -> 9.606188197 | G110: 113.7085048 | H110: =VLOOKUP($A110,Sheet1!$1:$1048576,9,FALSE) -> 180.352818 | I110: -31.94306238 | J110: =VLOOKUP($A110,Sheet1!$1:$1048576,10,FALSE) -> 169.2453519 | K110: -24.95781776 | L110: =VLOOKUP($A110,Sheet1!$1:$1048576,11,FALSE) -> 147.0304198 | M110: -9.495215207 | N110: =VLOOKUP($A110,Sheet1!$1:$1048576,12,FALSE) -> 113.7080215 | O110: 18.74671604
A111: 12030 | B111: =VLOOKUP($A111,BasinData!$1:$1048576,2,FALSE) -> 0.2017391304 | C111: 6.832188671 | D111: =VLOOKUP($A111,BasinData!$1:$1048576,3,FALSE) -> 61.93594315 | E111: =VLOOKUP($A111,BasinData!$1:$1048576,4,FALSE) -> 29.12817328 | F111: =VLOOKUP($A111,BasinData!$1:$1048576,5,FALSE) -> 12.51296822 | G111: 117.2892462 | H111: =VLOOKUP($A111,Sheet1!$1:$1048576,9,FALSE) -> 186.0323538 | I111: -43.85746742 | J111: =VLOOKUP($A111,Sheet1!$1:$1048576,10,FALSE) -> 174.5750998 | K111: -36.87304318 | L111: =VLOOKUP($A111,Sheet1!$1:$1048576,11,FALSE) -> 151.6605916 | M111: -21.40979286 | N111: =VLOOKUP($A111,Sheet1!$1:$1048576,12,FALSE) -> 117.2888293 | O111: 6.832188671
A112: 12031 | B112: =VLOOKUP($A112,BasinData!$1:$1048576,2,FALSE) -> 0.443407414 | C112: 10.61227288 | D112: =VLOOKUP($A112,BasinData!$1:$1048576,3,FALSE) -> 8.61191852 | E112: =VLOOKUP($A112,BasinData!$1:$1048576,4,FALSE) -> 32.81085353 | F112: =VLOOKUP($A112,BasinData!$1:$1048576,5,FALSE) -> 11.59064157 | G112: 103.3289405 | H112: =VLOOKUP($A112,Sheet1!$1:$1048576,9,FALSE) -> 163.8892687 | I112: -40.07712793 | J112: =VLOOKUP($A112,Sheet1!$1:$1048576,10,FALSE) -> 153.7957503 | K112: -33.09189539 | L112: =VLOOKUP($A112,Sheet1!$1:$1048576,11,FALSE) -> 133.6087134 | M112: -17.62927159 | N112: =VLOOKUP($A112,Sheet1!$1:$1048576,12,FALSE) -> 103.3281581 | O112: 10.61227288
A113: 12032 | B113: =VLOOKUP($A113,BasinData!$1:$1048576,2,FALSE) -> 0 | C113: -10.4397801 | D113: =VLOOKUP($A113,BasinData!$1:$1048576,3,FALSE) -> 29.42356279 | E113: =VLOOKUP($A113,BasinData!$1:$1048576,4,FALSE) -> 37.41308611 | F113: =VLOOKUP($A113,BasinData!$1:$1048576,5,FALSE) -> 16.72664607 | G113: 93.89338269 | H113: =VLOOKUP($A113,Sheet1!$1:$1048576,9,FALSE) -> 148.9234939 | I113: -61.12910318 | J113: =VLOOKUP($A113,Sheet1!$1:$1048576,10,FALSE) -> 139.751679 | K113: -54.14387849 | L113: =VLOOKUP($A113,Sheet1!$1:$1048576,11,FALSE) -> 121.4080493 | M113: -38.68131308 | N113: =VLOOKUP($A113,Sheet1!$1:$1048576,12,FALSE) -> 93.89260467 | O113: -10.4397801
A114: 12033 | B114: =VLOOKUP($A114,BasinData!$1:$1048576,2,FALSE) -> 0.1264774907 | C114: 10.36505489 | D114: =VLOOKUP($A114,BasinData!$1:$1048576,3,FALSE) -> 34.7299921 | E114: =VLOOKUP($A114,BasinData!$1:$1048576,4,FALSE) -> 25.57087594 | F114: =VLOOKUP($A114,BasinData!$1:$1048576,5,FALSE) -> 11.65098221 | G114: 130.8136695 | H114: =VLOOKUP($A114,Sheet1!$1:$1048576,9,FALSE) -> 207.4828063 | I114: -40.32445937 | J114: =VLOOKUP($A114,Sheet1!$1:$1048576,10,FALSE) -> 194.704474 | K114: -33.33922572 | L114: =VLOOKUP($A114,Sheet1!$1:$1048576,11,FALSE) -> 169.1478095 | M114: -17.87660155 | N114: =VLOOKUP($A114,Sheet1!$1:$1048576,12,FALSE) -> 130.8128127 | O114: 10.36505489
A115: 12034 | B115: =VLOOKUP($A115,BasinData!$1:$1048576,2,FALSE) -> 0.005307855626 | C115: 9.859809148 | D115: =VLOOKUP($A115,BasinData!$1:$1048576,3,FALSE) -> 33.47232156 | E115: =VLOOKUP($A115,BasinData!$1:$1048576,4,FALSE) -> 25.05197692 | F115: =VLOOKUP($A115,BasinData!$1:$1048576,5,FALSE) -> 11.77425969 | G115: 134.148562 | H115: =VLOOKUP($A115,Sheet1!$1:$1048576,9,FALSE) -> 212.7723694 | I115: -40.82976467 | J115: =VLOOKUP($A115,Sheet1!$1:$1048576,10,FALSE) -> 199.6682665 | K115: -33.84452789 | L115: =VLOOKUP($A115,Sheet1!$1:$1048576,11,FALSE) -> 173.4600608 | M115: -18.38190301 | N115: =VLOOKUP($A115,Sheet1!$1:$1048576,12,FALSE) -> 134.1477523 | O115: 9.859809148
A116: 12035 | B116: =VLOOKUP($A116,BasinData!$1:$1048576,2,FALSE) -> 0.638320286 | C116: 14.59372501 | D116: =VLOOKUP($A116,BasinData!$1:$1048576,3,FALSE) -> 72.42746644 | E116: =VLOOKUP($A116,BasinData!$1:$1048576,4,FALSE) -> 23.68469294 | F116: =VLOOKUP($A116,BasinData!$1:$1048576,5,FALSE) -> 10.61948375 | G116: 132.3280184 | H116: =VLOOKUP($A116,Sheet1!$1:$1048576,9,FALSE) -> 209.8859669 | I116: -36.09638576 | J116: =VLOOKUP($A116,Sheet1!$1:$1048576,10,FALSE) -> 196.9596302 | K116: -29.11121576 | L116: =VLOOKUP($A116,Sheet1!$1:$1048576,11,FALSE) -> 171.1069567 | M116: -13.64859989 | N116: =VLOOKUP($A116,Sheet1!$1:$1048576,12,FALSE) -> 132.3279464 | O116: 14.59372501
A117: 12036 | B117: =VLOOKUP($A117,BasinData!$1:$1048576,2,FALSE) -> 1.468103947 | C117: 19.21643705 | D117: =VLOOKUP($A117,BasinData!$1:$1048576,3,FALSE) -> 22.72185674 | E117: =VLOOKUP($A117,BasinData!$1:$1048576,4,FALSE) -> 22.85067873 | F117: =VLOOKUP($A117,BasinData!$1:$1048576,5,FALSE) -> 9.491569502 | G117: 126.4300933 | H117: =VLOOKUP($A117,Sheet1!$1:$1048576,9,FALSE) -> 200.530339 | I117: -31.47324879 | J117: =VLOOKUP($A117,Sheet1!$1:$1048576,10,FALSE) -> 188.1801913 | K117: -24.4880071 | L117: =VLOOKUP($A117,Sheet1!$1:$1048576,11,FALSE) -> 163.4798959 | M117: -9.025406449 | N117: =VLOOKUP($A117,Sheet1!$1:$1048576,12,FALSE) -> 126.4294528 | O117: 19.21643705
A118: 12037 | B118: =VLOOKUP($A118,BasinData!$1:$1048576,2,FALSE) -> 0.7838284698 | C118: 5.586411029 | D118: =VLOOKUP($A118,BasinData!$1:$1048576,3,FALSE) -> 37.97215003 | E118: =VLOOKUP($A118,BasinData!$1:$1048576,4,FALSE) -> 20.02877698 | F118: =VLOOKUP($A118,BasinData!$1:$1048576,5,FALSE) -> 12.81691832 | G118: 145.2882006 | H118: =VLOOKUP($A118,Sheet1!$1:$1048576,9,FALSE) -> 230.4416425 | I118: -45.10351293 | J118: =VLOOKUP($A118,Sheet1!$1:$1048576,10,FALSE) -> 216.2493346 | K118: -38.11828239 | L118: =VLOOKUP($A118,Sheet1!$1:$1048576,11,FALSE) -> 187.8647187 | M118: -22.6556533 | N118: =VLOOKUP($A118,Sheet1!$1:$1048576,12,FALSE) -> 145.2877949 | O118: 5.586411029
A119: 12038 | B119: =VLOOKUP($A119,BasinData!$1:$1048576,2,FALSE) -> 0.5702440266 | C119: 12.44608653 | D119: =VLOOKUP($A119,BasinData!$1:$1048576,3,FALSE) -> 2.633471441 | E119: =VLOOKUP($A119,BasinData!$1:$1048576,4,FALSE) -> 25.07050197 | F119: =VLOOKUP($A119,BasinData!$1:$1048576,5,FALSE) -> 11.14345065 | G119: 127.8620435 | H119: =VLOOKUP($A119,Sheet1!$1:$1048576,9,FALSE) -> 202.8025597 | I119: -38.24413317 | J119: =VLOOKUP($A119,Sheet1!$1:$1048576,10,FALSE) -> 190.3124718 | K119: -31.25890416 | L119: =VLOOKUP($A119,Sheet1!$1:$1048576,11,FALSE) -> 165.3322959 | M119: -15.79628351 | N119: =VLOOKUP($A119,Sheet1!$1:$1048576,12,FALSE) -> 127.8620322 | O119: 12.44608653
A120: 12039 | B120: =VLOOKUP($A120,BasinData!$1:$1048576,2,FALSE) -> 0.1421322018 | C120: 16.14117706 | D120: =VLOOKUP($A120,BasinData!$1:$1048576,3,FALSE) -> 15.40429669 | E120: =VLOOKUP($A120,BasinData!$1:$1048576,4,FALSE) -> 41.48681055 | F120: =VLOOKUP($A120,BasinData!$1:$1048576,5,FALSE) -> 10.24193387 | G120: 82.47401098 | H120: =VLOOKUP($A120,Sheet1!$1:$1048576,9,FALSE) -> 130.8122343 | I120: -34.54876784 | J120: =VLOOKUP($A120,Sheet1!$1:$1048576,10,FALSE) -> 122.7558453 | K120: -27.56367624 | L120: =VLOOKUP($A120,Sheet1!$1:$1048576,11,FALSE) -> 106.6430673 | M120: -12.10106464 | N120: =VLOOKUP($A120,Sheet1!$1:$1048576,12,FALSE) -> 82.47390038 | O120: 16.14117706
A121: 12040 | B121: =VLOOKUP($A121,BasinData!$1:$1048576,2,FALSE) -> 0.1962935237 | C121: 34.79407286 | D121: =VLOOKUP($A121,BasinData!$1:$1048576,3,FALSE) -> 24.9648436 | E121: =VLOOKUP($A121,BasinData!$1:$1048576,4,FALSE) -> 63.8576779 | F121: =VLOOKUP($A121,BasinData!$1:$1048576,5,FALSE) -> 5.691247708 | G121: 43.00923457 | H121: =VLOOKUP($A121,Sheet1!$1:$1048576,9,FALSE) -> 68.21710578 | I121: -15.89609407 | J121: =VLOOKUP($A121,Sheet1!$1:$1048576,10,FALSE) -> 64.01578973 | K121: -8.911315543 | L121: =VLOOKUP($A121,Sheet1!$1:$1048576,11,FALSE) -> 55.61315763 | M121: 6.551021618 | N121: =VLOOKUP($A121,Sheet1!$1:$1048576,12,FALSE) -> 43.00920949 | O121: 34.79407286
A122: 12041 | B122: =VLOOKUP($A122,BasinData!$1:$1048576,2,FALSE) -> 0.3759647189 | C122: 2.762652429 | D122: =VLOOKUP($A122,BasinData!$1:$1048576,3,FALSE) -> 37.98754227 | E122: =VLOOKUP($A122,BasinData!$1:$1048576,4,FALSE) -> 29.08520455 | F122: =VLOOKUP($A122,BasinData!$1:$1048576,5,FALSE) -> 13.50585887 | G122: 115.7286098 | H122: =VLOOKUP($A122,Sheet1!$1:$1048576,9,FALSE) -> 183.5574047 | I122: -47.92741216 | J122: =VLOOKUP($A122,Sheet1!$1:$1048576,10,FALSE) -> 172.2525764 | K122: -40.94257078 | L122: =VLOOKUP($A122,Sheet1!$1:$1048576,11,FALSE) -> 149.6429197 | M122: -25.479551 | N122: =VLOOKUP($A122,Sheet1!$1:$1048576,12,FALSE) -> 115.7284347 | O122: 2.762652429
A123: 12042 | B123: =VLOOKUP($A123,BasinData!$1:$1048576,2,FALSE) -> 0.07283573807 | C123: -20.37372185 | D123: =VLOOKUP($A123,BasinData!$1:$1048576,3,FALSE) -> 59.58045766 | E123: =VLOOKUP($A123,BasinData!$1:$1048576,4,FALSE) -> 28.33717051 | F123: =VLOOKUP($A123,BasinData!$1:$1048576,5,FALSE) -> 19.1503207 | G123: 121.3078436 | H123: =VLOOKUP($A123,Sheet1!$1:$1048576,9,FALSE) -> 192.4061436 | I123: -71.06350936 | J123: =VLOOKUP($A123,Sheet1!$1:$1048576,10,FALSE) -> 180.5563442 | K123: -64.07827713 | L123: =VLOOKUP($A123,Sheet1!$1:$1048576,11,FALSE) -> 156.8567454 | M123: -48.61569231 | N123: =VLOOKUP($A123,Sheet1!$1:$1048576,12,FALSE) -> 121.3073472 | O123: -20.37372185
A124: 12043 | B124: =VLOOKUP($A124,BasinData!$1:$1048576,2,FALSE) -> 0.07409962743 | C124: 4.773046206 | D124: =VLOOKUP($A124,BasinData!$1:$1048576,3,FALSE) -> 39.75154677 | E124: =VLOOKUP($A124,BasinData!$1:$1048576,4,FALSE) -> 29.16667833 | F124: =VLOOKUP($A124,BasinData!$1:$1048576,5,FALSE) -> 13.01536465 | G124: 118.4215606 | H124: =VLOOKUP($A124,Sheet1!$1:$1048576,9,FALSE) -> 187.8285401 | I124: -45.91693239 | J124: =VLOOKUP($A124,Sheet1!$1:$1048576,10,FALSE) -> 176.2606636 | K124: -38.93219168 | L124: =VLOOKUP($A124,Sheet1!$1:$1048576,11,FALSE) -> 153.1249104 | M124: -23.46906464 | N124: =VLOOKUP($A124,Sheet1!$1:$1048576,12,FALSE) -> 118.4212807 | O124: 4.773046206
A125: 12044 | B125: =VLOOKUP($A125,BasinData!$1:$1048576,2,FALSE) -> 0.4337685573 | C125: -6.886740504 | D125: =VLOOKUP($A125,BasinData!$1:$1048576,3,FALSE) -> 7.478133707 | E125: =VLOOKUP($A125,BasinData!$1:$1048576,4,FALSE) -> 20.00758581 | F125: =VLOOKUP($A125,BasinData!$1:$1048576,5,FALSE) -> 15.86003981 | G125: 149.7150865 | H125: =VLOOKUP($A125,Sheet1!$1:$1048576,9,FALSE) -> 237.4637808 | I125: -57.57680867 | J125: =VLOOKUP($A125,Sheet1!$1:$1048576,10,FALSE) -> 222.8389974 | K125: -50.59179193 | L125: =VLOOKUP($A125,Sheet1!$1:$1048576,11,FALSE) -> 193.5894307 | M125: -35.1291896 | N125: =VLOOKUP($A125,Sheet1!$1:$1048576,12,FALSE) -> 149.7150806 | O125: -6.886740504
A126: 12045 | B126: =VLOOKUP($A126,BasinData!$1:$1048576,2,FALSE) -> 0.2733280164 | C126: 17.27818134 | D126: =VLOOKUP($A126,BasinData!$1:$1048576,3,FALSE) -> 48.94499939 | E126: =VLOOKUP($A126,BasinData!$1:$1048576,4,FALSE) -> 39.16911138 | F126: =VLOOKUP($A126,BasinData!$1:$1048576,5,FALSE) -> 9.964515261 | G126: 87.22101139 | H126: =VLOOKUP($A126,Sheet1!$1:$1048576,9,FALSE) -> 138.3413285 | I126: -33.41180095 | J126: =VLOOKUP($A126,Sheet1!$1:$1048576,10,FALSE) -> 129.821242 | K126: -26.42656485 | L126: =VLOOKUP($A126,Sheet1!$1:$1048576,11,FALSE) -> 112.7810689 | M126: -10.9639569 | N126: =VLOOKUP($A126,Sheet1!$1:$1048576,12,FALSE) -> 87.22080935 | O126: 17.27818134
A127: 12046 | B127: =VLOOKUP($A127,BasinData!$1:$1048576,2,FALSE) -> 0.7515352959 | C127: 10.08963381 | D127: =VLOOKUP($A127,BasinData!$1:$1048576,3,FALSE) -> 19.51359449 | E127: =VLOOKUP($A127,BasinData!$1:$1048576,4,FALSE) -> 28.46367606 | F127: =VLOOKUP($A127,BasinData!$1:$1048576,5,FALSE) -> 11.7181837 | G127: 114.1675238 | H127: =VLOOKUP($A127,Sheet1!$1:$1048576,9,FALSE) -> 181.0805021 | I127: -40.59991318 | J127: =VLOOKUP($A127,Sheet1!$1:$1048576,10,FALSE) -> 169.9282199 | K127: -33.61467798 | L127: =VLOOKUP($A127,Sheet1!$1:$1048576,11,FALSE) -> 147.6236553 | M127: -18.15205342 | N127: =VLOOKUP($A127,Sheet1!$1:$1048576,12,FALSE) -> 114.1668085 | O127: 10.08963381
A128: 12047 | B128: =VLOOKUP($A128,BasinData!$1:$1048576,2,FALSE) -> 0.6956229943 | C128: 2.544620647 | D128: =VLOOKUP($A128,BasinData!$1:$1048576,3,FALSE) -> 14.81474824 | E128: =VLOOKUP($A128,BasinData!$1:$1048576,4,FALSE) -> 41.91616766 | F128: =VLOOKUP($A128,BasinData!$1:$1048576,5,FALSE) -> 13.55905366 | G128: 77.75646305 | H128: =VLOOKUP($A128,Sheet1!$1:$1048576,9,FALSE) -> 123.329708 | I128: -48.1454552 | J128: =VLOOKUP($A128,Sheet1!$1:$1048576,10,FALSE) -> 115.7341485 | K128: -41.16060004 | L128: =VLOOKUP($A128,Sheet1!$1:$1048576,11,FALSE) -> 100.5430297 | M128: -25.6975911 | N128: =VLOOKUP($A128,Sheet1!$1:$1048576,12,FALSE) -> 77.75635136 | O128: 2.544620647
A129: 12048 | B129: =VLOOKUP($A129,BasinData!$1:$1048576,2,FALSE) -> 0.3722944573 | C129: 18.58248894 | D129: =VLOOKUP($A129,BasinData!$1:$1048576,3,FALSE) -> 21.11126524 | E129: =VLOOKUP($A129,BasinData!$1:$1048576,4,FALSE) -> 38.46153846 | F129: =VLOOKUP($A129,BasinData!$1:$1048576,5,FALSE) -> 9.646261318 | G129: 88.28609384 | H129: =VLOOKUP($A129,Sheet1!$1:$1048576,9,FALSE) -> 140.0304225 | I129: -32.10731926 | J129: =VLOOKUP($A129,Sheet1!$1:$1048576,10,FALSE) -> 131.406309 | K129: -25.12207351 | L129: =VLOOKUP($A129,Sheet1!$1:$1048576,11,FALSE) -> 114.1580821 | M129: -9.659470309 | N129: =VLOOKUP($A129,Sheet1!$1:$1048576,12,FALSE) -> 88.28574164 | O129: 18.58248894
A130: 12049 | B130: =VLOOKUP($A130,BasinData!$1:$1048576,2,FALSE) -> 0.001420076329 | C130: 5.883950051 | D130: =VLOOKUP($A130,BasinData!$1:$1048576,3,FALSE) -> 41.49769781 | E130: =VLOOKUP($A130,BasinData!$1:$1048576,4,FALSE) -> 29.18471942 | F130: =VLOOKUP($A130,BasinData!$1:$1048576,5,FALSE) -> 12.74432382 | G130: 119.0847112 | H130: =VLOOKUP($A130,Sheet1!$1:$1048576,9,FALSE) -> 188.8802509 | I130: -44.80595434 | J130: =VLOOKUP($A130,Sheet1!$1:$1048576,10,FALSE) -> 177.2476022 | K130: -37.82128773 | L130: =VLOOKUP($A130,Sheet1!$1:$1048576,11,FALSE) -> 153.9823047 | M130: -22.35809582 | N130: =VLOOKUP($A130,Sheet1!$1:$1048576,12,FALSE) -> 119.0843585 | O130: 5.883950051
A131: 12050 | B131: =VLOOKUP($A131,BasinData!$1:$1048576,2,FALSE) -> 0.3120439245 | C131: 22.84288521 | D131: =VLOOKUP($A131,BasinData!$1:$1048576,3,FALSE) -> 100 | E131: =VLOOKUP($A131,BasinData!$1:$1048576,4,FALSE) -> 34.80150681 | F131: =VLOOKUP($A131,BasinData!$1:$1048576,5,FALSE) -> 8.606912189 | G131: =EXP(6.1523-(0.084*B131)-(0.0091*C131)-(0.0289*E131)-(0.0373*F131)) -> 98.63406448 | H131: =VLOOKUP($A131,Sheet1!$1:$1048576,9,FALSE) -> 156.4436157 | I131: -27.84711487 | J131: =VLOOKUP($A131,Sheet1!$1:$1048576,10,FALSE) -> 146.8086559 | K131: -20.86188458 | L131: =VLOOKUP($A131,Sheet1!$1:$1048576,11,FALSE) -> 127.5387363 | M131: -5.399329639 | N131: =VLOOKUP($A131,Sheet1!$1:$1048576,12,FALSE) -> 98.63385678 | O131: 22.84288521
A132: 12051 | B132: =VLOOKUP($A132,BasinData!$1:$1048576,2,FALSE) -> 0.1759539673 | C132: 9.898221751 | D132: =VLOOKUP($A132,BasinData!$1:$1048576,3,FALSE) -> 20.76758959 | E132: =VLOOKUP($A132,BasinData!$1:$1048576,4,FALSE) -> 38.22525597 | F132: =VLOOKUP($A132,BasinData!$1:$1048576,5,FALSE) -> 11.76488723 | G132: 90.36941292 | H132: =VLOOKUP($A132,Sheet1!$1:$1048576,9,FALSE) -> 143.3344725 | I132: -40.79134761 | J132: =VLOOKUP($A132,Sheet1!$1:$1048576,10,FALSE) -> 134.5068711 | K132: -33.80611112 | L132: =VLOOKUP($A132,Sheet1!$1:$1048576,11,FALSE) -> 116.8516683 | M132: -18.34348629 | N132: =VLOOKUP($A132,Sheet1!$1:$1048576,12,FALSE) -> 90.36886401 | O132: 9.898221751
A133: 12052 | B133: =VLOOKUP($A133,BasinData!$1:$1048576,2,FALSE) -> 0.6333118583 | C133: 7.386796975 | D133: =VLOOKUP($A133,BasinData!$1:$1048576,3,FALSE) -> 10.75362734 | E133: =VLOOKUP($A133,BasinData!$1:$1048576,4,FALSE) -> 13.88750622 | F133: =VLOOKUP($A133,BasinData!$1:$1048576,5,FALSE) -> 12.37765133 | G133: 175.712059 | H133: =VLOOKUP($A133,Sheet1!$1:$1048576,9,FALSE) -> 278.6966106 | I133: -43.30297458 | J133: =VLOOKUP($A133,Sheet1!$1:$1048576,10,FALSE) -> 261.5324033 | K133: -36.31777049 | L133: =VLOOKUP($A133,Sheet1!$1:$1048576,11,FALSE) -> 227.2039888 | M133: -20.85514281 | N133: =VLOOKUP($A133,Sheet1!$1:$1048576,12,FALSE) -> 175.7113669 | O133: 7.386796975
A134: 12053 | B134: =VLOOKUP($A134,BasinData!$1:$1048576,2,FALSE) -> 0.217623159 | C134: 12.5726465 | D134: =VLOOKUP($A134,BasinData!$1:$1048576,3,FALSE) -> 38.362157 | E134: =VLOOKUP($A134,BasinData!$1:$1048576,4,FALSE) -> 35.95345185 | F134: =VLOOKUP($A134,BasinData!$1:$1048576,5,FALSE) -> 11.11257374 | G134: 96.16397551 | H134: =VLOOKUP($A134,Sheet1!$1:$1048576,9,FALSE) -> 152.5261101 | I134: -38.11757169 | J134: =VLOOKUP($A134,Sheet1!$1:$1048576,10,FALSE) -> 143.1324193 | K134: -31.13234276 | L134: =VLOOKUP($A134,Sheet1!$1:$1048576,11,FALSE) -> 124.3450379 | M134: -15.66972236 | N134: =VLOOKUP($A134,Sheet1!$1:$1048576,12,FALSE) -> 96.16396569 | O134: 12.5726465
A135: 12054 | B135: =VLOOKUP($A135,BasinData!$1:$1048576,2,FALSE) -> 0.183108873 | C135: 25.62331736 | D135: =VLOOKUP($A135,BasinData!$1:$1048576,3,FALSE) -> 5.319165558 | E135: =VLOOKUP($A135,BasinData!$1:$1048576,4,FALSE) -> 42.66236096 | F135: =VLOOKUP($A135,BasinData!$1:$1048576,5,FALSE) -> 7.928572177 | G135: 79.44529667 | H135: =VLOOKUP($A135,Sheet1!$1:$1048576,9,FALSE) -> 126.0082677 | I135: -25.06666427 | J135: =VLOOKUP($A135,Sheet1!$1:$1048576,10,FALSE) -> 118.2477427 | K135: -18.08143626 | L135: =VLOOKUP($A135,Sheet1!$1:$1048576,11,FALSE) -> 102.7266926 | M135: -2.61880412 | N135: =VLOOKUP($A135,Sheet1!$1:$1048576,12,FALSE) -> 79.44511748 | O135: 25.62331736
A136: 12055 | B136: =VLOOKUP($A136,BasinData!$1:$1048576,2,FALSE) -> 0.807202015 | C136: 35.40824737 | D136: =VLOOKUP($A136,BasinData!$1:$1048576,3,FALSE) -> 29.49624637 | E136: =VLOOKUP($A136,BasinData!$1:$1048576,4,FALSE) -> 40.77773814 | F136: =VLOOKUP($A136,BasinData!$1:$1048576,5,FALSE) -> 5.541418339 | G136: 79.60751066 | H136: =VLOOKUP($A136,Sheet1!$1:$1048576,9,FALSE) -> 126.2658112 | I136: -15.28196272 | J136: =VLOOKUP($A136,Sheet1!$1:$1048576,10,FALSE) -> 118.4894247 | K136: -8.297273972 | L136: =VLOOKUP($A136,Sheet1!$1:$1048576,11,FALSE) -> 102.9366517 | M136: 7.165903142 | N136: =VLOOKUP($A136,Sheet1!$1:$1048576,12,FALSE) -> 79.6074923 | O136: 35.40824737
A137: 12056 | B137: =VLOOKUP($A137,BasinData!$1:$1048576,2,FALSE) -> 0.1550653809 | C137: 34.50821096 | D137: =VLOOKUP($A137,BasinData!$1:$1048576,3,FALSE) -> 14.02599499 | E137: =VLOOKUP($A137,BasinData!$1:$1048576,4,FALSE) -> 40.64926798 | F137: =VLOOKUP($A137,BasinData!$1:$1048576,5,FALSE) -> 5.760982005 | G137: 84.40286232 | H137: =VLOOKUP($A137,Sheet1!$1:$1048576,9,FALSE) -> 133.8716576 | I137: -16.181927 | J137: =VLOOKUP($A137,Sheet1!$1:$1048576,10,FALSE) -> 125.6268466 | K137: -9.197109042 | L137: =VLOOKUP($A137,Sheet1!$1:$1048576,11,FALSE) -> 109.1372246 | M137: 6.265483734 | N137: =VLOOKUP($A137,Sheet1!$1:$1048576,12,FALSE) -> 84.40279165 | O137: 34.50821096
A138: 12057 | B138: =VLOOKUP($A138,BasinData!$1:$1048576,2,FALSE) -> 0.07557003257 | C138: 10.17519803 | D138: =VLOOKUP($A138,BasinData!$1:$1048576,3,FALSE) -> 40.31868345 | E138: =VLOOKUP($A138,BasinData!$1:$1048576,4,FALSE) -> 27.57218918 | F138: =VLOOKUP($A138,BasinData!$1:$1048576,5,FALSE) -> 11.69730645 | G138: 123.9913763 | H138: =VLOOKUP($A138,Sheet1!$1:$1048576,9,FALSE) -> 196.6620451 | I138: -40.51433886 | J138: =VLOOKUP($A138,Sheet1!$1:$1048576,10,FALSE) -> 184.5501357 | K138: -33.52910418 | L138: =VLOOKUP($A138,Sheet1!$1:$1048576,11,FALSE) -> 160.3263169 | M138: -18.06647974 | N138: =VLOOKUP($A138,Sheet1!$1:$1048576,12,FALSE) -> 123.9905886 | O138: 10.17519803
A139: 12058 | B139: =VLOOKUP($A139,BasinData!$1:$1048576,2,FALSE) -> 0.09683177153 | C139: 19.10565778 | D139: =VLOOKUP($A139,BasinData!$1:$1048576,3,FALSE) -> 51.51376846 | E139: =VLOOKUP($A139,BasinData!$1:$1048576,4,FALSE) -> 36.69064748 | F139: =VLOOKUP($A139,BasinData!$1:$1048576,5,FALSE) -> 9.5186015 | G139: 95.09734938 | H139: =VLOOKUP($A139,Sheet1!$1:$1048576,9,FALSE) -> 150.8336113 | I139: -31.58405091 | J139: =VLOOKUP($A139,Sheet1!$1:$1048576,10,FALSE) -> 141.5441573 | K139: -24.59880858 | L139: =VLOOKUP($A139,Sheet1!$1:$1048576,11,FALSE) -> 122.9652491 | M139: -9.136207473 | N139: =VLOOKUP($A139,Sheet1!$1:$1048576,12,FALSE) -> 95.09688682 | O139: 19.10565778
A140: 12059 | B140: =VLOOKUP($A140,BasinData!$1:$1048576,2,FALSE) -> 0.08315565032 | C140: 9.526867796 | D140: =VLOOKUP($A140,BasinData!$1:$1048576,3,FALSE) -> 36.71189497 | E140: =VLOOKUP($A140,BasinData!$1:$1048576,4,FALSE) -> 30.69100884 | F140: =VLOOKUP($A140,BasinData!$1:$1048576,5,FALSE) -> 11.85549529 | G140: 113.2321684 | H140: =VLOOKUP($A140,Sheet1!$1:$1048576,9,FALSE) -> 179.5970389 | I140: -41.16274425 | J140: =VLOOKUP($A140,Sheet1!$1:$1048576,10,FALSE) -> 168.5361193 | K140: -34.17750459 | L140: =VLOOKUP($A140,Sheet1!$1:$1048576,11,FALSE) -> 146.4142801 | M140: -18.71487927 | N140: =VLOOKUP($A140,Sheet1!$1:$1048576,12,FALSE) -> 113.2315213 | O140: 9.526867796
A141: 12060 | B141: =VLOOKUP($A141,BasinData!$1:$1048576,2,FALSE) -> 0.003947368421 | C141: 5.12284353 | D141: =VLOOKUP($A141,BasinData!$1:$1048576,3,FALSE) -> 42.88377772 | E141: =VLOOKUP($A141,BasinData!$1:$1048576,4,FALSE) -> 28.62012231 | F141: =VLOOKUP($A141,BasinData!$1:$1048576,5,FALSE) -> 12.93002059 | G141: 121.0179936 | H141: =VLOOKUP($A141,Sheet1!$1:$1048576,9,FALSE) -> 191.9467107 | I141: -45.56711095 | J141: =VLOOKUP($A141,Sheet1!$1:$1048576,10,FALSE) -> 180.1252066 | K141: -38.58239504 | L141: =VLOOKUP($A141,Sheet1!$1:$1048576,11,FALSE) -> 156.4821984 | M141: -23.119248 | N141: =VLOOKUP($A141,Sheet1!$1:$1048576,12,FALSE) -> 121.017686 | O141: 5.12284353
A142: 12061 | B142: =VLOOKUP($A142,BasinData!$1:$1048576,2,FALSE) -> 0.07464675819 | C142: 13.50664644 | D142: =VLOOKUP($A142,BasinData!$1:$1048576,3,FALSE) -> 87.32812304 | E142: =VLOOKUP($A142,BasinData!$1:$1048576,4,FALSE) -> 37.27556596 | F142: =VLOOKUP($A142,BasinData!$1:$1048576,5,FALSE) -> 10.88470399 | G142: 93.67729785 | H142: =VLOOKUP($A142,Sheet1!$1:$1048576,9,FALSE) -> 148.5819584 | I142: -37.18326307 | J142: =VLOOKUP($A142,Sheet1!$1:$1048576,10,FALSE) -> 139.4311779 | K142: -30.19832724 | L142: =VLOOKUP($A142,Sheet1!$1:$1048576,11,FALSE) -> 121.1296167 | M142: -14.73570879 | N142: =VLOOKUP($A142,Sheet1!$1:$1048576,12,FALSE) -> 93.67727497 | O142: 13.50664644
A143: 12062 | B143: =VLOOKUP($A143,BasinData!$1:$1048576,2,FALSE) -> 0 | C143: 11.36563882 | D143: =VLOOKUP($A143,BasinData!$1:$1048576,3,FALSE) -> 38.76726341 | E143: =VLOOKUP($A143,BasinData!$1:$1048576,4,FALSE) -> 28.28571104 | F143: =VLOOKUP($A143,BasinData!$1:$1048576,5,FALSE) -> 11.40704698 | G143: 122.2334555 | H143: =VLOOKUP($A143,Sheet1!$1:$1048576,9,FALSE) -> 193.8750442 | I143: -39.32458968 | J143: =VLOOKUP($A143,Sheet1!$1:$1048576,10,FALSE) -> 181.934779 | K143: -32.33935935 | L143: =VLOOKUP($A143,Sheet1!$1:$1048576,11,FALSE) -> 158.0542486 | M143: -16.87673675 | N143: =VLOOKUP($A143,Sheet1!$1:$1048576,12,FALSE) -> 122.233453 | O143: 11.36563882
A144: 12063 | B144: =VLOOKUP($A144,BasinData!$1:$1048576,2,FALSE) -> 0.004934875819 | C144: -1.729594845 | D144: =VLOOKUP($A144,BasinData!$1:$1048576,3,FALSE) -> 53.54820974 | E144: =VLOOKUP($A144,BasinData!$1:$1048576,4,FALSE) -> 29.01986038 | F144: =VLOOKUP($A144,BasinData!$1:$1048576,5,FALSE) -> 14.60185166 | G144: 119.6178109 | H144: =VLOOKUP($A144,Sheet1!$1:$1048576,9,FALSE) -> 189.7262804 | I144: -52.4196643 | J144: =VLOOKUP($A144,Sheet1!$1:$1048576,10,FALSE) -> 178.0415269 | K144: -45.43474354 | L144: =VLOOKUP($A144,Sheet1!$1:$1048576,11,FALSE) -> 154.6720199 | M144: -29.97231922 | N144: =VLOOKUP($A144,Sheet1!$1:$1048576,12,FALSE) -> 119.6177593 | O144: -1.729594845
A145: 12064 | B145: =VLOOKUP($A145,BasinData!$1:$1048576,2,FALSE) -> 0.5916631515 | C145: -14.86458851 | D145: =VLOOKUP($A145,BasinData!$1:$1048576,3,FALSE) -> 1.668921081 | E145: =VLOOKUP($A145,BasinData!$1:$1048576,4,FALSE) -> 17.13810316 | F145: =VLOOKUP($A145,BasinData!$1:$1048576,5,FALSE) -> 17.80621413 | G145: 160.5178389 | H145: =VLOOKUP($A145,Sheet1!$1:$1048576,9,FALSE) -> 254.5965187 | I145: -65.55410765 | J145: =VLOOKUP($A145,Sheet1!$1:$1048576,10,FALSE) -> 238.9165741 | K145: -58.56891735 | L145: =VLOOKUP($A145,Sheet1!$1:$1048576,11,FALSE) -> 207.5566849 | M145: -43.10634464 | N145: =VLOOKUP($A145,Sheet1!$1:$1048576,12,FALSE) -> 160.5168511 | O145: -14.86458851
A146: 12065 | B146: =VLOOKUP($A146,BasinData!$1:$1048576,2,FALSE) -> 0.3219328522 | C146: 22.45303453 | D146: =VLOOKUP($A146,BasinData!$1:$1048576,3,FALSE) -> 39.21442575 | E146: =VLOOKUP($A146,BasinData!$1:$1048576,4,FALSE) -> 38.14766233 | F146: =VLOOKUP($A146,BasinData!$1:$1048576,5,FALSE) -> 8.702041357 | G146: 89.46803784 | H146: =VLOOKUP($A146,Sheet1!$1:$1048576,9,FALSE) -> 141.9054652 | I146: -28.23704048 | J146: =VLOOKUP($A146,Sheet1!$1:$1048576,10,FALSE) -> 133.1658727 | K146: -21.2518096 | L146: =VLOOKUP($A146,Sheet1!$1:$1048576,11,FALSE) -> 115.6866876 | M146: -5.78922464 | N146: =VLOOKUP($A146,Sheet1!$1:$1048576,12,FALSE) -> 89.46790999 | O146: 22.45303453
A147: 12066 | B147: =VLOOKUP($A147,BasinData!$1:$1048576,2,FALSE) -> 0.057787453 | C147: 21.97699639 | D147: =VLOOKUP($A147,BasinData!$1:$1048576,3,FALSE) -> 35.5554547 | E147: =VLOOKUP($A147,BasinData!$1:$1048576,4,FALSE) -> 40.26725679 | F147: =VLOOKUP($A147,BasinData!$1:$1048576,5,FALSE) -> 8.81819521 | G147: 86.04004129 | H147: =VLOOKUP($A147,Sheet1!$1:$1048576,9,FALSE) -> 136.4683926 | I147: -28.71314446 | J147: =VLOOKUP($A147,Sheet1!$1:$1048576,10,FALSE) -> 128.0636553 | K147: -21.72791271 | L147: =VLOOKUP($A147,Sheet1!$1:$1048576,11,FALSE) -> 111.2541809 | M147: -6.265325143 | N147: =VLOOKUP($A147,Sheet1!$1:$1048576,12,FALSE) -> 86.03996925 | O147: 21.97699639
A148: 12067 | B148: =VLOOKUP($A148,BasinData!$1:$1048576,2,FALSE) -> 0.2398087156 | C148: 31.60562565 | D148: =VLOOKUP($A148,BasinData!$1:$1048576,3,FALSE) -> 23.24404649 | E148: =VLOOKUP($A148,BasinData!$1:$1048576,4,FALSE) -> 42.14596423 | F148: =VLOOKUP($A148,BasinData!$1:$1048576,5,FALSE) -> 6.469131403 | G148: 80.25651213 | H148: =VLOOKUP($A148,Sheet1!$1:$1048576,9,FALSE) -> 127.2951747 | I148: -19.08455061 | J148: =VLOOKUP($A148,Sheet1!$1:$1048576,10,FALSE) -> 119.4553924 | K148: -12.09944582 | L148: =VLOOKUP($A148,Sheet1!$1:$1048576,11,FALSE) -> 103.7758277 | M148: 3.363282161 | N148: =VLOOKUP($A148,Sheet1!$1:$1048576,12,FALSE) -> 80.25648075 | O148: 31.60562565
A149: 12068 | B149: =VLOOKUP($A149,BasinData!$1:$1048576,2,FALSE) -> 0.06808090775 | C149: 14.1860926 | D149: =VLOOKUP($A149,BasinData!$1:$1048576,3,FALSE) -> 40.70408337 | E149: =VLOOKUP($A149,BasinData!$1:$1048576,4,FALSE) -> 33.8295053 | F149: =VLOOKUP($A149,BasinData!$1:$1048576,5,FALSE) -> 10.71893651 | G149: 103.5442157 | H149: =VLOOKUP($A149,Sheet1!$1:$1048576,9,FALSE) -> 164.2318911 | I149: -36.50397431 | J149: =VLOOKUP($A149,Sheet1!$1:$1048576,10,FALSE) -> 154.1172714 | K149: -29.51886275 | L149: =VLOOKUP($A149,Sheet1!$1:$1048576,11,FALSE) -> 133.8880321 | M149: -14.05624587 | N149: =VLOOKUP($A149,Sheet1!$1:$1048576,12,FALSE) -> 103.5441731 | O149: 14.1860926
A150: 12069 | B150: =VLOOKUP($A150,BasinData!$1:$1048576,2,FALSE) -> 0.1525040083 | C150: 8.778703532 | D150: =VLOOKUP($A150,BasinData!$1:$1048576,3,FALSE) -> 43.69076642 | E150: =VLOOKUP($A150,BasinData!$1:$1048576,4,FALSE) -> 24.9283739 | F150: =VLOOKUP($A150,BasinData!$1:$1048576,5,FALSE) -> 12.03804145 | G150: 132.9741182 | H150: =VLOOKUP($A150,Sheet1!$1:$1048576,9,FALSE) -> 210.9098005 | I150: -41.9109926 | J150: =VLOOKUP($A150,Sheet1!$1:$1048576,10,FALSE) -> 197.9204085 | K150: -34.92574319 | L150: =VLOOKUP($A150,Sheet1!$1:$1048576,11,FALSE) -> 171.9416244 | M150: -19.46311695 | N150: =VLOOKUP($A150,Sheet1!$1:$1048576,12,FALSE) -> 132.9734483 | O150: 8.778703532
A151: 12070 | B151: =VLOOKUP($A151,BasinData!$1:$1048576,2,FALSE) -> 1.223852667 | C151: 34.26023766 | D151: =VLOOKUP($A151,BasinData!$1:$1048576,3,FALSE) -> 17.8134671 | E151: =VLOOKUP($A151,BasinData!$1:$1048576,4,FALSE) -> 18.47159787 | F151: =VLOOKUP($A151,BasinData!$1:$1048576,5,FALSE) -> 5.821472035 | G151: 146.4608457 | H151: =VLOOKUP($A151,Sheet1!$1:$1048576,9,FALSE) -> 232.3019644 | I151: -16.42986911 | J151: =VLOOKUP($A151,Sheet1!$1:$1048576,10,FALSE) -> 217.995084 | K151: -9.445018267 | L151: =VLOOKUP($A151,Sheet1!$1:$1048576,11,FALSE) -> 189.3813233 | M151: 6.017734598 | N151: =VLOOKUP($A151,Sheet1!$1:$1048576,12,FALSE) -> 146.4606822 | O151: 34.26023766
A152: 12071 | B152: =VLOOKUP($A152,BasinData!$1:$1048576,2,FALSE) -> 0.9226112548 | C152: 33.47251106 | D152: =VLOOKUP($A152,BasinData!$1:$1048576,3,FALSE) -> 14.42890103 | E152: =VLOOKUP($A152,BasinData!$1:$1048576,4,FALSE) -> 20.46541281 | F152: =VLOOKUP($A152,BasinData!$1:$1048576,5,FALSE) -> 6.013615886 | G152: 141.803529 | H152: =VLOOKUP($A152,Sheet1!$1:$1048576,9,FALSE) -> 224.9146783 | I152: -17.21743494 | J152: =VLOOKUP($A152,Sheet1!$1:$1048576,10,FALSE) -> 211.0627619 | K152: -10.23250096 | L152: =VLOOKUP($A152,Sheet1!$1:$1048576,11,FALSE) -> 183.3589291 | M152: 5.230379973 | N152: =VLOOKUP($A152,Sheet1!$1:$1048576,12,FALSE) -> 141.8031798 | O152: 33.47251106
A153: 12072 | B153: =VLOOKUP($A153,BasinData!$1:$1048576,2,FALSE) -> 0.6336136681 | C153: 32.71301339 | D153: =VLOOKUP($A153,BasinData!$1:$1048576,3,FALSE) -> 20.59831228 | E153: =VLOOKUP($A153,BasinData!$1:$1048576,4,FALSE) -> 28.05903825 | F153: =VLOOKUP($A153,BasinData!$1:$1048576,5,FALSE) -> 6.198850359 | G153: 116.6601149 | H153: =VLOOKUP($A153,Sheet1!$1:$1048576,9,FALSE) -> 185.0342874 | I153: -17.97670441 | J153: =VLOOKUP($A153,Sheet1!$1:$1048576,10,FALSE) -> 173.6385017 | K153: -10.99168056 | L153: =VLOOKUP($A153,Sheet1!$1:$1048576,11,FALSE) -> 150.8469302 | M153: 4.471129233 | N153: =VLOOKUP($A153,Sheet1!$1:$1048576,12,FALSE) -> 116.659573 | O153: 32.71301339
A154: 12073 | B154: =VLOOKUP($A154,BasinData!$1:$1048576,2,FALSE) -> 0.2476635514 | C154: 33.80786621 | D154: =VLOOKUP($A154,BasinData!$1:$1048576,3,FALSE) -> 15.19422789 | E154: =VLOOKUP($A154,BasinData!$1:$1048576,4,FALSE) -> 20.79921389 | F154: =VLOOKUP($A154,BasinData!$1:$1048576,5,FALSE) -> 5.931817962 | G154: 148.6345469 | H154: =VLOOKUP($A154,Sheet1!$1:$1048576,9,FALSE) -> 235.7495185 | I154: -16.88209144 | J154: =VLOOKUP($A154,Sheet1!$1:$1048576,10,FALSE) -> 221.2303121 | K154: -9.897258309 | L154: =VLOOKUP($A154,Sheet1!$1:$1048576,11,FALSE) -> 192.1918994 | M154: 5.565648441 | N154: =VLOOKUP($A154,Sheet1!$1:$1048576,12,FALSE) -> 148.6342804 | O154: 33.80786621
A155: 12074 | B155: =VLOOKUP($A155,BasinData!$1:$1048576,2,FALSE) -> 0.1997016198 | C155: 31.05428643 | D155: =VLOOKUP($A155,BasinData!$1:$1048576,3,FALSE) -> 17.47419664 | E155: =VLOOKUP($A155,BasinData!$1:$1048576,4,FALSE) -> 28.15553046 | F155: =VLOOKUP($A155,BasinData!$1:$1048576,5,FALSE) -> 6.603609678 | G155: 120.6533534 | H155: =VLOOKUP($A155,Sheet1!$1:$1048576,9,FALSE) -> 191.3685466 | I155: -19.63575227 | J155: =VLOOKUP($A155,Sheet1!$1:$1048576,10,FALSE) -> 179.5826501 | K155: -12.65062437 | L155: =VLOOKUP($A155,Sheet1!$1:$1048576,11,FALSE) -> 156.0108572 | M155: 2.812072287 | N155: =VLOOKUP($A155,Sheet1!$1:$1048576,12,FALSE) -> 120.6531678 | O155: 31.05428643
A156: 12075 | B156: =VLOOKUP($A156,BasinData!$1:$1048576,2,FALSE) -> 0.04295253564 | C156: 5.107164458 | D156: =VLOOKUP($A156,BasinData!$1:$1048576,3,FALSE) -> 38.25865492 | E156: =VLOOKUP($A156,BasinData!$1:$1048576,4,FALSE) -> 24.39483297 | F156: =VLOOKUP($A156,BasinData!$1:$1048576,5,FALSE) -> 12.933846 | G156: 136.288459 | H156: =VLOOKUP($A156,Sheet1!$1:$1048576,9,FALSE) -> 216.1672066 | I156: -45.58279107 | J156: =VLOOKUP($A156,Sheet1!$1:$1048576,10,FALSE) -> 202.8540244 | K156: -38.59807409 | L156: =VLOOKUP($A156,Sheet1!$1:$1048576,11,FALSE) -> 176.2276602 | M156: -23.13492796 | N156: =VLOOKUP($A156,Sheet1!$1:$1048576,12,FALSE) -> 136.2881137 | O156: 5.107164458
A157: 12076 | B157: =VLOOKUP($A157,BasinData!$1:$1048576,2,FALSE) -> 0.7382581762 | C157: 33.19494196 | D157: =VLOOKUP($A157,BasinData!$1:$1048576,3,FALSE) -> 23.18184713 | E157: =VLOOKUP($A157,BasinData!$1:$1048576,4,FALSE) -> 24.38932732 | F157: =VLOOKUP($A157,BasinData!$1:$1048576,5,FALSE) -> 6.081315565 | G157: 128.5769697 | H157: =VLOOKUP($A157,Sheet1!$1:$1048576,9,FALSE) -> 203.9358844 | I157: -17.49475441 | J157: =VLOOKUP($A157,Sheet1!$1:$1048576,10,FALSE) -> 191.3759979 | K157: -10.50996503 | L157: =VLOOKUP($A157,Sheet1!$1:$1048576,11,FALSE) -> 166.256225 | M157: 4.952888407 | N157: =VLOOKUP($A157,Sheet1!$1:$1048576,12,FALSE) -> 128.5765656 | O157: 33.19494196
A158: 12077 | B158: =VLOOKUP($A158,BasinData!$1:$1048576,2,FALSE) -> 0.01890756303 | C158: -4.656660488 | D158: =VLOOKUP($A158,BasinData!$1:$1048576,3,FALSE) -> 52.25440152 | E158: =VLOOKUP($A158,BasinData!$1:$1048576,4,FALSE) -> 27.21767282 | F158: =VLOOKUP($A158,BasinData!$1:$1048576,5,FALSE) -> 15.31596942 | G158: 125.8651343 | H158: =VLOOKUP($A158,Sheet1!$1:$1048576,9,FALSE) -> 199.6352435 | I158: -55.34688602 | J158: =VLOOKUP($A158,Sheet1!$1:$1048576,10,FALSE) -> 187.3402224 | K158: -48.36175135 | L158: =VLOOKUP($A158,Sheet1!$1:$1048576,11,FALSE) -> 162.7501803 | M158: -32.89910551 | N158: =VLOOKUP($A158,Sheet1!$1:$1048576,12,FALSE) -> 125.8651171 | O158: -4.656660488
A159: 12078 | B159: =VLOOKUP($A159,BasinData!$1:$1048576,2,FALSE) -> 0.2695652174 | C159: 22.20591923 | D159: =VLOOKUP($A159,BasinData!$1:$1048576,3,FALSE) -> 41.93897651 | E159: =VLOOKUP($A159,BasinData!$1:$1048576,4,FALSE) -> 50.83429704 | F159: =VLOOKUP($A159,BasinData!$1:$1048576,5,FALSE) -> 8.762338546 | G159: 62.27974449 | H159: =VLOOKUP($A159,Sheet1!$1:$1048576,9,FALSE) -> 98.78208238 | I159: -28.4841931 | J159: =VLOOKUP($A159,Sheet1!$1:$1048576,10,FALSE) -> 92.69834805 | K159: -21.49896179 | L159: =VLOOKUP($A159,Sheet1!$1:$1048576,11,FALSE) -> 80.5308794 | M159: -6.036375463 | N159: =VLOOKUP($A159,Sheet1!$1:$1048576,12,FALSE) -> 62.27967642 | O159: 22.20591923
A160: 12079 | B160: =VLOOKUP($A160,BasinData!$1:$1048576,2,FALSE) -> 0.5204982146 | C160: 21.21258166 | D160: =VLOOKUP($A160,BasinData!$1:$1048576,3,FALSE) -> 100 | E160: =VLOOKUP($A160,BasinData!$1:$1048576,4,FALSE) -> 64.3776824 | F160: =VLOOKUP($A160,BasinData!$1:$1048576,5,FALSE) -> 9.0047025 | G160: 41.22946753 | H160: =VLOOKUP($A160,Sheet1!$1:$1048576,9,FALSE) -> 65.39422993 | I160: -29.47762113 | J160: =VLOOKUP($A160,Sheet1!$1:$1048576,10,FALSE) -> 61.36676754 | K160: -22.49238758 | L160: =VLOOKUP($A160,Sheet1!$1:$1048576,11,FALSE) -> 53.31184277 | M160: -7.029796043 | N160: =VLOOKUP($A160,Sheet1!$1:$1048576,12,FALSE) -> 41.2294556 | O160: 21.21258166
A161: 12080 | B161: =VLOOKUP($A161,BasinData!$1:$1048576,2,FALSE) -> 0.5151760252 | C161: 22.31254414 | D161: =VLOOKUP($A161,BasinData!$1:$1048576,3,FALSE) -> 3.375647197 | E161: =VLOOKUP($A161,BasinData!$1:$1048576,4,FALSE) -> 41.31101813 | F161: =VLOOKUP($A161,BasinData!$1:$1048576,5,FALSE) -> 8.73632183 | G161: 80.33680294 | H161: =VLOOKUP($A161,Sheet1!$1:$1048576,9,FALSE) -> 127.4224174 | I161: -28.37755297 | J161: =VLOOKUP($A161,Sheet1!$1:$1048576,10,FALSE) -> 119.5747985 | K161: -21.39232185 | L161: =VLOOKUP($A161,Sheet1!$1:$1048576,11,FALSE) -> 103.8795608 | M161: -5.929736113 | N161: =VLOOKUP($A161,Sheet1!$1:$1048576,12,FALSE) -> 80.33670413 | O161: 22.31254414
A162: 12081 | B162: =VLOOKUP($A162,BasinData!$1:$1048576,2,FALSE) -> 0.09756405402 | C162: 5.187451099 | D162: =VLOOKUP($A162,BasinData!$1:$1048576,3,FALSE) -> 29.79515126 | E162: =VLOOKUP($A162,BasinData!$1:$1048576,4,FALSE) -> 24.5470636 | F162: =VLOOKUP($A162,BasinData!$1:$1048576,5,FALSE) -> 12.91425751 | G162: 135.0691502 | H162: =VLOOKUP($A162,Sheet1!$1:$1048576,9,FALSE) -> 214.2332512 | I162: -45.50249907 | J162: =VLOOKUP($A162,Sheet1!$1:$1048576,10,FALSE) -> 201.0391764 | K162: -38.51778753 | L162: =VLOOKUP($A162,Sheet1!$1:$1048576,11,FALSE) -> 174.6510268 | M162: -23.05463675 | N162: =VLOOKUP($A162,Sheet1!$1:$1048576,12,FALSE) -> 135.0688024 | O162: 5.187451099
A163: 12082 | B163: =VLOOKUP($A163,BasinData!$1:$1048576,2,FALSE) -> 0.5133246538 | C163: -8.076666674 | D163: =VLOOKUP($A163,BasinData!$1:$1048576,3,FALSE) -> 100 | E163: =VLOOKUP($A163,BasinData!$1:$1048576,4,FALSE) -> 23.04840371 | F163: =VLOOKUP($A163,BasinData!$1:$1048576,5,FALSE) -> 16.15034415 | G163: 136.2064421 | H163: =VLOOKUP($A163,Sheet1!$1:$1048576,9,FALSE) -> 216.0376635 | I163: -58.76685291 | J163: =VLOOKUP($A163,Sheet1!$1:$1048576,10,FALSE) -> 202.7324596 | K163: -51.78170055 | L163: =VLOOKUP($A163,Sheet1!$1:$1048576,11,FALSE) -> 176.1220518 | M163: -36.31911499 | N163: =VLOOKUP($A163,Sheet1!$1:$1048576,12,FALSE) -> 136.20644 | O163: -8.076666674
A164: 12083 | B164: =VLOOKUP($A164,BasinData!$1:$1048576,2,FALSE) -> 1.310876644 | C164: 35.05221056 | D164: =VLOOKUP($A164,BasinData!$1:$1048576,3,FALSE) -> 5.353177376 | E164: =VLOOKUP($A164,BasinData!$1:$1048576,4,FALSE) -> 18.15060655 | F164: =VLOOKUP($A164,BasinData!$1:$1048576,5,FALSE) -> 5.628275167 | G164: 146.74906 | H164: =VLOOKUP($A164,Sheet1!$1:$1048576,9,FALSE) -> 232.7592672 | I164: -15.63797731 | J164: =VLOOKUP($A164,Sheet1!$1:$1048576,10,FALSE) -> 218.4242227 | K164: -8.653235706 | L164: =VLOOKUP($A164,Sheet1!$1:$1048576,11,FALSE) -> 189.7541338 | M164: 6.809886052 | N164: =VLOOKUP($A164,Sheet1!$1:$1048576,12,FALSE) -> 146.7490004 | O164: 35.05221056
A165: 12084 | B165: =VLOOKUP($A165,BasinData!$1:$1048576,2,FALSE) -> 0.9124039387 | C165: 26.83173989 | D165: =VLOOKUP($A165,BasinData!$1:$1048576,3,FALSE) -> 7.947729098 | E165: =VLOOKUP($A165,BasinData!$1:$1048576,4,FALSE) -> 18.15116606 | F165: =VLOOKUP($A165,BasinData!$1:$1048576,5,FALSE) -> 7.633777874 | G165: 151.7418349 | H165: =VLOOKUP($A165,Sheet1!$1:$1048576,9,FALSE) -> 240.678079 | I165: -23.85833131 | J165: =VLOOKUP($A165,Sheet1!$1:$1048576,10,FALSE) -> 225.8553353 | K165: -16.8731037 | L165: =VLOOKUP($A165,Sheet1!$1:$1048576,11,FALSE) -> 196.2098479 | M165: -1.410472512 | N165: =VLOOKUP($A165,Sheet1!$1:$1048576,12,FALSE) -> 151.7416167 | O165: 26.83173989
A166: 12085 | B166: =VLOOKUP($A166,BasinData!$1:$1048576,2,FALSE) -> 0.7404640362 | C166: 5.183701131 | D166: =VLOOKUP($A166,BasinData!$1:$1048576,3,FALSE) -> 10.9670795 | E166: =VLOOKUP($A166,BasinData!$1:$1048576,4,FALSE) -> 18.18505338 | F166: =VLOOKUP($A166,BasinData!$1:$1048576,5,FALSE) -> 12.91517244 | G166: 153.7988171 | H166: =VLOOKUP($A166,Sheet1!$1:$1048576,9,FALSE) -> 243.9403863 | I166: -45.50624929 | J166: =VLOOKUP($A166,Sheet1!$1:$1048576,10,FALSE) -> 228.9167255 | K166: -38.52101628 | L166: =VLOOKUP($A166,Sheet1!$1:$1048576,11,FALSE) -> 198.8694038 | M166: -23.05838693 | N166: =VLOOKUP($A166,Sheet1!$1:$1048576,12,FALSE) -> 153.7984213 | O166: 5.183701131
A167: 12086 | B167: =VLOOKUP($A167,BasinData!$1:$1048576,2,FALSE) -> 0.05275678701 | C167: 3.962147332 | D167: =VLOOKUP($A167,BasinData!$1:$1048576,3,FALSE) -> 31.45538668 | E167: =VLOOKUP($A167,BasinData!$1:$1048576,4,FALSE) -> 24.69393236 | F167: =VLOOKUP($A167,BasinData!$1:$1048576,5,FALSE) -> 13.21320799 | G167: 135.0041591 | H167: =VLOOKUP($A167,Sheet1!$1:$1048576,9,FALSE) -> 214.1302947 | I167: -46.72780272 | J167: =VLOOKUP($A167,Sheet1!$1:$1048576,10,FALSE) -> 200.9425607 | K167: -39.74308666 | L167: =VLOOKUP($A167,Sheet1!$1:$1048576,11,FALSE) -> 174.5670928 | M167: -24.28000448 | N167: =VLOOKUP($A167,Sheet1!$1:$1048576,12,FALSE) -> 135.0038908 | O167: 3.962147332
A168: 12087 | B168: =VLOOKUP($A168,BasinData!$1:$1048576,2,FALSE) -> 0.7277529212 | C168: 20.62585534 | D168: =VLOOKUP($A168,BasinData!$1:$1048576,3,FALSE) -> 11.38628936 | E168: =VLOOKUP($A168,BasinData!$1:$1048576,4,FALSE) -> 25.35649468 | F168: =VLOOKUP($A168,BasinData!$1:$1048576,5,FALSE) -> 9.147850031 | G168: 125.1428605 | H168: =VLOOKUP($A168,Sheet1!$1:$1048576,9,FALSE) -> 198.4896498 | I168: -30.06437045 | J168: =VLOOKUP($A168,Sheet1!$1:$1048576,10,FALSE) -> 186.2651829 | K168: -23.0791351 | L168: =VLOOKUP($A168,Sheet1!$1:$1048576,11,FALSE) -> 161.8162491 | M168: -7.616540701 | N168: =VLOOKUP($A168,Sheet1!$1:$1048576,12,FALSE) -> 125.1428485 | O168: 20.62585534
A169: 12088 | B169: =VLOOKUP($A169,BasinData!$1:$1048576,2,FALSE) -> 0.204778157 | C169: 3.708063655 | D169: =VLOOKUP($A169,BasinData!$1:$1048576,3,FALSE) -> 30.14478869 | E169: =VLOOKUP($A169,BasinData!$1:$1048576,4,FALSE) -> 24.38196142 | F169: =VLOOKUP($A169,BasinData!$1:$1048576,5,FALSE) -> 13.27519914 | G169: 134.4983112 | H169: =VLOOKUP($A169,Sheet1!$1:$1048576,9,FALSE) -> 213.3279917 | I169: -46.98194308 | J169: =VLOOKUP($A169,Sheet1!$1:$1048576,10,FALSE) -> 200.1896695 | K169: -39.99716854 | L169: =VLOOKUP($A169,Sheet1!$1:$1048576,11,FALSE) -> 173.9130251 | M169: -24.53409996 | N169: =VLOOKUP($A169,Sheet1!$1:$1048576,12,FALSE) -> 134.4980585 | O169: 3.708063655
A170: 12089 | B170: =VLOOKUP($A170,BasinData!$1:$1048576,2,FALSE) -> 0.06100171233 | C170: 9.248817636 | D170: =VLOOKUP($A170,BasinData!$1:$1048576,3,FALSE) -> 99.48717034 | E170: =VLOOKUP($A170,BasinData!$1:$1048576,4,FALSE) -> 28.64024775 | F170: =VLOOKUP($A170,BasinData!$1:$1048576,5,FALSE) -> 11.92333753 | G170: 120.3697152 | H170: =VLOOKUP($A170,Sheet1!$1:$1048576,9,FALSE) -> 190.9179195 | I170: -41.44082586 | J170: =VLOOKUP($A170,Sheet1!$1:$1048576,10,FALSE) -> 179.159776 | K170: -34.45558319 | L170: =VLOOKUP($A170,Sheet1!$1:$1048576,11,FALSE) -> 155.643489 | M170: -18.99295751 | N170: =VLOOKUP($A170,Sheet1!$1:$1048576,12,FALSE) -> 120.3690585 | O170: 9.248817636
A171: 12090 | B171: =VLOOKUP($A171,BasinData!$1:$1048576,2,FALSE) -> 0.008805031447 | C171: -9.605508586 | D171: =VLOOKUP($A171,BasinData!$1:$1048576,3,FALSE) -> 45.48409555 | E171: =VLOOKUP($A171,BasinData!$1:$1048576,4,FALSE) -> 24.97637294 | F171: =VLOOKUP($A171,BasinData!$1:$1048576,5,FALSE) -> 16.52333268 | G171: 134.4016922 | H171: =VLOOKUP($A171,Sheet1!$1:$1048576,9,FALSE) -> 213.1751435 | I171: -60.29574729 | J171: =VLOOKUP($A171,Sheet1!$1:$1048576,10,FALSE) -> 200.0462349 | K171: -53.31052438 | L171: =VLOOKUP($A171,Sheet1!$1:$1048576,11,FALSE) -> 173.7884175 | M171: -37.84795385 | N171: =VLOOKUP($A171,Sheet1!$1:$1048576,12,FALSE) -> 134.4016915 | O171: -9.605508586
A172: 12091 | B172: =VLOOKUP($A172,BasinData!$1:$1048576,2,FALSE) -> 0.4393786389 | C172: 15.64870491 | D172: =VLOOKUP($A172,BasinData!$1:$1048576,3,FALSE) -> 3.701369549 | E172: =VLOOKUP($A172,BasinData!$1:$1048576,4,FALSE) -> 34.1560343 | F172: =VLOOKUP($A172,BasinData!$1:$1048576,5,FALSE) -> 10.36208958 | G172: 99.42202287 | H172: =VLOOKUP($A172,Sheet1!$1:$1048576,9,FALSE) -> 157.6935672 | I172: -35.04140814 | J172: =VLOOKUP($A172,Sheet1!$1:$1048576,10,FALSE) -> 147.9816261 | K172: -28.05618254 | L172: =VLOOKUP($A172,Sheet1!$1:$1048576,11,FALSE) -> 128.5577438 | M172: -12.59356951 | N172: =VLOOKUP($A172,Sheet1!$1:$1048576,12,FALSE) -> 99.42192047 | O172: 15.64870491
A173: 12092 | B173: =VLOOKUP($A173,BasinData!$1:$1048576,2,FALSE) -> 0.04167147639 | C173: -10.95852559 | D173: =VLOOKUP($A173,BasinData!$1:$1048576,3,FALSE) -> 48.08786205 | E173: =VLOOKUP($A173,BasinData!$1:$1048576,4,FALSE) -> 24.4904968 | F173: =VLOOKUP($A173,BasinData!$1:$1048576,5,FALSE) -> 16.85342532 | G173: 135.9264672 | H173: =VLOOKUP($A173,Sheet1!$1:$1048576,9,FALSE) -> 215.5935964 | I173: -61.64875685 | J173: =VLOOKUP($A173,Sheet1!$1:$1048576,10,FALSE) -> 202.3157414 | K173: -54.66353062 | L173: =VLOOKUP($A173,Sheet1!$1:$1048576,11,FALSE) -> 175.7600315 | M173: -39.20096731 | N173: =VLOOKUP($A173,Sheet1!$1:$1048576,12,FALSE) -> 135.9264666 | O173: -10.95852559
A174: 12093 | B174: =VLOOKUP($A174,BasinData!$1:$1048576,2,FALSE) -> 0.3243986254 | C174: 17.24578322 | D174: =VLOOKUP($A174,BasinData!$1:$1048576,3,FALSE) -> 8.105862773 | E174: =VLOOKUP($A174,BasinData!$1:$1048576,4,FALSE) -> 28.12220032 | F174: =VLOOKUP($A174,BasinData!$1:$1048576,5,FALSE) -> 9.972420255 | G174: 119.5113114 | H174: =VLOOKUP($A174,Sheet1!$1:$1048576,9,FALSE) -> 189.5570102 | I174: -33.44420203 | J174: =VLOOKUP($A174,Sheet1!$1:$1048576,10,FALSE) -> 177.8826816 | K174: -26.45896664 | L174: =VLOOKUP($A174,Sheet1!$1:$1048576,11,FALSE) -> 154.5340244 | M174: -10.99635858 | N174: =VLOOKUP($A174,Sheet1!$1:$1048576,12,FALSE) -> 119.5110386 | O174: 17.24578322
A175: 13001 | B175: =VLOOKUP($A175,BasinData!$1:$1048576,2,FALSE) -> 1.017872265 | C175: 1.822627641 | D175: =VLOOKUP($A175,BasinData!$1:$1048576,3,FALSE) -> 22.11068169 | E175: =VLOOKUP($A175,BasinData!$1:$1048576,4,FALSE) -> 23.0241363 | F175: =VLOOKUP($A175,BasinData!$1:$1048576,5,FALSE) -> 13.73520297 | G175: 130.6461088 | H175: =VLOOKUP($A175,Sheet1!$1:$1048576,9,FALSE) -> 207.2181472 | I175: -48.86744269 | J175: =VLOOKUP($A175,Sheet1!$1:$1048576,10,FALSE) -> 194.4561146 | K175: -41.88258359 | L175: =VLOOKUP($A175,Sheet1!$1:$1048576,11,FALSE) -> 168.9320494 | M175: -26.41960948 | N175: =VLOOKUP($A175,Sheet1!$1:$1048576,12,FALSE) -> 130.6459516 | O175: 1.822627641
A176: 13002 | B176: =VLOOKUP($A176,BasinData!$1:$1048576,2,FALSE) -> 0.8687429835 | C176: 33.10672646 | D176: =VLOOKUP($A176,BasinData!$1:$1048576,3,FALSE) -> 11.4485366 | E176: =VLOOKUP($A176,BasinData!$1:$1048576,4,FALSE) -> 38.79202989 | F176: =VLOOKUP($A176,BasinData!$1:$1048576,5,FALSE) -> 6.102830792 | G176: 83.87512842 | H176: =VLOOKUP($A176,Sheet1!$1:$1048576,9,FALSE) -> 133.034278 | I176: -17.58284382 | J176: =VLOOKUP($A176,Sheet1!$1:$1048576,10,FALSE) -> 124.8410391 | K176: -10.59814459 | L176: =VLOOKUP($A176,Sheet1!$1:$1048576,11,FALSE) -> 108.4545612 | M176: 4.864700447 | N176: =VLOOKUP($A176,Sheet1!$1:$1048576,12,FALSE) -> 83.87484437 | O176: 33.10672646
A177: 13003 | B177: =VLOOKUP($A177,BasinData!$1:$1048576,2,FALSE) -> 0.04409171076 | C177: -34.00092993 | D177: =VLOOKUP($A177,BasinData!$1:$1048576,3,FALSE) -> 70.14739227 | E177: =VLOOKUP($A177,BasinData!$1:$1048576,4,FALSE) -> 30.33603946 | F177: =VLOOKUP($A177,BasinData!$1:$1048576,5,FALSE) -> 22.475 | G177: 114.7752328 | H177: =VLOOKUP($A177,Sheet1!$1:$1048576,9,FALSE) -> 182.0453177 | I177: -84.69079076 | J177: =VLOOKUP($A177,Sheet1!$1:$1048576,10,FALSE) -> 170.8336149 | K177: -77.70580843 | L177: =VLOOKUP($A177,Sheet1!$1:$1048576,11,FALSE) -> 148.4102094 | M177: -62.24320068 | N177: =VLOOKUP($A177,Sheet1!$1:$1048576,12,FALSE) -> 114.775101 | O177: -34.00092993
A178: 13005 | B178: =VLOOKUP($A178,BasinData!$1:$1048576,2,FALSE) -> 0.2772243527 | C178: 26.90142955 | D178: =VLOOKUP($A178,BasinData!$1:$1048576,3,FALSE) -> 100 | E178: =VLOOKUP($A178,BasinData!$1:$1048576,4,FALSE) -> 29.98231132 | F178: =VLOOKUP($A178,BasinData!$1:$1048576,5,FALSE) -> 7.616763034 | G178: 113.7059906 | H178: =VLOOKUP($A178,Sheet1!$1:$1048576,9,FALSE) -> 180.3492513 | I178: -23.78808816 | J178: =VLOOKUP($A178,Sheet1!$1:$1048576,10,FALSE) -> 169.2420049 | K178: -16.80336156 | L178: =VLOOKUP($A178,Sheet1!$1:$1048576,11,FALSE) -> 147.027512 | M178: -1.340730451 | N178: =VLOOKUP($A178,Sheet1!$1:$1048576,12,FALSE) -> 113.7057728 | O178: 26.90142955
A179: 13006 | B179: =VLOOKUP($A179,BasinData!$1:$1048576,2,FALSE) -> 0.278664114 | C179: 25.96434955 | D179: =VLOOKUP($A179,BasinData!$1:$1048576,3,FALSE) -> 15.40520098 | E179: =VLOOKUP($A179,BasinData!$1:$1048576,4,FALSE) -> 39.51722836 | F179: =VLOOKUP($A179,BasinData!$1:$1048576,5,FALSE) -> 7.84532208 | G179: 86.3093746 | H179: =VLOOKUP($A179,Sheet1!$1:$1048576,9,FALSE) -> 136.8951376 | I179: -24.72464912 | J179: =VLOOKUP($A179,Sheet1!$1:$1048576,10,FALSE) -> 128.4641182 | K179: -17.74020238 | L179: =VLOOKUP($A179,Sheet1!$1:$1048576,11,FALSE) -> 111.6020795 | M179: -2.277570445 | N179: =VLOOKUP($A179,Sheet1!$1:$1048576,12,FALSE) -> 86.30902149 | O179: 25.96434955
A180: 13007 | B180: =VLOOKUP($A180,BasinData!$1:$1048576,2,FALSE) -> 0.4018889403 | C180: 5.856576369 | D180: =VLOOKUP($A180,BasinData!$1:$1048576,3,FALSE) -> 32.27896735 | E180: =VLOOKUP($A180,BasinData!$1:$1048576,4,FALSE) -> 27.2355039 | F180: =VLOOKUP($A180,BasinData!$1:$1048576,5,FALSE) -> 12.75100255 | G180: 121.8179877 | H180: =VLOOKUP($A180,Sheet1!$1:$1048576,9,FALSE) -> 193.2155036 | I180: -44.83332983 | J180: =VLOOKUP($A180,Sheet1!$1:$1048576,10,FALSE) -> 181.3158578 | K180: -37.8486615 | L180: =VLOOKUP($A180,Sheet1!$1:$1048576,11,FALSE) -> 157.5165662 | M180: -22.38547123 | N180: =VLOOKUP($A180,Sheet1!$1:$1048576,12,FALSE) -> 121.8176288 | O180: 5.856576369
A181: 13009 | B181: =VLOOKUP($A181,BasinData!$1:$1048576,2,FALSE) -> 0.06971153846 | C181: 17.13514851 | D181: =VLOOKUP($A181,BasinData!$1:$1048576,3,FALSE) -> 13.28269182 | E181: =VLOOKUP($A181,BasinData!$1:$1048576,4,FALSE) -> 37.15094605 | F181: =VLOOKUP($A181,BasinData!$1:$1048576,5,FALSE) -> 9.999414553 | G181: 94.05445054 | H181: =VLOOKUP($A181,Sheet1!$1:$1048576,9,FALSE) -> 149.1798744 | I181: -33.55484686 | J181: =VLOOKUP($A181,Sheet1!$1:$1048576,10,FALSE) -> 139.9922697 | K181: -26.56961359 | L181: =VLOOKUP($A181,Sheet1!$1:$1048576,11,FALSE) -> 121.6170604 | M181: -11.10700515 | N181: =VLOOKUP($A181,Sheet1!$1:$1048576,12,FALSE) -> 94.0542463 | O181: 17.13514851
A182: 13010 | B182: =VLOOKUP($A182,BasinData!$1:$1048576,2,FALSE) -> 0.282614432 | C182: 33.02613518 | D182: =VLOOKUP($A182,BasinData!$1:$1048576,3,FALSE) -> 25.36396933 | E182: =VLOOKUP($A182,BasinData!$1:$1048576,4,FALSE) -> 37.38446411 | F182: =VLOOKUP($A182,BasinData!$1:$1048576,5,FALSE) -> 6.122486198 | G182: 91.76608727 | H182: =VLOOKUP($A182,Sheet1!$1:$1048576,9,FALSE) -> 145.5500878 | I182: -17.66329985 | J182: =VLOOKUP($A182,Sheet1!$1:$1048576,10,FALSE) -> 136.5860324 | K182: -10.67870188 | L182: =VLOOKUP($A182,Sheet1!$1:$1048576,11,FALSE) -> 118.6579214 | M182: 4.784135626 | N182: =VLOOKUP($A182,Sheet1!$1:$1048576,12,FALSE) -> 91.76575503 | O182: 33.02613518
A183: 13012 | B183: =VLOOKUP($A183,BasinData!$1:$1048576,2,FALSE) -> 0.626899696 | C183: 15.92492805 | D183: =VLOOKUP($A183,BasinData!$1:$1048576,3,FALSE) -> 7.081777648 | E183: =VLOOKUP($A183,BasinData!$1:$1048576,4,FALSE) -> 26.66052605 | F183: =VLOOKUP($A183,BasinData!$1:$1048576,5,FALSE) -> 10.29469554 | G183: 121.539855 | H183: =VLOOKUP($A183,Sheet1!$1:$1048576,9,FALSE) -> 192.7746946 | I183: -34.76516896 | J183: =VLOOKUP($A183,Sheet1!$1:$1048576,10,FALSE) -> 180.9021971 | K183: -27.77994106 | L183: =VLOOKUP($A183,Sheet1!$1:$1048576,11,FALSE) -> 157.1572021 | M183: -12.31732883 | N183: =VLOOKUP($A183,Sheet1!$1:$1048576,12,FALSE) -> 121.5397096 | O183: 15.92492805
A184: 13013 | B184: =VLOOKUP($A184,BasinData!$1:$1048576,2,FALSE) -> 0.1434226151 | C184: -8.756586313 | D184: =VLOOKUP($A184,BasinData!$1:$1048576,3,FALSE) -> 28.6642532 | E184: =VLOOKUP($A184,BasinData!$1:$1048576,4,FALSE) -> 26.03540816 | F184: =VLOOKUP($A184,BasinData!$1:$1048576,5,FALSE) -> 16.31622288 | G184: 128.8848058 | H184: =VLOOKUP($A184,Sheet1!$1:$1048576,9,FALSE) -> 204.424784 | I184: -59.44683554 | J184: =VLOOKUP($A184,Sheet1!$1:$1048576,10,FALSE) -> 191.8347874 | K184: -52.46161155 | L184: =VLOOKUP($A184,Sheet1!$1:$1048576,11,FALSE) -> 166.6547944 | M184: -36.99903357 | N184: =VLOOKUP($A184,Sheet1!$1:$1048576,12,FALSE) -> 128.8848047 | O184: -8.756586313
A185: 13014 | B185: =VLOOKUP($A185,BasinData!$1:$1048576,2,FALSE) -> 0.3519226315 | C185: 21.44144709 | D185: =VLOOKUP($A185,BasinData!$1:$1048576,3,FALSE) -> 23.93175811 | E185: =VLOOKUP($A185,BasinData!$1:$1048576,4,FALSE) -> 34.49856734 | F185: =VLOOKUP($A185,BasinData!$1:$1048576,5,FALSE) -> 8.948863429 | G185: 99.16847075 | H185: =VLOOKUP($A185,Sheet1!$1:$1048576,9,FALSE) -> 157.2915047 | I185: -29.24874172 | J185: =VLOOKUP($A185,Sheet1!$1:$1048576,10,FALSE) -> 147.6043256 | K185: -22.26350877 | L185: =VLOOKUP($A185,Sheet1!$1:$1048576,11,FALSE) -> 128.2299673 | M185: -6.800918391 | N185: =VLOOKUP($A185,Sheet1!$1:$1048576,12,FALSE) -> 99.16842995 | O185: 21.44144709
A186: 13015 | B186: =VLOOKUP($A186,BasinData!$1:$1048576,2,FALSE) -> 0.4967885453 | C186: 18.21624699 | D186: =VLOOKUP($A186,BasinData!$1:$1048576,3,FALSE) -> 5.38673948 | E186: =VLOOKUP($A186,BasinData!$1:$1048576,4,FALSE) -> 33.10366427 | F186: =VLOOKUP($A186,BasinData!$1:$1048576,5,FALSE) -> 9.735627012 | G186: 101.9994203 | H186: =VLOOKUP($A186,Sheet1!$1:$1048576,9,FALSE) -> 161.7811933 | I186: -32.47362317 | J186: =VLOOKUP($A186,Sheet1!$1:$1048576,10,FALSE) -> 151.8175058 | K186: -25.48837462 | L186: =VLOOKUP($A186,Sheet1!$1:$1048576,11,FALSE) -> 131.8901308 | M186: -10.02577003 | N186: =VLOOKUP($A186,Sheet1!$1:$1048576,12,FALSE) -> 101.9990683 | O186: 18.21624699
A187: 13016 | B187: =VLOOKUP($A187,BasinData!$1:$1048576,2,FALSE) -> 1.234244565 | C187: -49.42846427 | D187: =VLOOKUP($A187,BasinData!$1:$1048576,3,FALSE) -> 5.872529903 | E187: =VLOOKUP($A187,BasinData!$1:$1048576,4,FALSE) -> 11.71376481 | F187: =VLOOKUP($A187,BasinData!$1:$1048576,5,FALSE) -> 26.23885013 | G187: 177.8935911 | H187: =VLOOKUP($A187,Sheet1!$1:$1048576,9,FALSE) -> 282.1578178 | I187: -100.1186844 | J187: =VLOOKUP($A187,Sheet1!$1:$1048576,10,FALSE) -> 264.7804437 | K187: -93.13345753 | L187: =VLOOKUP($A187,Sheet1!$1:$1048576,11,FALSE) -> 230.0256955 | M187: -77.67083382 | N187: =VLOOKUP($A187,Sheet1!$1:$1048576,12,FALSE) -> 177.8935731 | O187: -49.42846427
A188: 13019 | B188: =VLOOKUP($A188,BasinData!$1:$1048576,2,FALSE) -> 0.004789080596 | C188: -19.21681088 | D188: =VLOOKUP($A188,BasinData!$1:$1048576,3,FALSE) -> 7.786396125 | E188: =VLOOKUP($A188,BasinData!$1:$1048576,4,FALSE) -> 36.24733475 | F188: =VLOOKUP($A188,BasinData!$1:$1048576,5,FALSE) -> 18.86806137 | G188: 97.07113234 | H188: =VLOOKUP($A188,Sheet1!$1:$1048576,9,FALSE) -> 153.9642822 | I188: -69.90656159 | J188: =VLOOKUP($A188,Sheet1!$1:$1048576,10,FALSE) -> 144.4820181 | K188: -62.92132404 | L188: =VLOOKUP($A188,Sheet1!$1:$1048576,11,FALSE) -> 125.51749 | M188: -47.45874162 | N188: =VLOOKUP($A188,Sheet1!$1:$1048576,12,FALSE) -> 97.07069787 | O188: -19.21681088
A189: 13020 | B189: =VLOOKUP($A189,BasinData!$1:$1048576,2,FALSE) -> 0.3690466226 | C189: -0.6496667638 | D189: =VLOOKUP($A189,BasinData!$1:$1048576,3,FALSE) -> 12.79386759 | E189: =VLOOKUP($A189,BasinData!$1:$1048576,4,FALSE) -> 27.75683318 | F189: =VLOOKUP($A189,BasinData!$1:$1048576,5,FALSE) -> 14.33837921 | G189: 120.3276006 | H189: =VLOOKUP($A189,Sheet1!$1:$1048576,9,FALSE) -> 190.8520468 | I189: -51.33983237 | J189: =VLOOKUP($A189,Sheet1!$1:$1048576,10,FALSE) -> 179.0979602 | K189: -44.35483641 | L189: =VLOOKUP($A189,Sheet1!$1:$1048576,11,FALSE) -> 155.589787 | M189: -28.8925977 | N189: =VLOOKUP($A189,Sheet1!$1:$1048576,12,FALSE) -> 120.3275273 | O189: -0.6496667638
A190: 13021 | B190: =VLOOKUP($A190,BasinData!$1:$1048576,2,FALSE) -> 0.3056971944 | C190: 3.920689131 | D190: =VLOOKUP($A190,BasinData!$1:$1048576,3,FALSE) -> 3.200912413 | E190: =VLOOKUP($A190,BasinData!$1:$1048576,4,FALSE) -> 13.02601711 | F190: =VLOOKUP($A190,BasinData!$1:$1048576,5,FALSE) -> 13.22332294 | G190: 185.1675933 | H190: =VLOOKUP($A190,Sheet1!$1:$1048576,9,FALSE) -> 293.6945964 | I190: -46.76932334 | J190: =VLOOKUP($A190,Sheet1!$1:$1048576,10,FALSE) -> 275.6067018 | K190: -39.78409466 | L190: =VLOOKUP($A190,Sheet1!$1:$1048576,11,FALSE) -> 239.4309125 | M190: -24.32146464 | N190: =VLOOKUP($A190,Sheet1!$1:$1048576,12,FALSE) -> 185.1672286 | O190: 3.920689131
A191: 13022 | B191: =VLOOKUP($A191,BasinData!$1:$1048576,2,FALSE) -> 0.2837078652 | C191: -6.387229932 | D191: =VLOOKUP($A191,BasinData!$1:$1048576,3,FALSE) -> 22.86663025 | E191: =VLOOKUP($A191,BasinData!$1:$1048576,4,FALSE) -> 24.55917892 | F191: =VLOOKUP($A191,BasinData!$1:$1048576,5,FALSE) -> 15.7381749 | G191: 132.9267384 | H191: =VLOOKUP($A191,Sheet1!$1:$1048576,9,FALSE) -> 210.8357021 | I191: -57.0774532 | J191: =VLOOKUP($A191,Sheet1!$1:$1048576,10,FALSE) -> 197.8508736 | K191: -50.09228956 | L191: =VLOOKUP($A191,Sheet1!$1:$1048576,11,FALSE) -> 171.8812166 | M191: -34.62967884 | N191: =VLOOKUP($A191,Sheet1!$1:$1048576,12,FALSE) -> 132.9267311 | O191: -6.387229932
A192: 13023 | B192: =VLOOKUP($A192,BasinData!$1:$1048576,2,FALSE) -> 0.4825017785 | C192: 13.96728434 | D192: =VLOOKUP($A192,BasinData!$1:$1048576,3,FALSE) -> 69.59574821 | E192: =VLOOKUP($A192,BasinData!$1:$1048576,4,FALSE) -> 28.26603325 | F192: =VLOOKUP($A192,BasinData!$1:$1048576,5,FALSE) -> 10.77232031 | G192: 117.445178 | H192: =VLOOKUP($A192,Sheet1!$1:$1048576,9,FALSE) -> 186.2802739 | I192: -36.72274482 | J192: =VLOOKUP($A192,Sheet1!$1:$1048576,10,FALSE) -> 174.807751 | K192: -29.73767767 | L192: =VLOOKUP($A192,Sheet1!$1:$1048576,11,FALSE) -> 151.8627053 | M192: -14.27506027 | N192: =VLOOKUP($A192,Sheet1!$1:$1048576,12,FALSE) -> 117.4451368 | O192: 13.96728434
A193: 13024 | B193: =VLOOKUP($A193,BasinData!$1:$1048576,2,FALSE) -> 0.7088723867 | C193: 15.89096845 | D193: =VLOOKUP($A193,BasinData!$1:$1048576,3,FALSE) -> 19.81073399 | E193: =VLOOKUP($A193,BasinData!$1:$1048576,4,FALSE) -> 40.00659631 | F193: =VLOOKUP($A193,BasinData!$1:$1048576,5,FALSE) -> 10.30298116 | G193: =EXP(6.1523-(0.084*B193)-(0.0091*C193)-(0.0289*E193)-(0.0373*F193)) -> 82.07677387 | H193: =VLOOKUP($A193,Sheet1!$1:$1048576,9,FALSE) -> 130.182197 | I193: -34.79913076 | J193: =VLOOKUP($A193,Sheet1!$1:$1048576,10,FALSE) -> 122.1646104 | K193: -27.81390303 | L193: =VLOOKUP($A193,Sheet1!$1:$1048576,11,FALSE) -> 106.1294372 | M193: -12.35129069 | N193: =VLOOKUP($A193,Sheet1!$1:$1048576,12,FALSE) -> 82.07667739 | O193: 15.89096845
A194: 13025 | B194: =VLOOKUP($A194,BasinData!$1:$1048576,2,FALSE) -> 0.2106002106 | C194: 3.572045289 | D194: =VLOOKUP($A194,BasinData!$1:$1048576,3,FALSE) -> 22.65166532 | E194: =VLOOKUP($A194,BasinData!$1:$1048576,4,FALSE) -> 29.62174349 | F194: =VLOOKUP($A194,BasinData!$1:$1048576,5,FALSE) -> 13.30838475 | G194: 115.5418535 | H194: =VLOOKUP($A194,Sheet1!$1:$1048576,9,FALSE) -> 183.2611334 | I194: -47.11792758 | J194: =VLOOKUP($A194,Sheet1!$1:$1048576,10,FALSE) -> 171.9745517 | K194: -40.13318581 | L194: =VLOOKUP($A194,Sheet1!$1:$1048576,11,FALSE) -> 149.4013882 | M194: -24.67012444 | N194: =VLOOKUP($A194,Sheet1!$1:$1048576,12,FALSE) -> 115.5416429 | O194: 3.572045289
A195: 13029 | B195: =VLOOKUP($A195,BasinData!$1:$1048576,2,FALSE) -> 0.3468796059 | C195: 9.882139838 | D195: =VLOOKUP($A195,BasinData!$1:$1048576,3,FALSE) -> 5.638135303 | E195: =VLOOKUP($A195,BasinData!$1:$1048576,4,FALSE) -> 27.71590287 | F195: =VLOOKUP($A195,BasinData!$1:$1048576,5,FALSE) -> 11.76881113 | G195: 120.695204 | H195: =VLOOKUP($A195,Sheet1!$1:$1048576,9,FALSE) -> 191.4340607 | I195: -40.80743139 | J195: =VLOOKUP($A195,Sheet1!$1:$1048576,10,FALSE) -> 179.6441294 | K195: -33.82219478 | L195: =VLOOKUP($A195,Sheet1!$1:$1048576,11,FALSE) -> 156.0642668 | M195: -18.35956993 | N195: =VLOOKUP($A195,Sheet1!$1:$1048576,12,FALSE) -> 120.6944728 | O195: 9.882139838
A196: 13030 | B196: =VLOOKUP($A196,BasinData!$1:$1048576,2,FALSE) -> 0.3976526617 | C196: 17.62740606 | D196: =VLOOKUP($A196,BasinData!$1:$1048576,3,FALSE) -> 20.38620028 | E196: =VLOOKUP($A196,BasinData!$1:$1048576,4,FALSE) -> 24.22687758 | F196: =VLOOKUP($A196,BasinData!$1:$1048576,5,FALSE) -> 9.87930538 | G196: 132.9313632 | H196: =VLOOKUP($A196,Sheet1!$1:$1048576,9,FALSE) -> 210.8424797 | I196: -33.06254477 | J196: =VLOOKUP($A196,Sheet1!$1:$1048576,10,FALSE) -> 197.8572338 | K196: -26.077298 | L196: =VLOOKUP($A196,Sheet1!$1:$1048576,11,FALSE) -> 171.886742 | M196: -10.61469126 | N196: =VLOOKUP($A196,Sheet1!$1:$1048576,12,FALSE) -> 132.9310042 | O196: 17.62740606
A197: 13031 | B197: =VLOOKUP($A197,BasinData!$1:$1048576,2,FALSE) -> 0.8083147321 | C197: 12.93694403 | D197: =VLOOKUP($A197,BasinData!$1:$1048576,3,FALSE) -> 15.07374287 | E197: =VLOOKUP($A197,BasinData!$1:$1048576,4,FALSE) -> 24.96615742 | F197: =VLOOKUP($A197,BasinData!$1:$1048576,5,FALSE) -> 11.02369565 | G197: 125.7089827 | H197: =VLOOKUP($A197,Sheet1!$1:$1048576,9,FALSE) -> 199.3875687 | I197: -37.75272304 | J197: =VLOOKUP($A197,Sheet1!$1:$1048576,10,FALSE) -> 187.1078013 | K197: -30.76804028 | L197: =VLOOKUP($A197,Sheet1!$1:$1048576,11,FALSE) -> 162.5482664 | M197: -15.30542061 | N197: =VLOOKUP($A197,Sheet1!$1:$1048576,12,FALSE) -> 125.7089642 | O197: 12.93694403
A198: 13032 | B198: =VLOOKUP($A198,BasinData!$1:$1048576,2,FALSE) -> 0.2798494576 | C198: -40.46486211 | D198: =VLOOKUP($A198,BasinData!$1:$1048576,3,FALSE) -> 0.8820312585 | E198: =VLOOKUP($A198,BasinData!$1:$1048576,4,FALSE) -> 32.38770686 | F198: =VLOOKUP($A198,BasinData!$1:$1048576,5,FALSE) -> 24.05200867 | G198: 106.0465596 | H198: =VLOOKUP($A198,Sheet1!$1:$1048576,9,FALSE) -> 168.2008525 | I198: -91.15505126 | J198: =VLOOKUP($A198,Sheet1!$1:$1048576,10,FALSE) -> 157.8417947 | K198: -84.16981088 | L198: =VLOOKUP($A198,Sheet1!$1:$1048576,11,FALSE) -> 137.1236792 | M198: -68.7071953 | N198: =VLOOKUP($A198,Sheet1!$1:$1048576,12,FALSE) -> 106.0465058 | O198: -40.46486211
A199: 13033 | B199: =VLOOKUP($A199,BasinData!$1:$1048576,2,FALSE) -> 0.2429721218 | C199: -7.306778358 | D199: =VLOOKUP($A199,BasinData!$1:$1048576,3,FALSE) -> 27.49921449 | E199: =VLOOKUP($A199,BasinData!$1:$1048576,4,FALSE) -> 24.79215345 | F199: =VLOOKUP($A199,BasinData!$1:$1048576,5,FALSE) -> 15.96251581 | G199: 132.487321 | H199: =VLOOKUP($A199,Sheet1!$1:$1048576,9,FALSE) -> 210.1387456 | I199: -57.9969684 | J199: =VLOOKUP($A199,Sheet1!$1:$1048576,10,FALSE) -> 197.1968408 | K199: -51.01182327 | L199: =VLOOKUP($A199,Sheet1!$1:$1048576,11,FALSE) -> 171.3130313 | M199: -35.54922736 | N199: =VLOOKUP($A199,Sheet1!$1:$1048576,12,FALSE) -> 132.4873171 | O199: -7.306778358
A200: 13034 | B200: =VLOOKUP($A200,BasinData!$1:$1048576,2,FALSE) -> 0.427618252 | C200: -24.43448859 | D200: =VLOOKUP($A200,BasinData!$1:$1048576,3,FALSE) -> 11.04194958 | E200: =VLOOKUP($A200,BasinData!$1:$1048576,4,FALSE) -> 12.97614064 | F200: =VLOOKUP($A200,BasinData!$1:$1048576,5,FALSE) -> 20.14104825 | G200: 183.5454551 | H200: =VLOOKUP($A200,Sheet1!$1:$1048576,9,FALSE) -> 291.1214403 | I200: -75.1243964 | J200: =VLOOKUP($A200,Sheet1!$1:$1048576,10,FALSE) -> 273.1920198 | K200: -68.13917128 | L200: =VLOOKUP($A200,Sheet1!$1:$1048576,11,FALSE) -> 237.3331786 | M200: -52.67657863 | N200: =VLOOKUP($A200,Sheet1!$1:$1048576,12,FALSE) -> 183.5449169 | O200: -24.43448859
... 1174 more rows

Sheet BasinData
A1: BasinID | B1: CHSLP | C1: AUGgwWp | D1: pBWet_al | E1: IC | F1: Reference IC | G1: Predicted Fluvial Density - actual IC and AUGgwWp | H1: Predicted Fluvial Density - zero August withdrawals and reference IC | I1: Predicted Fluvial Density - 100% August GW withdrawals and reference IC | J1: Category
A2: 10001 | B2: 0.00147143742 | C2: 1.531956958 | D2: 36.099716 | E2: 13.22586344 | F2: 1 | G2: =EXP(6.1523-(0.084*B2)-(0.0091*C2)-(0.0289*D2)-(0.0373*E2)) -> 99.64651685 | H2: =EXP(6.1523+(-0.084*B2)+(-0.0091*0)+(-0.0289*D2)+(-0.0373*F2)) -> 159.4283503 | I2: =EXP(6.1523+(-0.084*B2)+(-0.0091*100)+(-0.0289*D2)+(-0.0373*F2)) -> 64.17377299 | J2: =VLOOKUP(A2,Sheet1!$1:$1048576,8,FALSE) -> 4
A3: 10002 | B3: 0.0525644871 | C3: 1.293791963 | D3: 54.7572049 | E3: 11.6 | F3: 1 | G3: 61.61761915 | H3: =EXP(6.1523+(-0.084*B3)+(-0.0091*0)+(-0.0289*D3)+(-0.0373*F3)) -> 92.5826132 | I3: =EXP(6.1523+(-0.084*B3)+(-0.0091*100)+(-0.0289*D3)+(-0.0373*F3)) -> 37.26674454 | J3: =VLOOKUP(A3,Sheet1!$1:$1048576,8,FALSE) -> 4
A4: 10003 | B4: 0.03949367089 | C4: 1.151067055 | D4: 55.21198212 | E4: 10.926 | F4: 1 | G4: 62.51094979 | H4: 91.47413441 | I4: 36.82055497 | J4: =VLOOKUP(A4,Sheet1!$1:$1048576,8,FALSE) -> 4
A5: 10004 | B5: 0.003296807217 | C5: 100 | D5: 8.581591819 | E5: 21.7674852 | F5: 1 | G5: 65.50247097 | H5: 353.0872045 | I5: 142.126153 | J5: =VLOOKUP(A5,Sheet1!$1:$1048576,8,FALSE) -> 5
A6: 11001 | B6: 0.4811550301 | C6: 13.63663074 | D6: 24.80533276 | E6: 6.443081091 | F6: 1 | G6: 153.023055 | H6: 212.2381219 | I6: 85.43098531 | J6: =VLOOKUP(A6,Sheet1!$1:$1048576,8,FALSE) -> 4
A7: 11002 | B7: 1.501434911 | C7: 1.044461148 | D7: 19.16502301 | E7: 16.9966004 | F7: 1 | G7: 125.0648635 | H7: 229.2952106 | I7: 92.2968767 | J7: =VLOOKUP(A7,Sheet1!$1:$1048576,8,FALSE) -> 5
A8: 11003 | B8: 0.734921473 | C8: 9.101394065 | D8: 29.24446562 | E8: 5.441370887 | F8: 1 | G8: 142.5390104 | H8: 182.7467911 | I8: 73.5600103 | J8: =VLOOKUP(A8,Sheet1!$1:$1048576,8,FALSE) -> 4
A9: 11004 | B9: 0.8836016476 | C9: 8.864693047 | D9: 32.48091603 | E9: 8.434240799 | F9: 1 | G9: 114.9058503 | H9: 164.3632616 | I9: 66.16019435 | J9: =VLOOKUP(A9,Sheet1!$1:$1048576,8,FALSE) -> 4
A10: 11005 | B10: 0.7885559236 | C10: 14.96351396 | D10: 27.24189526 | E10: 3.926101127 | F10: 1 | G10: 150.8308455 | H10: 192.7647492 | I10: 77.59248109 | J10: =VLOOKUP(A10,Sheet1!$1:$1048576,8,FALSE) -> 4
A11: 11006 | B11: 1.311279976 | C11: 4.839007885 | D11: 16.27906977 | E11: 6.598189976 | F11: 1 | G11: 196.6724998 | H11: 253.2525889 | I11: 101.9403018 | J11: =VLOOKUP(A11,Sheet1!$1:$1048576,8,FALSE) -> 4
A12: 11007 | B12: 1.419646135 | C12: 1.111165333 | D12: 37.39438539 | E12: 7.649431537 | F12: 1 | G12: 105.310864 | H12: 136.3263968 | I12: 54.87467709 | J12: =VLOOKUP(A12,Sheet1!$1:$1048576,8,FALSE) -> 4
A13: 11008 | B13: 0.7515318821 | C13: 13.08049525 | D13: 27.63730807 | E13: 4.962806069 | F13: 1 | G13: 146.3949264 | H13: 191.1680948 | I13: 76.94978902 | J13: =VLOOKUP(A13,Sheet1!$1:$1048576,8,FALSE) -> 4
A14: 11009 | B14: 0.2854494903 | C14: 12.63842221 | D14: 28.89923722 | E14: 5.456754059 | F14: 1 | G14: 144.6891602 | H14: 191.6813364 | I14: 77.15638121 | J14: =VLOOKUP(A14,Sheet1!$1:$1048576,8,FALSE) -> 4
A15: 11010 | B15: 0.4842961814 | C15: 11.82538936 | D15: 25.32349227 | E15: 5.503378488 | F15: 1 | G15: 158.6789746 | H15: 209.0284139 | I15: 84.13900009 | J15: =VLOOKUP(A15,Sheet1!$1:$1048576,8,FALSE) -> 4
A16: 11011 | B16: 0.7312278922 | C16: 1.431010725 | D16: 34.32122371 | E16: 13.00397576 | F16: 1 | G16: 99.57618188 | H16: 157.8576207 | I16: 63.54151627 | J16: =VLOOKUP(A16,Sheet1!$1:$1048576,8,FALSE) -> 4
A17: 11012 | B17: 0.2792088316 | C17: 12.61669552 | D17: 26.83219589 | E17: 4.500752564 | F17: 1 | G17: 159.2867436 | H17: 203.5875222 | I17: 81.94890939 | J17: =VLOOKUP(A17,Sheet1!$1:$1048576,8,FALSE) -> 4
A18: 11013 | B18: 0.3718150362 | C18: 9.916466136 | D18: 28.45460264 | E18: 5.911717098 | F18: 1 | G18: 146.6402973 | H18: 192.7568443 | I18: 77.58929919 | J18: =VLOOKUP(A18,Sheet1!$1:$1048576,8,FALSE) -> 4
A19: 11014 | B19: 1.270876563 | C19: 8.394075906 | D19: 37.30596758 | E19: 2.854294702 | F19: 1 | G19: 119.6478234 | H19: 138.3938915 | I19: 55.70689379 | J19: =VLOOKUP(A19,Sheet1!$1:$1048576,8,FALSE) -> 3
A20: 11015 | B20: 1.685209529 | C20: 2.328012569 | D20: 17.73323053 | E20: 5.031188727 | F20: 1 | G20: 198.225205 | H20: 235.3213524 | I20: 94.72254479 | J20: =VLOOKUP(A20,Sheet1!$1:$1048576,8,FALSE) -> 3
A21: 11016 | B21: 1.011698075 | C21: 3.262093537 | D21: 34.9126035 | E21: 2.51958845 | F21: 1 | G21: 139.0282876 | H21: 151.5693265 | I21: 61.01032552 | J21: =VLOOKUP(A21,Sheet1!$1:$1048576,8,FALSE) -> 2
A22: 11017 | B22: 1.008204322 | C22: 3.480762002 | D22: 31.13741637 | E22: 16.46443705 | F22: 1 | G22: 92.01403023 | H22: 169.0914181 | I22: 68.06339185 | J22: =VLOOKUP(A22,Sheet1!$1:$1048576,8,FALSE) -> 5
A23: 11018 | B23: 0.7841415083 | C23: 8.276413926 | D23: 36.33312356 | E23: 8.391395342 | F23: 1 | G23: 104.3854637 | H23: 148.2803654 | I23: 59.68643902 | J23: =VLOOKUP(A23,Sheet1!$1:$1048576,8,FALSE) -> 4
A24: 11019 | B24: 0.082881172 | C24: 9.231575405 | D24: 21.43178386 | E24: 8.577704896 | F24: 1 | G24: 167.6709955 | H24: 241.9326612 | I24: 97.38375673 | J24: =VLOOKUP(A24,Sheet1!$1:$1048576,8,FALSE) -> 4
A25: 11020 | B25: 0.1587240584 | C25: 4.35004297 | D25: 13.60720738 | E25: 11.25680719 | F25: 1 | G25: 197.6019367 | H25: 301.3941528 | I25: 121.3184475 | J25: =VLOOKUP(A25,Sheet1!$1:$1048576,8,FALSE) -> 4
A26: 11021 | B26: 1.815915293 | C26: 2.07203081 | D26: 14.55516014 | E26: 17.7005163 | F26: 1 | G26: 134.2943791 | H26: 255.1416771 | I26: 102.7007056 | J26: =VLOOKUP(A26,Sheet1!$1:$1048576,8,FALSE) -> 5
A27: 11022 | B27: 0.1202463846 | C27: 4.586686673 | D27: 13.53022795 | E27: 10.70287704 | F27: 1 | G27: 202.39466 | H27: 303.043305 | I27: 121.9822712 | J27: =VLOOKUP(A27,Sheet1!$1:$1048576,8,FALSE) -> 4
A28: 11023 | B28: 0.7718181818 | C28: 25.75704361 | D28: 25.84592565 | E28: 9.010614711 | F28: 1 | G28: 117.9233687 | H28: 200.9829385 | I28: 80.90050137 | J28: =VLOOKUP(A28,Sheet1!$1:$1048576,8,FALSE) -> 5
A29: 11024 | B29: 0.9511871624 | C29: 2.090610619 | D29: 10.35940803 | E29: 11.38867456 | F29: 1 | G29: 206.2710888 | H29: 309.7338518 | I29: 124.6753784 | J29: =VLOOKUP(A29,Sheet1!$1:$1048576,8,FALSE) -> 4
A30: 11025 | B30: 0.202565473 | C30: 5.077021399 | D30: 13.38567013 | E30: 10.20847223 | F30: 1 | G30: 204.6828534 | H30: 302.2149846 | I30: 121.6488522 | J30: =VLOOKUP(A30,Sheet1!$1:$1048576,8,FALSE) -> 4
A31: 11026 | B31: 0.4761546068 | C31: 6.037894856 | D31: 37.17896453 | E31: 15.04729918 | F31: 1 | G31: 83.2311632 | H31: 148.4919782 | I31: 59.77161831 | J31: =VLOOKUP(A31,Sheet1!$1:$1048576,8,FALSE) -> 5
A32: 11027 | B32: 0.8328314735 | C32: 36.69245152 | D32: 34.49403302 | E32: 8.194713394 | F32: 1 | G32: 85.27663347 | H32: 155.7363638 | I32: 62.68765898 | J32: =VLOOKUP(A32,Sheet1!$1:$1048576,8,FALSE) -> 5
A33: 11028 | B33: 0.06513809276 | C33: 11.693921 | D33: 23.36246355 | E33: 8.663195387 | F33: 1 | G33: 154.7949495 | H33: 229.1445904 | I33: 92.23624845 | J33: =VLOOKUP(A33,Sheet1!$1:$1048576,8,FALSE) -> 4
A34: 11029 | B34: 0.7912713472 | C34: 2.703198909 | D34: 16.98565741 | E34: 6.296077355 | F34: 1 | G34: 207.5775308 | H34: 259.2123753 | I34: 104.3392602 | J34: =VLOOKUP(A34,Sheet1!$1:$1048576,8,FALSE) -> 3
A35: 11030 | B35: 0.001244555072 | C35: 4.461782459 | D35: 15.36700529 | E35: 7.09691389 | F35: 1 | G35: 222.0209831 | H35: 290.2634632 | I35: 116.8380753 | J35: =VLOOKUP(A35,Sheet1!$1:$1048576,8,FALSE) -> 4
A36: 11031 | B36: 0.9967633929 | C36: 3.233281201 | D36: 18.85368405 | E36: 3.766392763 | F36: 1 | G36: 211.4082497 | H36: 241.3867468 | I36: 97.16401296 | J36: =VLOOKUP(A36,Sheet1!$1:$1048576,8,FALSE) -> 3
A37: 11032 | B37: 0.2673772011 | C37: 12.97166189 | D37: 23.81629237 | E37: 8.884800375 | F37: 1 | G37: 147.2459457 | H37: 222.3492771 | I37: 89.50097023 | J37: =VLOOKUP(A37,Sheet1!$1:$1048576,8,FALSE) -> 4
A38: 11033 | B38: 0.07369498465 | C38: 12.84059036 | D38: 23.95212078 | E38: 8.795771796 | F38: 1 | G38: 149.7491664 | H38: 225.1109362 | I38: 90.61260493 | J38: =VLOOKUP(A38,Sheet1!$1:$1048576,8,FALSE) -> 4
A39: 11034 | B39: 0.1297247465 | C39: 12.47031163 | D39: 19.28915941 | E39: 5.203941462 | F39: 1 | G39: 195.6563026 | H39: 256.3763326 | I39: 103.1976843 | J39: =VLOOKUP(A39,Sheet1!$1:$1048576,8,FALSE) -> 4
A40: 11035 | B40: 1.238127501 | C40: 5.165765155 | D40: 16.52298851 | E40: 9.043777465 | F40: 1 | G40: 178.8310597 | H40: 253.0236397 | I40: 101.8481443 | J40: =VLOOKUP(A40,Sheet1!$1:$1048576,8,FALSE) -> 4
A41: 11036 | B41: 1.662615394 | C41: 3.306361118 | D41: 24.41145281 | E41: 4.861182224 | F41: 1 | G41: 163.324552 | H41: 194.3866702 | I41: 78.24534358 | J41: =VLOOKUP(A41,Sheet1!$1:$1048576,8,FALSE) -> 3
A42: 11037 | B42: 0.9719292157 | C42: 2.123477271 | D42: 12.68011527 | E42: 3.439816681 | F42: 1 | G42: 258.9341569 | H42: 289.1375755 | I42: 116.3848782 | J42: =VLOOKUP(A42,Sheet1!$1:$1048576,8,FALSE) -> 3
A43: 11038 | B43: 0.1960604672 | C43: 13.15976386 | D43: 18.64530892 | E43: 4.979635833 | F43: 1 | G43: 198.6386262 | H43: 259.7400941 | I43: 104.5516798 | J43: =VLOOKUP(A43,Sheet1!$1:$1048576,8,FALSE) -> 4
A44: 11039 | B44: 1.877600237 | C44: 5.379197903 | D44: 9.253162364 | E44: 4.708364642 | F44: 1 | G44: 245.3271156 | H44: 295.8537333 | I44: 119.0882944 | J44: =VLOOKUP(A44,Sheet1!$1:$1048576,8,FALSE) -> 3
A45: 11040 | B45: 2.093550654 | C45: 7.385738041 | D45: 15.31194296 | E45: 3.988679866 | F45: 1 | G45: 203.9630028 | H45: 243.8678776 | I45: 98.16272821 | J45: =VLOOKUP(A45,Sheet1!$1:$1048576,8,FALSE) -> 3
A46: 11041 | B46: 2.248663102 | C46: 6.082965507 | D46: 14.3904064 | E46: 4.339325851 | F46: 1 | G46: 206.5035729 | H46: 247.2078683 | I46: 99.50715535 | J46: =VLOOKUP(A46,Sheet1!$1:$1048576,8,FALSE) -> 3
A47: 11042 | B47: 0.2348690154 | C47: 6.621877545 | D47: 14.83704974 | E47: 3.363122062 | F47: 1 | G47: 249.1553822 | H47: 289.0154842 | I47: 116.3357335 | J47: =VLOOKUP(A47,Sheet1!$1:$1048576,8,FALSE) -> 3
A48: 11043 | B48: 0.6167239938 | C48: 8.254029168 | D48: 34.13559322 | E48: 6.861516711 | F48: 1 | G48: 119.4538736 | H48: 160.2406168 | I48: 64.50072993 | J48: =VLOOKUP(A48,Sheet1!$1:$1048576,8,FALSE) -> 4
A49: 11044 | B49: 0.1099902376 | C49: 14.7182965 | D49: 15.44210238 | E49: 3.753337938 | F49: 1 | G49: 226.5233563 | H49: 287.0005296 | I49: 115.5246655 | J49: =VLOOKUP(A49,Sheet1!$1:$1048576,8,FALSE) -> 4
A50: 11045 | B50: 1.236030189 | C50: 100 | D50: 16.36848116 | E50: 3.714738611 | F50: 1 | G50: 92.46818214 | H50: 254.2007626 | I50: 102.3219647 | J50: =VLOOKUP(A50,Sheet1!$1:$1048576,8,FALSE) -> 5
A51: 11046 | B51: 0.07437255353 | C51: 7.345188357 | D51: 14.20754657 | E51: 3.932430412 | F51: 1 | G51: 250.1182338 | H51: 298.3163825 | I51: 120.0795704 | J51: =VLOOKUP(A51,Sheet1!$1:$1048576,8,FALSE) -> 3
A52: 11047 | B52: 0.05764533464 | C52: 12.20084226 | D52: 23.52074665 | E52: 9.110188886 | F52: 1 | G52: 150.9382034 | H52: 228.2423981 | I52: 91.87309419 | J52: =VLOOKUP(A52,Sheet1!$1:$1048576,8,FALSE) -> 4
A53: 11048 | B53: 0.09094942325 | C53: 5.747863889 | D53: 16.97153022 | E53: 10.68836927 | F53: 1 | G53: 181.8534767 | H53: 275.0307818 | I53: 110.706552 | J53: =VLOOKUP(A53,Sheet1!$1:$1048576,8,FALSE) -> 4
A54: 11049 | B54: 0.1038142272 | C54: 12.04390802 | D54: 23.73075187 | E54: 9.386654132 | F54: 1 | G54: 148.1224229 | H54: 225.9832488 | I54: 90.96373185 | J54: =VLOOKUP(A54,Sheet1!$1:$1048576,8,FALSE) -> 4
A55: 11050 | B55: 0.3870608806 | C55: 40.26271768 | D55: 35.19890051 | E55: 10.67265982 | F55: 1 | G55: 76.55869635 | H55: 158.4182459 | I55: 63.76718149 | J55: =VLOOKUP(A55,Sheet1!$1:$1048576,8,FALSE) -> 5
A56: 11051 | B56: 6.132647762 | C56: 10.00790133 | D56: 22.63809452 | E56: 8.497163628 | F56: 1 | G56: 97.01839029 | H56: 140.5574998 | I56: 56.57779855 | J56: =VLOOKUP(A56,Sheet1!$1:$1048576,8,FALSE) -> 4
A57: 11052 | B57: 1.660066674 | C57: 3.780043963 | D57: 9.441923414 | E57: 6.555668215 | F57: 1 | G57: 235.3462863 | H57: 299.6702827 | I57: 120.624548 | J57: =VLOOKUP(A57,Sheet1!$1:$1048576,8,FALSE) -> 4
A58: 11053 | B58: 0.5069637883 | C58: 6.024611848 | D58: 14.73548212 | E58: 4.016826615 | F58: 1 | G58: 239.6568259 | H58: 283.3150725 | I58: 114.0411797 | J58: =VLOOKUP(A58,Sheet1!$1:$1048576,8,FALSE) -> 3
A59: 11054 | B59: 1.996030433 | C59: 28.30852663 | D59: 10.03664171 | E59: 2.979928407 | F59: 1 | G59: 205.575955 | H59: 286.367084 | I59: 115.2696883 | J59: =VLOOKUP(A59,Sheet1!$1:$1048576,8,FALSE) -> 4
A60: 11055 | B60: 1.097007948 | C60: 9.024231091 | D60: 29.55496652 | E60: 3.10136792 | F60: 1 | G60: 149.6368373 | H60: 175.6885456 | I60: 70.71889548 | J60: =VLOOKUP(A60,Sheet1!$1:$1048576,8,FALSE) -> 3
A61: 11056 | B61: 0.9146694135 | C61: 5.086690118 | D61: 22.80315408 | E61: 6.384494174 | F61: 1 | G61: 169.3599114 | H61: 216.8393195 | I61: 87.28307884 | J61: =VLOOKUP(A61,Sheet1!$1:$1048576,8,FALSE) -> 4
A62: 11057 | B62: 1.660150889 | C62: 4.817667941 | D62: 30.3266407 | E62: 4.47632818 | F62: 1 | G62: 137.7719235 | H62: 163.8755682 | I62: 65.96388592 | J62: =VLOOKUP(A62,Sheet1!$1:$1048576,8,FALSE) -> 3
A63: 11058 | B63: 0.5234172747 | C63: 13.64199151 | D63: 27.46195385 | E63: 6.10121592 | F63: 1 | G63: 143.0172148 | H63: 195.8565459 | I63: 78.83700416 | J63: =VLOOKUP(A63,Sheet1!$1:$1048576,8,FALSE) -> 4
A64: 11059 | B64: 1.190460591 | C64: 6.527967363 | D64: 20.88353414 | E64: 3.780515004 | F64: 1 | G64: 190.2519909 | H64: 223.9599349 | I64: 90.14929901 | J64: =VLOOKUP(A64,Sheet1!$1:$1048576,8,FALSE) -> 3
A65: 11060 | B65: 0.7687177281 | C65: 6.40359498 | D65: 14.84793136 | E65: 8.779368209 | F65: 1 | G65: 194.97656 | H65: 276.2544868 | I65: 111.1991229 | J65: =VLOOKUP(A65,Sheet1!$1:$1048576,8,FALSE) -> 4
A66: 11061 | B66: 0.2948964853 | C66: 3.472405809 | D66: 10.41437477 | E66: 9.657022851 | F66: 1 | G66: =EXP(6.1523-(0.084*B66)-(0.0091*C66)-(0.0289*D66)-(0.0373*E66)) -> 229.2349406 | H66: 326.7689232 | I66: 131.5324073 | J66: =VLOOKUP(A66,Sheet1!$1:$1048576,8,FALSE) -> 4
A67: 11062 | B67: 0.7570887268 | C67: 9.252152294 | D67: 10.255191 | E67: 7.803293022 | F67: 1 | G67: 225.2187409 | H67: =EXP(6.1523+(-0.084*B67)+(-0.0091*0)+(-0.0289*D67)+(-0.0373*F67)) -> 315.7748713 | I67: =EXP(6.1523+(-0.084*B67)+(-0.0091*100)+(-0.0289*D67)+(-0.0373*F67)) -> 127.107035 | J67: =VLOOKUP(A67,Sheet1!$1:$1048576,8,FALSE) -> 4
A68: 11063 | B68: 2.608610753 | C68: 4.920265492 | D68: 24.035798 | E68: 4.077552549 | F68: 1 | G68: 154.7289704 | H68: 181.4975463 | I68: 73.05715899 | J68: =VLOOKUP(A68,Sheet1!$1:$1048576,8,FALSE) -> 3
A69: 11064 | B69: 1.22059706 | C69: 28.52431857 | D69: 25.77329491 | E69: 2.71623695 | F69: 1 | G69: 140.3353179 | H69: 193.9541176 | I69: 78.0712307 | J69: =VLOOKUP(A69,Sheet1!$1:$1048576,8,FALSE) -> 4
A70: 11065 | B70: 2.10986544 | C70: 10.72075745 | D70: 14.64663708 | E70: 4.910672956 | F70: 1 | G70: 194.6214709 | H70: 248.2617148 | I70: 99.93135412 | J70: =VLOOKUP(A70,Sheet1!$1:$1048576,8,FALSE) -> 4
A71: 11066 | B71: 1.774237495 | C71: 3.877585441 | D71: 12.74656306 | E71: 2.568061554 | F71: 1 | G71: 245.6268844 | H71: 269.7750269 | I71: 108.5909834 | J71: =VLOOKUP(A71,Sheet1!$1:$1048576,8,FALSE) -> 2
A72: 11067 | B72: 0.8676465764 | C72: 15.15858444 | D72: 21.02097471 | E72: 5.838356947 | F72: 1 | G72: 166.7003161 | H72: 229.2037896 | I72: 92.26007754 | J72: =VLOOKUP(A72,Sheet1!$1:$1048576,8,FALSE) -> 4
A73: 11068 | B73: 0.2946604925 | C73: 10.00152256 | D73: 34.87490523 | E73: 3.918335128 | F73: 1 | G73: 131.9596246 | H73: 161.1545363 | I73: 64.86860468 | J73: =VLOOKUP(A73,Sheet1!$1:$1048576,8,FALSE) -> 3
A74: 11069 | B74: 0.03625280719 | C74: 12.33903906 | D74: 23.16644285 | E74: 9.190339811 | F74: 1 | G74: 152.1184716 | H74: 231.0062037 | I74: 92.98559288 | J74: =VLOOKUP(A74,Sheet1!$1:$1048576,8,FALSE) -> 4
A75: 11070 | B75: 0.001639792293 | C75: 12.16451054 | D75: 23.59927728 | E75: 9.376776926 | F75: 1 | G75: 149.8586204 | H75: 228.7988296 | I75: 92.09707135 | J75: =VLOOKUP(A75,Sheet1!$1:$1048576,8,FALSE) -> 4
A76: 11071 | B76: 0.4835379408 | C76: 21.01853821 | D76: 30.38273173 | E76: 5.197126615 | F76: 1 | G76: 127.548967 | H76: 180.606723 | I76: 72.69858102 | J76: =VLOOKUP(A76,Sheet1!$1:$1048576,8,FALSE) -> 4
A77: 11072 | B77: 0.1704761482 | C77: 2.451801952 | D77: 34.36807095 | E77: 10.66466538 | F77: 1 | G77: 112.6898479 | H77: 165.2472361 | I77: 66.51601548 | J77: =VLOOKUP(A77,Sheet1!$1:$1048576,8,FALSE) -> 4
A78: 11073 | B78: 0.1300670284 | C78: 21.27702971 | D78: 35.10309278 | E78: 8.295631593 | F78: 1 | G78: 101.8852275 | H78: 162.3241056 | I78: 65.33938463 | J78: =VLOOKUP(A78,Sheet1!$1:$1048576,8,FALSE) -> 4
A79: 11074 | B79: 0.9206056538 | C79: 4.052445598 | D79: 12.6665341 | E79: 4.053139989 | F79: 1 | G79: 249.8465459 | H79: 290.5007882 | I79: 116.9336043 | J79: =VLOOKUP(A79,Sheet1!$1:$1048576,8,FALSE) -> 3
A80: 11075 | B80: 0.08389763433 | C80: 10.71868783 | D80: 16.87842302 | E80: 4.786279965 | F80: 1 | G80: 217.3258568 | H80: 275.9352325 | I80: 111.0706153 | J80: =VLOOKUP(A80,Sheet1!$1:$1048576,8,FALSE) -> 4
A81: 11076 | B81: 1.129020563 | C81: 5.631598784 | D81: 25.37448933 | E81: 5.043753989 | F81: 1 | G81: 161.541158 | H81: 197.7175567 | I81: 79.58610609 | J81: =VLOOKUP(A81,Sheet1!$1:$1048576,8,FALSE) -> 3
A82: 12001 | B82: 0.1130136986 | C82: 34.18995845 | D82: 25.44487761 | E82: 14.19016761 | F82: 1 | G82: 96.25760786 | H82: 214.8950751 | I82: 86.50047337 | J82: =VLOOKUP(A82,Sheet1!$1:$1048576,8,FALSE) -> 5
A83: 12002 | B83: 1.830270903 | C83: 6.6947904 | D83: 19.66338259 | E83: 27.43368946 | F83: 1 | G83: 77.17582635 | H83: 219.8587923 | I83: 88.49848978 | J83: =VLOOKUP(A83,Sheet1!$1:$1048576,8,FALSE) -> 5
A84: 12003 | B84: 0.3284516233 | C84: 5.368242284 | D84: 25.976275 | E84: 16.49518086 | F84: 1 | G84: 111.0382199 | H84: 207.8248621 | I84: 83.65454137 | J84: =VLOOKUP(A84,Sheet1!$1:$1048576,8,FALSE) -> 5
A85: 12004 | B85: 0.01118133204 | C85: 3.745753128 | D85: 20.269329 | E85: 16.54638244 | F85: 1 | G85: 136.2253829 | H85: 251.7098814 | I85: 101.3193247 | J85: =VLOOKUP(A85,Sheet1!$1:$1048576,8,FALSE) -> 5
A86: 12005 | B86: 0.5096656811 | C86: 3.287285805 | D86: 19.74359964 | E86: 16.85661539 | F86: 1 | G86: 131.6612055 | H86: 245.0832756 | I86: 98.65195532 | J86: =VLOOKUP(A86,Sheet1!$1:$1048576,8,FALSE) -> 5
A87: 12006 | B87: 0.09914582062 | C87: 33.34242032 | D87: 24.14256224 | E87: 14.89905918 | F87: 1 | G87: 98.20928571 | H87: 223.397278 | I87: 89.92281599 | J87: =VLOOKUP(A87,Sheet1!$1:$1048576,8,FALSE) -> 5
A88: 12007 | B88: 0.1246470773 | C88: 70.71053316 | D88: 21.58907827 | E88: 11.62767299 | F88: 1 | G88: 84.83661491 | H88: 239.9919266 | I88: 96.60256403 | J88: =VLOOKUP(A88,Sheet1!$1:$1048576,8,FALSE) -> 5
A89: 12008 | B89: 0.6026001383 | C89: 100 | D89: 33.70020964 | E89: 13.61868826 | F89: 1 | G89: 40.84434823 | H89: 162.4622277 | I89: 65.39498213 | J89: =VLOOKUP(A89,Sheet1!$1:$1048576,8,FALSE) -> 5
A90: 12009 | B90: 0.3456221198 | C90: 36.78795331 | D90: 20.7253886 | E90: 13.7934361 | F90: 1 | G90: 107.2366924 | H90: 241.5324932 | I90: 97.2226794 | J90: =VLOOKUP(A90,Sheet1!$1:$1048576,8,FALSE) -> 5
A91: 12010 | B91: 0.2357806783 | C91: 52.57066564 | D91: 46.79970796 | E91: 14.72772264 | F91: 1 | G91: 42.61668107 | H91: 114.7416252 | I91: 46.18628364 | J91: =VLOOKUP(A91,Sheet1!$1:$1048576,8,FALSE) -> 5
A92: 12011 | B92: 0.1491935484 | C92: 100 | D92: 19.58312442 | E92: 25.05268137 | F92: 1 | G92: 41.6520435 | H92: 253.7921047 | I92: 102.15747 | J92: =VLOOKUP(A92,Sheet1!$1:$1048576,8,FALSE) -> 5
A93: 12012 | B93: 0.1062392673 | C93: 29.24024714 | D93: 24.66856455 | E93: 15.23731512 | F93: 1 | G93: 99.08878666 | H93: 219.8959293 | I93: 88.51343832 | J93: =VLOOKUP(A93,Sheet1!$1:$1048576,8,FALSE) -> 5
A94: 12013 | B94: 3.006430868 | C94: 32.44214047 | D94: 20.9649213 | E94: 11.94508944 | F94: 1 | G94: 94.92605944 | H94: 191.8230977 | I94: 77.21344357 | J94: =VLOOKUP(A94,Sheet1!$1:$1048576,8,FALSE) -> 5
A95: 12014 | B95: 0.116751269 | C95: 42.68742493 | D95: 20.54202671 | E95: 14.55613117 | F95: 1 | G95: 101.2334324 | H95: 247.5291422 | I95: 99.63647591 | J95: =VLOOKUP(A95,Sheet1!$1:$1048576,8,FALSE) -> 5
A96: 12015 | B96: 0.5843844456 | C96: 1.761882728 | D96: 20.09767092 | E96: 14.70092223 | F96: 1 | G96: 142.3105277 | H96: 241.0704024 | I96: 97.03667665 | J96: =VLOOKUP(A96,Sheet1!$1:$1048576,8,FALSE) -> 5
A97: 12016 | B97: 0 | C97: 100 | D97: 21.28937112 | E97: 24.01404873 | F97: 1 | G97: 41.73387533 | H97: 244.6276295 | I97: 98.46854674 | J97: =VLOOKUP(A97,Sheet1!$1:$1048576,8,FALSE) -> 5
A98: 12017 | B98: 1.036613975 | C98: 8.907208056 | D98: 16.7194191 | E98: 14.97384693 | F98: 1 | G98: 140.1135451 | H98: 255.8863023 | I98: 103.0004353 | J98: =VLOOKUP(A98,Sheet1!$1:$1048576,8,FALSE) -> 5
A99: 12018 | B99: 1.469600295 | C99: 5.168335861 | D99: 13.8832315 | E99: 21.61404697 | F99: 1 | G99: 118.4383268 | H99: 267.8235009 | I99: 107.8054469 | J99: =VLOOKUP(A99,Sheet1!$1:$1048576,8,FALSE) -> 5
A100: 12019 | B100: 0.2217649749 | C100: 7.411715642 | D100: 16.08265948 | E100: 17.12499939 | F100: 1 | G100: 142.9755725 | H100: 279.1035565 | I100: 112.3459425 | J100: =VLOOKUP(A100,Sheet1!$1:$1048576,8,FALSE) -> 5
A101: 12020 | B101: 0.6031819693 | C101: 64.90278564 | D101: 23.65591398 | E101: 11.97496564 | F101: 1 | G101: 79.89355874 | H101: 217.1692059 | I101: 87.41586611 | J101: =VLOOKUP(A101,Sheet1!$1:$1048576,8,FALSE) -> 5
A102: 12021 | B102: 0.1408282663 | C102: 3.060990096 | D102: 19.99260218 | E102: 29.35774938 | F102: 1 | G102: 84.75673066 | H102: 250.9827527 | I102: 101.0266378 | J102: =VLOOKUP(A102,Sheet1!$1:$1048576,8,FALSE) -> 5
A103: 12022 | B103: 0.4207312834 | C103: 12.32600842 | D103: 40.83409716 | E103: 8.486330304 | F103: 1 | G103: 90.75343897 | H103: 134.2297876 | I103: 54.03074111 | J103: =VLOOKUP(A103,Sheet1!$1:$1048576,8,FALSE) -> 4
A104: 12023 | B104: 0.6613309022 | C104: 0.5322002995 | D104: 43.90928726 | E104: 23.01558022 | F104: 1 | G104: 52.69105134 | H104: 120.3578998 | I104: 48.44697023 | J104: =VLOOKUP(A104,Sheet1!$1:$1048576,8,FALSE) -> 5
A105: 12024 | B105: 0.3018108652 | C105: 28.28119292 | D105: 36.84844107 | E105: 18.82832041 | F105: 1 | G105: 60.483629 | H105: 152.1288623 | I105: 61.23555227 | J105: =VLOOKUP(A105,Sheet1!$1:$1048576,8,FALSE) -> 5
A106: 12025 | B106: 0.3079828386 | C106: 78.79254725 | D106: 30.34016722 | E106: 7.521254547 | F106: 1 | G106: 70.24882867 | H106: 183.5154039 | I106: 73.86939555 | J106: =VLOOKUP(A106,Sheet1!$1:$1048576,8,FALSE) -> 5
A107: 12026 | B107: 1.772483521 | C107: 71.53529484 | D107: 23.11985899 | E107: 14.20232253 | F107: 1 | G107: 63.7219856 | H107: 199.9260323 | I107: 80.475071 | J107: =VLOOKUP(A107,Sheet1!$1:$1048576,8,FALSE) -> 5
A108: 12027 | B108: 1.026705845 | C108: 3.015825028 | D108: 36.47058824 | E108: 11.73347175 | F108: 1 | G108: 94.34461591 | H108: 144.7136133 | I108: 58.25073492 | J108: =VLOOKUP(A108,Sheet1!$1:$1048576,8,FALSE) -> 4
A109: 12028 | B109: 0.2610972001 | C109: 36.88500052 | D109: 31.29543472 | E109: 13.28078881 | F109: 1 | G109: 81.03675722 | H109: 179.2228085 | I109: 72.14152191 | J109: =VLOOKUP(A109,Sheet1!$1:$1048576,8,FALSE) -> 5
A110: 12029 | B110: 0.5374523304 | C110: 100 | D110: 29.22525503 | E110: 9.606188197 | F110: 1 | G110: 54.28420573 | H110: 185.9065511 | I110: 74.83189021 | J110: =VLOOKUP(A110,Sheet1!$1:$1048576,8,FALSE) -> 5
A111: 12030 | B111: 0.2017391304 | C111: 61.93594315 | D111: 29.12817328 | E111: 12.51296822 | F111: 1 | G111: 71.03686075 | H111: 191.7609809 | I111: 77.18844003 | J111: =VLOOKUP(A111,Sheet1!$1:$1048576,8,FALSE) -> 5
A112: 12031 | B112: 0.443407414 | C112: 8.61191852 | D112: 32.81085353 | E112: 11.59064157 | F112: 1 | G112: 105.2270842 | H112: 168.9360279 | I112: 68.00084355 | J112: =VLOOKUP(A112,Sheet1!$1:$1048576,8,FALSE) -> 4
A113: 12032 | B113: 0 | C113: 29.42356279 | D113: 37.41308611 | E113: 16.72664607 | F113: 1 | G113: 65.32687356 | H113: 153.5094013 | I113: 61.79125264 | J113: =VLOOKUP(A113,Sheet1!$1:$1048576,8,FALSE) -> 5
A114: 12033 | B114: 0.1264774907 | C114: 34.7299921 | D114: 25.57087594 | E114: 11.65098221 | F114: 1 | G114: 104.7999203 | H114: 213.8719724 | I114: 86.08864973 | J114: =VLOOKUP(A114,Sheet1!$1:$1048576,8,FALSE) -> 5
A115: 12034 | B115: 0.005307855626 | C115: 33.47232156 | D115: 25.05197692 | E115: 11.77425969 | F115: 1 | G115: 108.2100228 | H115: 219.3244208 | I115: 88.2833923 | J115: =VLOOKUP(A115,Sheet1!$1:$1048576,8,FALSE) -> 5
A116: 12035 | B116: 0.638320286 | C116: 72.42746644 | D116: 23.68469294 | E116: 10.61948375 | F116: 1 | G116: 78.17866477 | H116: 216.3491353 | I116: 87.08576781 | J116: =VLOOKUP(A116,Sheet1!$1:$1048576,8,FALSE) -> 5
A117: 12036 | B117: 1.468103947 | C117: 22.72185674 | D117: 22.85067873 | E117: 9.491569502 | F117: 1 | G117: 122.4607064 | H117: 206.7054128 | I117: 83.20393589 | J117: =VLOOKUP(A117,Sheet1!$1:$1048576,8,FALSE) -> 5
A118: 12037 | B118: 0.7838284698 | C118: 37.97215003 | D118: 20.02877698 | E118: 12.81691832 | F118: 1 | G118: 108.2030046 | H118: 237.5377965 | I118: 95.6147172 | J118: =VLOOKUP(A118,Sheet1!$1:$1048576,8,FALSE) -> 5
A119: 12038 | B119: 0.5702440266 | C119: 2.633471441 | D119: 25.07050197 | E119: 11.14345065 | F119: 1 | G119: 139.8047345 | H119: 209.0476037 | I119: 84.14672445 | J119: =VLOOKUP(A119,Sheet1!$1:$1048576,8,FALSE) -> 4
A120: 12039 | B120: 0.1421322018 | C120: 15.40429669 | D120: 41.48681055 | E120: 10.24193387 | F120: 1 | G120: 83.02890803 | H120: 134.8404288 | I120: 54.27653895 | J120: =VLOOKUP(A120,Sheet1!$1:$1048576,8,FALSE) -> 4
A121: 12040 | B121: 0.1962935237 | C121: 24.9648436 | D121: 63.8576779 | E121: 5.691247708 | F121: 1 | G121: 47.03353398 | H121: 70.31776381 | I121: 28.30460331 | J121: =VLOOKUP(A121,Sheet1!$1:$1048576,8,FALSE) -> 4
A122: 12041 | B122: 0.3759647189 | C122: 37.98754227 | D122: 29.08520455 | E122: 13.50585887 | F122: 1 | G122: 83.99030551 | H122: 189.2098189 | I122: 76.16153553 | J122: =VLOOKUP(A122,Sheet1!$1:$1048576,8,FALSE) -> 5
A123: 12042 | B123: 0.07283573807 | C123: 59.58045766 | D123: 28.33717051 | E123: 19.1503207 | F123: 1 | G123: 58.60080556 | H123: 198.3310433 | I123: 79.83304929 | J123: =VLOOKUP(A123,Sheet1!$1:$1048576,8,FALSE) -> 5
A124: 12043 | B124: 0.07409962743 | C124: 39.75154677 | D124: 29.16667833 | E124: 13.01536465 | F124: 1 | G124: 86.13763729 | H124: 193.6124784 | I124: 77.93371265 | J124: =VLOOKUP(A124,Sheet1!$1:$1048576,8,FALSE) -> 5
A125: 12044 | B125: 0.4337685573 | C125: 7.478133707 | D125: 20.00758581 | E125: 15.86003981 | F125: 1 | G125: 131.3694666 | H125: 244.7761725 | I125: 98.52833888 | J125: =VLOOKUP(A125,Sheet1!$1:$1048576,8,FALSE) -> 5
A126: 12045 | B126: 0.2733280164 | C126: 48.94499939 | D126: 39.16911138 | E126: 9.964515261 | F126: 1 | G126: 65.38397605 | H126: 142.6013718 | I126: 57.40050652 | J126: =VLOOKUP(A126,Sheet1!$1:$1048576,8,FALSE) -> 5
A127: 12046 | B127: 0.7515352959 | C127: 19.51359449 | D127: 28.46367606 | E127: 11.7181837 | F127: 1 | G127: 104.7848117 | H127: 186.6566433 | I127: 75.1338205 | J127: =VLOOKUP(A127,Sheet1!$1:$1048576,8,FALSE) -> 5
A128: 12047 | B128: 0.6956229943 | C128: 14.81474824 | D128: 41.91616766 | E128: 13.55905366 | F128: 1 | G128: 69.54148719 | H128: 127.1274877 | I128: 51.17189333 | J128: =VLOOKUP(A128,Sheet1!$1:$1048576,8,FALSE) -> 5
A129: 12048 | B129: 0.3722944573 | C129: 21.11126524 | D129: 38.46153846 | E129: 9.646261318 | F129: 1 | G129: 86.27766371 | H129: 144.3424793 | I129: 58.10134446 | J129: =VLOOKUP(A129,Sheet1!$1:$1048576,8,FALSE) -> 5
A130: 12049 | B130: 0.001420076329 | C130: 41.49769781 | D130: 29.18471942 | E130: 12.74432382 | F130: 1 | G130: =EXP(6.1523-(0.084*B130)-(0.0091*C130)-(0.0289*D130)-(0.0373*E130)) -> 86.12071664 | H130: 194.6965753 | I130: 78.37008788 | J130: =VLOOKUP(A130,Sheet1!$1:$1048576,8,FALSE) -> 5
A131: 12050 | B131: 0.3120439245 | C131: 100 | D131: 34.80150681 | E131: 8.606912189 | F131: 1 | G131: 48.8760225 | H131: =EXP(6.1523+(-0.084*B131)+(-0.0091*0)+(-0.0289*D131)+(-0.0373*F131)) -> 161.2610956 | I131: =EXP(6.1523+(-0.084*B131)+(-0.0091*100)+(-0.0289*D131)+(-0.0373*F131)) -> 64.91149739 | J131: =VLOOKUP(A131,Sheet1!$1:$1048576,8,FALSE) -> 5
A132: 12051 | B132: 0.1759539673 | C132: 20.76758959 | D132: 38.22525597 | E132: 11.76488723 | F132: 1 | G132: 81.85870163 | H132: 147.7482732 | I132: 59.47225904 | J132: =VLOOKUP(A132,Sheet1!$1:$1048576,8,FALSE) -> 5
A133: 12052 | B133: 0.6333118583 | C133: 10.75362734 | D133: 13.88750622 | E133: 12.37765133 | F133: 1 | G133: 170.4101998 | H133: 287.2787142 | I133: 115.6366415 | J133: =VLOOKUP(A133,Sheet1!$1:$1048576,8,FALSE) -> 5
A134: 12053 | B134: 0.217623159 | C134: 38.362157 | D134: 35.95345185 | E134: 11.11257374 | F134: 1 | G134: 76.04842185 | H134: 157.2229554 | I134: 63.28604814 | J134: =VLOOKUP(A134,Sheet1!$1:$1048576,8,FALSE) -> 5
A135: 12054 | B135: 0.183108873 | C135: 5.319165558 | D135: 42.66236096 | E135: 7.928572177 | F135: 1 | G135: 95.56785073 | H135: 129.8885302 | I135: 52.28327984 | J135: =VLOOKUP(A135,Sheet1!$1:$1048576,8,FALSE) -> 4
A136: 12055 | B136: 0.807202015 | C136: 29.49624637 | D136: 40.77773814 | E136: 5.541418339 | F136: 1 | G136: 84.00763206 | H136: 130.1540044 | I136: 52.39013963 | J136: =VLOOKUP(A136,Sheet1!$1:$1048576,8,FALSE) -> 4
A137: 12056 | B137: 0.1550653809 | C137: 14.02599499 | D137: 40.64926798 | E137: 5.760982005 | F137: 1 | G137: 101.6961535 | H137: 137.9940631 | I137: 55.54595318 | J137: =VLOOKUP(A137,Sheet1!$1:$1048576,8,FALSE) -> 4
A138: 12057 | B138: 0.07557003257 | C138: 40.31868345 | D138: 27.57218918 | E138: 11.69730645 | F138: 1 | G138: 94.24580349 | H138: 202.7179999 | I138: 81.59890559 | J138: =VLOOKUP(A138,Sheet1!$1:$1048576,8,FALSE) -> 5
A139: 12058 | B139: 0.09683177153 | C139: 51.51376846 | D139: 36.69064748 | E139: 9.5186015 | F139: 1 | G139: 70.80908347 | H139: 155.4783384 | I139: 62.58379751 | J139: =VLOOKUP(A139,Sheet1!$1:$1048576,8,FALSE) -> 5
A140: 12059 | B140: 0.08315565032 | C140: 36.71189497 | D140: 30.69100884 | E140: 11.85549529 | F140: 1 | G140: 88.4163185 | H140: 185.1274987 | I140: 74.51830275 | J140: =VLOOKUP(A140,Sheet1!$1:$1048576,8,FALSE) -> 5
A141: 12060 | B141: 0.003947368421 | C141: 42.88377772 | D141: 28.62012231 | E141: 12.93002059 | F141: 1 | G141: 85.82537777 | H141: 197.8574627 | I141: 79.64242166 | J141: =VLOOKUP(A141,Sheet1!$1:$1048576,8,FALSE) -> 5
A142: 12061 | B142: 0.07464675819 | C142: 87.32812304 | D142: 37.27556596 | E142: 10.88470399 | F142: 1 | G142: 47.85044594 | H142: 153.1573487 | I142: 61.64954295 | J142: =VLOOKUP(A142,Sheet1!$1:$1048576,8,FALSE) -> 5
A143: 12062 | B143: 0 | C143: 38.76726341 | D143: 28.28571104 | E143: 11.40704698 | F143: 1 | G143: 95.25695234 | H143: 199.8451769 | I143: 80.44252474 | J143: =VLOOKUP(A143,Sheet1!$1:$1048576,8,FALSE) -> 5
A144: 12063 | B144: 0.004934875819 | C144: 53.54820974 | D144: 29.01986038 | E144: 14.60185166 | F144: 1 | G144: 72.33251342 | H144: 195.5686572 | I144: 78.72112198 | J144: =VLOOKUP(A144,Sheet1!$1:$1048576,8,FALSE) -> 5
A145: 12064 | B145: 0.5916631515 | C145: 1.668921081 | D145: 17.13810316 | E145: 17.80621413 | F145: 1 | G145: 138.0961449 | H145: 262.4364911 | I145: 105.6370449 | J145: =VLOOKUP(A145,Sheet1!$1:$1048576,8,FALSE) -> 5
A146: 12065 | B146: 0.3219328522 | C146: 39.21442575 | D146: 38.14766233 | E146: 8.702041357 | F146: 1 | G146: 76.81137816 | H146: 146.2752615 | I146: 58.87933612 | J146: =VLOOKUP(A146,Sheet1!$1:$1048576,8,FALSE) -> 5
A147: 12066 | B147: 0.057787453 | C147: 35.5554547 | D147: 40.26725679 | E147: 8.81819521 | F147: 1 | G147: 76.03918608 | H147: 140.6707612 | I147: 56.62338898 | J147: =VLOOKUP(A147,Sheet1!$1:$1048576,8,FALSE) -> 5
A148: 12067 | B148: 0.2398087156 | C148: 23.24404649 | D148: 42.14596423 | E148: 6.469131403 | F148: 1 | G148: 86.60159879 | H148: 131.2150659 | I148: 52.81724259 | J148: =VLOOKUP(A148,Sheet1!$1:$1048576,8,FALSE) -> 4
A149: 12068 | B149: 0.06808090775 | C149: 40.70408337 | D149: 33.8295053 | E149: 10.71893651 | F149: 1 | G149: 81.34383199 | H149: 169.2892009 | I149: 68.14300425 | J149: =VLOOKUP(A149,Sheet1!$1:$1048576,8,FALSE) -> 5
A150: 12069 | B150: 0.1525040083 | C150: 43.69076642 | D150: 24.9283739 | E150: 12.03804145 | F150: 1 | G150: 96.7813913 | H150: 217.4044965 | I150: 87.51057626 | J150: =VLOOKUP(A150,Sheet1!$1:$1048576,8,FALSE) -> 5
A151: 12070 | B151: 1.223852667 | C151: 17.8134671 | D151: 18.47159787 | E151: 5.821472035 | F151: 1 | G151: 170.1063347 | H151: 239.4554046 | I151: 96.38660092 | J151: =VLOOKUP(A151,Sheet1!$1:$1048576,8,FALSE) -> 4
A152: 12071 | B152: 0.9226112548 | C152: 14.42890103 | D152: 20.46541281 | E152: 6.013615886 | F152: 1 | G152: 168.6354615 | H152: 231.8406366 | I152: 93.32147233 | J152: =VLOOKUP(A152,Sheet1!$1:$1048576,8,FALSE) -> 4
A153: 12072 | B153: 0.6336136681 | C153: 20.59831228 | D153: 28.05903825 | E153: 6.198850359 | F153: 1 | G153: 130.2568781 | H153: 190.7321803 | I153: 76.77432286 | J153: =VLOOKUP(A153,Sheet1!$1:$1048576,8,FALSE) -> 4
A154: 12073 | B154: 0.2476635514 | C154: 15.19422789 | D154: 20.79921389 | E154: 5.931817962 | F154: 1 | G154: 176.0687769 | H154: 243.0091217 | I154: 97.81705813 | J154: =VLOOKUP(A154,Sheet1!$1:$1048576,8,FALSE) -> 4
A155: 12074 | B155: 0.1997016198 | C155: 17.47419664 | D155: 28.15553046 | E155: 6.603609678 | F155: 1 | G155: 136.5239972 | H155: 197.2614948 | I155: 79.40253015 | J155: =VLOOKUP(A155,Sheet1!$1:$1048576,8,FALSE) -> 4
A156: 12075 | B156: 0.04295253564 | C156: 38.25865492 | D156: 24.39483297 | E156: 12.933846 | F156: 1 | G156: 100.7956398 | H156: 222.8237976 | I156: 89.69197624 | J156: =VLOOKUP(A156,Sheet1!$1:$1048576,8,FALSE) -> 5
A157: 12076 | B157: 0.7382581762 | C157: 23.18184713 | D157: 24.38932732 | E157: 6.081315565 | F157: 1 | G157: 140.843152 | H157: 210.2158276 | I157: 84.6169629 | J157: =VLOOKUP(A157,Sheet1!$1:$1048576,8,FALSE) -> 4
A158: 12077 | B158: 0.01890756303 | C158: 52.25440152 | D158: 27.21767282 | E158: 15.31596942 | F158: 1 | G158: 74.98741556 | H158: 205.782754 | I158: 82.83254337 | J158: =VLOOKUP(A158,Sheet1!$1:$1048576,8,FALSE) -> 5
A159: 12078 | B159: 0.2695652174 | C159: 41.93897651 | D159: 50.83429704 | E159: 8.762338546 | F159: 1 | G159: 52.0427462 | H159: 101.8239495 | I159: 40.98660628 | J159: =VLOOKUP(A159,Sheet1!$1:$1048576,8,FALSE) -> 5
A160: 12079 | B160: 0.5204982146 | C160: 100 | D160: 64.3776824 | E160: 9.0047025 | F160: 1 | G160: 20.12952666 | H160: 67.40796112 | I160: 27.13333725 | J160: =VLOOKUP(A160,Sheet1!$1:$1048576,8,FALSE) -> 5
A161: 12080 | B161: 0.5151760252 | C161: 3.375647197 | D161: 41.31101813 | E161: 8.73632183 | F161: 1 | G161: 95.44532745 | H161: 131.3462269 | I161: 52.87003805 | J161: =VLOOKUP(A161,Sheet1!$1:$1048576,8,FALSE) -> 4
A162: 12081 | B162: 0.09756405402 | C162: 29.79515126 | D162: 24.5470636 | E162: 12.91425751 | F162: 1 | G162: 107.9703659 | H162: 220.8302886 | I162: 88.88954056 | J162: =VLOOKUP(A162,Sheet1!$1:$1048576,8,FALSE) -> 5
A163: 12082 | B163: 0.5133246538 | C163: 100 | D163: 23.04840371 | E163: 16.15034415 | F163: 1 | G163: 50.94130181 | H163: 222.6902655 | I163: 89.63822631 | J163: =VLOOKUP(A163,Sheet1!$1:$1048576,8,FALSE) -> 5
A164: 12083 | B164: 1.310876644 | C164: 5.353177376 | D164: 18.15060655 | E164: 5.628275167 | F164: 1 | G164: 192.2862707 | H164: 239.9267894 | I164: 96.57634474 | J164: =VLOOKUP(A164,Sheet1!$1:$1048576,8,FALSE) -> 3
A165: 12084 | B165: 0.9124039387 | C165: 7.947729098 | D165: 18.15116606 | E165: 7.633777874 | F165: 1 | G165: 180.1923913 | H165: 248.0894509 | I165: 99.8620137 | J165: =VLOOKUP(A165,Sheet1!$1:$1048576,8,FALSE) -> 4
A166: 12085 | B166: 0.7404640362 | C166: 10.9670795 | D166: 18.18505338 | E166: 12.91517244 | F166: 1 | G166: 145.9138856 | H166: 251.4522167 | I166: 101.2156084 | J166: =VLOOKUP(A166,Sheet1!$1:$1048576,8,FALSE) -> 5
A167: 12086 | B167: 0.05275678701 | C167: 31.45538668 | D167: 24.69393236 | E167: 13.21320799 | F167: 1 | G167: 105.1215299 | H167: 220.7241617 | I167: 88.84682191 | J167: =VLOOKUP(A167,Sheet1!$1:$1048576,8,FALSE) -> 5
A168: 12087 | B168: 0.7277529212 | C168: 11.38628936 | D168: 25.35649468 | E168: 9.147850031 | F168: 1 | G168: 136.1198869 | H168: 204.6018833 | I168: 82.35721431 | J168: =VLOOKUP(A168,Sheet1!$1:$1048576,8,FALSE) -> 4
A169: 12088 | B169: 0.204778157 | C169: 30.14478869 | D169: 24.38196142 | E169: 13.27519914 | F169: 1 | G169: 105.7393861 | H169: 219.8971528 | I169: 88.51393079 | J169: =VLOOKUP(A169,Sheet1!$1:$1048576,8,FALSE) -> 5
A170: 12089 | B170: 0.06100171233 | C170: 99.48717034 | D170: 28.64024775 | E170: 11.92333753 | F170: 1 | G170: 52.95269439 | H170: 196.7969913 | I170: 79.2155562 | J170: =VLOOKUP(A170,Sheet1!$1:$1048576,8,FALSE) -> 5
A171: 12090 | B171: 0.008805031447 | C171: 45.48409555 | D171: 24.97637294 | E171: 16.52333268 | F171: 1 | G171: 81.41158794 | H171: 219.7395979 | I171: 88.45051113 | J171: =VLOOKUP(A171,Sheet1!$1:$1048576,8,FALSE) -> 5
A172: 12091 | B172: 0.4393786389 | C172: 3.701369549 | D172: 34.1560343 | E172: 10.36208958 | F172: 1 | G172: 110.8407403 | H172: 162.5495377 | I172: 65.43012655 | J172: =VLOOKUP(A172,Sheet1!$1:$1048576,8,FALSE) -> 4
A173: 12092 | B173: 0.04167147639 | C173: 48.08786205 | D173: 24.4904968 | E173: 16.85342532 | F173: 1 | G173: 79.42331219 | H173: 222.2325239 | I173: 89.45397423 | J173: =VLOOKUP(A173,Sheet1!$1:$1048576,8,FALSE) -> 5
A174: 12093 | B174: 0.3243986254 | C174: 8.105862773 | D174: 28.12220032 | E174: 9.972420255 | F174: 1 | G174: 129.876539 | H174: 195.3941745 | I174: 78.65088849 | J174: =VLOOKUP(A174,Sheet1!$1:$1048576,8,FALSE) -> 4
A175: 13001 | B175: 1.017872265 | C175: 22.11068169 | D175: 23.0241363 | E175: 13.73520297 | F175: 1 | G175: 108.6216688 | H175: 213.5991635 | I175: 85.97883753 | J175: =VLOOKUP(A175,Sheet1!$1:$1048576,8,FALSE) -> 5
A176: 13002 | B176: 0.8687429835 | C176: 11.4485366 | D176: 38.79202989 | E176: 6.102830792 | F176: 1 | G176: 102.1475824 | H176: 137.1308975 | I176: 55.19850809 | J176: =VLOOKUP(A176,Sheet1!$1:$1048576,8,FALSE) -> 4
A177: 13003 | B177: 0.04409171076 | C177: 70.14739227 | D177: 30.33603946 | E177: 22.475 | F177: 1 | G177: 44.48828901 | H177: 187.6511691 | I177: 75.53414124 | J177: =VLOOKUP(A177,Sheet1!$1:$1048576,8,FALSE) -> 5
A178: 13003 | B178: 0.04409171076 | C178: 70.14739227 | D178: 30.33603946 | E178: 22.475 | F178: 1 | G178: 44.48828901 | H178: 187.6511691 | I178: 75.53414124 | J178: =VLOOKUP(A178,Sheet1!$1:$1048576,8,FALSE) -> 5
A179: 13005 | B179: 0.2772243527 | C179: 100 | D179: 29.98231132 | E179: 7.616763034 | F179: 1 | G179: 58.46446279 | H179: 185.9028745 | I179: 74.8304103 | J179: =VLOOKUP(A179,Sheet1!$1:$1048576,8,FALSE) -> 5
A180: 13006 | B180: 0.278664114 | C180: 15.40520098 | D180: 39.51722836 | E180: 7.84532208 | F180: 1 | G180: 95.01421122 | H180: 141.1106472 | I180: 56.80045378 | J180: =VLOOKUP(A180,Sheet1!$1:$1048576,8,FALSE) -> 4
A181: 13007 | B181: 0.4018889403 | C181: 32.27896735 | D181: 27.2355039 | E181: 12.75100255 | F181: 1 | G181: 95.78290924 | H181: 199.1653265 | I181: 80.16886852 | J181: =VLOOKUP(A181,Sheet1!$1:$1048576,8,FALSE) -> 5
A182: 13009 | B182: 0.06971153846 | C182: 13.28269182 | D182: 37.15094605 | E182: 9.999414553 | F182: 1 | G182: 97.41022957 | H182: 153.7736767 | I182: 61.89762991 | J182: =VLOOKUP(A182,Sheet1!$1:$1048576,8,FALSE) -> 4
A183: 13010 | B183: 0.282614432 | C183: 25.36396933 | D183: 37.38446411 | E183: 6.122486198 | F183: 1 | G183: 98.39288739 | H183: 150.0321156 | I183: 60.3915609 | J183: =VLOOKUP(A183,Sheet1!$1:$1048576,8,FALSE) -> 4
A184: 13012 | B184: 0.626899696 | C184: 7.081777648 | D184: 26.66052605 | E184: 10.29469554 | F184: 1 | G184: 131.7248006 | H184: 198.7109434 | I184: 79.98596828 | J184: =VLOOKUP(A184,Sheet1!$1:$1048576,8,FALSE) -> 4
A185: 13013 | B185: 0.1434226151 | C185: 28.6642532 | D185: 26.03540816 | E185: 16.31622288 | F185: 1 | G185: 91.68780544 | H185: 210.7197823 | I185: 84.81981684 | J185: =VLOOKUP(A185,Sheet1!$1:$1048576,8,FALSE) -> 5
A186: 13014 | B186: 0.3519226315 | C186: 23.93175811 | D186: 34.49856734 | E186: 8.948863429 | F186: 1 | G186: 96.94640483 | H186: 162.1350943 | I186: 65.26330301 | J186: =VLOOKUP(A186,Sheet1!$1:$1048576,8,FALSE) -> 5
A187: 13014 | B187: 0.3519226315 | C187: 23.93175811 | D187: 34.49856734 | E187: 8.948863429 | F187: 1 | G187: 96.94640483 | H187: 162.1350943 | I187: 65.26330301 | J187: =VLOOKUP(A187,Sheet1!$1:$1048576,8,FALSE) -> 5
A188: 13015 | B188: 0.4967885453 | C188: 5.38673948 | D188: 33.10366427 | E188: 9.735627012 | F188: 1 | G188: 114.630699 | H188: 166.763037 | I188: 67.12616208 | J188: =VLOOKUP(A188,Sheet1!$1:$1048576,8,FALSE) -> 4
A189: 13016 | B189: 1.234244565 | C189: 5.872529903 | D189: 11.71376481 | E189: 26.23885013 | F189: 1 | G189: 107.5489961 | H189: 290.8465049 | I189: 117.0727637 | J189: =VLOOKUP(A189,Sheet1!$1:$1048576,8,FALSE) -> 5
A190: 13019 | B190: 0.004789080596 | C190: 7.786396125 | D190: 36.24733475 | E190: 18.86806137 | F190: 1 | G190: 75.92263408 | H190: 158.7054142 | I190: 63.8827737 | J190: =VLOOKUP(A190,Sheet1!$1:$1048576,8,FALSE) -> 5
A191: 13020 | B191: 0.3690466226 | C191: 12.79386759 | D191: 27.75683318 | E191: 14.33837921 | F191: 1 | G191: 106.4719814 | H191: 196.7290901 | I191: 79.18822432 | J191: =VLOOKUP(A191,Sheet1!$1:$1048576,8,FALSE) -> 5
A192: 13021 | B192: 0.3056971944 | C192: 3.200912413 | D192: 13.02601711 | E192: 13.22332294 | F192: 1 | G192: 186.3844158 | H192: 302.7385438 | I192: 121.8595974 | J192: =VLOOKUP(A192,Sheet1!$1:$1048576,8,FALSE) -> 4
A193: 13022 | B193: 0.2837078652 | C193: 22.86663025 | D193: 24.55917892 | E193: 15.7381749 | F193: 1 | G193: 101.8588478 | H193: 217.3281163 | I193: 87.47983139 | J193: =VLOOKUP(A193,Sheet1!$1:$1048576,8,FALSE) -> 5
A194: 13023 | B194: 0.4825017785 | C194: 69.59574821 | D194: 28.26603325 | E194: 10.77232031 | F194: 1 | G194: =EXP(6.1523-(0.084*B194)-(0.0091*C194)-(0.0289*D194)-(0.0373*E194)) -> 70.79246958 | H194: 192.0165353 | I194: 77.29130686 | J194: =VLOOKUP(A194,Sheet1!$1:$1048576,8,FALSE) -> 5
A195: 13024 | B195: 0.7088723867 | C195: 19.81073399 | D195: 40.00659631 | E195: 10.30298116 | F195: 1 | G195: 79.20070573 | H195: =EXP(6.1523+(-0.084*B195)+(-0.0091*0)+(-0.0289*D195)+(-0.0373*F195)) -> 134.1909903 | I195: =EXP(6.1523+(-0.084*B195)+(-0.0091*100)+(-0.0289*D195)+(-0.0373*F195)) -> 54.01512426 | J195: =VLOOKUP(A195,Sheet1!$1:$1048576,8,FALSE) -> 5
A196: 13025 | B196: 0.2106002106 | C196: 22.65166532 | D196: 29.62174349 | E196: 13.30838475 | F196: 1 | G196: 97.12592087 | H196: 188.9044243 | I196: 76.0386068 | J196: =VLOOKUP(A196,Sheet1!$1:$1048576,8,FALSE) -> 5
A197: 13029 | B197: 0.3468796059 | C197: 5.638135303 | D197: 27.71590287 | E197: 11.76881113 | F197: 1 | G197: 125.4476869 | H197: 197.3290264 | I197: 79.42971323 | J197: =VLOOKUP(A197,Sheet1!$1:$1048576,8,FALSE) -> 4
A198: 13030 | B198: 0.3976526617 | C198: 20.38620028 | D198: 24.22687758 | E198: 9.87930538 | F198: 1 | G198: 129.6356601 | H198: 217.3351027 | I198: 87.48264355 | J198: =VLOOKUP(A198,Sheet1!$1:$1048576,8,FALSE) -> 5
A199: 13031 | B199: 0.8083147321 | C199: 15.07374287 | D199: 24.96615742 | E199: 11.02369565 | F199: 1 | G199: 123.2882001 | H199: 205.5274524 | I199: 82.72977828 | J199: =VLOOKUP(A199,Sheet1!$1:$1048576,8,FALSE) -> 5
A200: 13032 | B200: 0.2798494576 | C200: 0.8820312585 | D200: 32.38770686 | E200: 24.05200867 | F200: 1 | G200: 72.79312467 | H200: 173.3803814 | I200: 69.7898035 | J200: =VLOOKUP(A200,Sheet1!$1:$1048576,8,FALSE) -> 5
... 1180 more rows

Sheet Sheet1
B1: Fluvial Density | C1: Fluvial Density | I1: 0.05 | J1: 0.15 | K1: 0.35 | L1: 0.65
A2: UniqueID | B2: Reference IC and 0%Aug PA | C2: Reference IC and 100% Aug Dep | D2: Range of Fluv Density(B-C) under reference IC conditions | E2: Predicted Fluvial Density(existing Aug Dep&IC) | F2: Difference between max fluvial density at reference IC and actual fluvial density (B - E) | G2: % of range 'taken up' by actual IC and AugPA (F/D*100) | H2: Category (5,15,35,65) | I2: 5% Reduction in Range | J2: 15% reduction in range | K2: 35% reduction in range | L2: 65% reduction in range
A3: 10001 | B3: =VLOOKUP($A3,BasinData!$A:$K,8,FALSE) -> 159.4283503 | C3: =VLOOKUP($A3,BasinData!$A:$K,9,FALSE) -> 64.17377299 | D3: =B3-C3 -> 95.25457731 | E3: =VLOOKUP($A3,BasinData!$A:$K,7,FALSE) -> 99.64651685 | F3: =B3-E3 -> 59.78183345 | G3: =F3/D3*100 -> 62.76006376 | H3: =IF($G3<($I$1*100),1,IF($G3<($J$1*100),2,IF($G3<($K$1*100),3,IF($G3<($L$1*100),4,5)))) -> 4 | I3: =B3-(D3*$I$1) -> 154.6656214 | J3: =B3-(D3*$J$1) -> 145.1401637 | K3: =B3-(D3*$K$1) -> 126.0892482 | L3: =B3-(D3*$L$1) -> 97.51287505
A4: 10002 | B4: =VLOOKUP($A4,BasinData!$A:$K,8,FALSE) -> 92.5826132 | C4: =VLOOKUP($A4,BasinData!$A:$K,9,FALSE) -> 37.26674454 | D4: 55.31586866 | E4: =VLOOKUP($A4,BasinData!$A:$K,7,FALSE) -> 61.61761915 | F4: 30.96499405 | G4: 55.97850093 | H4: =IF($G4<($I$1*100),1,IF($G4<($J$1*100),2,IF($G4<($K$1*100),3,IF($G4<($L$1*100),4,5)))) -> 4 | I4: 89.81681977 | J4: 84.2852329 | K4: 73.22205917 | L4: 56.62729857
A5: 10003 | B5: =VLOOKUP($A5,BasinData!$A:$K,8,FALSE) -> 91.47413441 | C5: =VLOOKUP($A5,BasinData!$A:$K,9,FALSE) -> 36.82055497 | D5: 54.65357944 | E5: =VLOOKUP($A5,BasinData!$A:$K,7,FALSE) -> 62.51094979 | F5: 28.96318462 | G5: 52.9941221 | H5: 4 | I5: 88.74145544 | J5: 83.27609749 | K5: 72.34538161 | L5: 55.94930778
A6: 10004 | B6: =VLOOKUP($A6,BasinData!$A:$K,8,FALSE) -> 353.0872045 | C6: =VLOOKUP($A6,BasinData!$A:$K,9,FALSE) -> 142.126153 | D6: 210.9610515 | E6: =VLOOKUP($A6,BasinData!$A:$K,7,FALSE) -> 65.50247097 | F6: 287.5847335 | G6: 136.3212458 | H6: 5 | I6: 342.5391519 | J6: 321.4430468 | K6: 279.2508365 | L6: 215.962521
A7: 11001 | B7: =VLOOKUP($A7,BasinData!$A:$K,8,FALSE) -> 212.2381219 | C7: =VLOOKUP($A7,BasinData!$A:$K,9,FALSE) -> 85.43098531 | D7: 126.8071365 | E7: =VLOOKUP($A7,BasinData!$A:$K,7,FALSE) -> 153.023055 | F7: 59.21506687 | G7: 46.69695135 | H7: 4 | I7: 205.897765 | J7: 193.2170514 | K7: 167.8556241 | L7: 129.8134831
A8: 11002 | B8: =VLOOKUP($A8,BasinData!$A:$K,8,FALSE) -> 229.2952106 | C8: =VLOOKUP($A8,BasinData!$A:$K,9,FALSE) -> 92.2968767 | D8: 136.9983339 | E8: =VLOOKUP($A8,BasinData!$A:$K,7,FALSE) -> 125.0648635 | F8: 104.230347 | G8: 76.08147054 | H8: 5 | I8: 222.4452939 | J8: 208.7454605 | K8: 181.3457937 | L8: 140.2462936
A9: 11003 | B9: =VLOOKUP($A9,BasinData!$A:$K,8,FALSE) -> 182.7467911 | C9: =VLOOKUP($A9,BasinData!$A:$K,9,FALSE) -> 73.5600103 | D9: 109.1867808 | E9: =VLOOKUP($A9,BasinData!$A:$K,7,FALSE) -> 142.5390104 | F9: 40.20778071 | G9: 36.82476981 | H9: 4 | I9: 177.2874521 | J9: 166.368774 | K9: 144.5314178 | L9: 111.7753836
A10: 11004 | B10: =VLOOKUP($A10,BasinData!$A:$K,8,FALSE) -> 164.3632616 | C10: =VLOOKUP($A10,BasinData!$A:$K,9,FALSE) -> 66.16019435 | D10: 98.20306729 | E10: =VLOOKUP($A10,BasinData!$A:$K,7,FALSE) -> 114.9058503 | F10: 49.45741137 | G10: 50.36238962 | H10: 4 | I10: 159.4531083 | J10: 149.6328015 | K10: 129.9921881 | L10: 100.5312679
A11: 11005 | B11: =VLOOKUP($A11,BasinData!$A:$K,8,FALSE) -> 192.7647492 | C11: =VLOOKUP($A11,BasinData!$A:$K,9,FALSE) -> 77.59248109 | D11: 115.1722681 | E11: =VLOOKUP($A11,BasinData!$A:$K,7,FALSE) -> 150.8308455 | F11: 41.93390371 | G11: 36.40972293 | H11: 4 | I11: 187.0061358 | J11: 175.488909 | K11: 152.4544554 | L11: 117.9027749
A12: 11006 | B12: =VLOOKUP($A12,BasinData!$A:$K,8,FALSE) -> 253.2525889 | C12: =VLOOKUP($A12,BasinData!$A:$K,9,FALSE) -> 101.9403018 | D12: 151.3122871 | E12: =VLOOKUP($A12,BasinData!$A:$K,7,FALSE) -> 196.6724998 | F12: 56.58008907 | G12: 37.39292437 | H12: 4 | I12: 245.6869745 | J12: 230.5557458 | K12: 200.2932884 | L12: 154.8996023
A13: 11007 | B13: =VLOOKUP($A13,BasinData!$A:$K,8,FALSE) -> 136.3263968 | C13: =VLOOKUP($A13,BasinData!$A:$K,9,FALSE) -> 54.87467709 | D13: 81.45171971 | E13: =VLOOKUP($A13,BasinData!$A:$K,7,FALSE) -> 105.310864 | F13: 31.01553277 | G13: 38.07842594 | H13: 4 | I13: 132.2538108 | J13: 124.1086388 | K13: 107.8182949 | L13: 83.38277899
A14: 11008 | B14: =VLOOKUP($A14,BasinData!$A:$K,8,FALSE) -> 191.1680948 | C14: =VLOOKUP($A14,BasinData!$A:$K,9,FALSE) -> 76.94978902 | D14: 114.2183058 | E14: =VLOOKUP($A14,BasinData!$A:$K,7,FALSE) -> 146.3949264 | F14: 44.77316839 | G14: 39.19964324 | H14: 4 | I14: 185.4571795 | J14: 174.0353489 | K14: 151.1916878 | L14: 116.926196
A15: 11009 | B15: =VLOOKUP($A15,BasinData!$A:$K,8,FALSE) -> 191.6813364 | C15: =VLOOKUP($A15,BasinData!$A:$K,9,FALSE) -> 77.15638121 | D15: 114.5249552 | E15: =VLOOKUP($A15,BasinData!$A:$K,7,FALSE) -> 144.6891602 | F15: 46.99217623 | G15: 41.03225899 | H15: 4 | I15: 185.9550887 | J15: 174.5025932 | K15: 151.5976021 | L15: 117.2401155
A16: 11010 | B16: =VLOOKUP($A16,BasinData!$A:$K,8,FALSE) -> 209.0284139 | C16: =VLOOKUP($A16,BasinData!$A:$K,9,FALSE) -> 84.13900009 | D16: 124.8894138 | E16: =VLOOKUP($A16,BasinData!$A:$K,7,FALSE) -> 158.6789746 | F16: 50.34943928 | G16: 40.31521789 | H16: 4 | I16: 202.7839432 | J16: 190.2950018 | K16: 165.317119 | L16: 127.8502949
A17: 11011 | B17: =VLOOKUP($A17,BasinData!$A:$K,8,FALSE) -> 157.8576207 | C17: =VLOOKUP($A17,BasinData!$A:$K,9,FALSE) -> 63.54151627 | D17: 94.31610441 | E17: =VLOOKUP($A17,BasinData!$A:$K,7,FALSE) -> 99.57618188 | F17: 58.2814388 | G17: 61.79372989 | H17: 4 | I17: 153.1418155 | J17: 143.710205 | K17: 124.8469841 | L17: 96.55215282
A18: 11012 | B18: =VLOOKUP($A18,BasinData!$A:$K,8,FALSE) -> 203.5875222 | C18: =VLOOKUP($A18,BasinData!$A:$K,9,FALSE) -> 81.94890939 | D18: 121.6386128 | E18: =VLOOKUP($A18,BasinData!$A:$K,7,FALSE) -> 159.2867436 | F18: 44.30077857 | G18: 36.41999654 | H18: 4 | I18: 197.5055915 | J18: 185.3417303 | K18: 161.0140077 | L18: 124.5224239
A19: 11013 | B19: =VLOOKUP($A19,BasinData!$A:$K,8,FALSE) -> 192.7568443 | C19: =VLOOKUP($A19,BasinData!$A:$K,9,FALSE) -> 77.58929919 | D19: 115.1675451 | E19: =VLOOKUP($A19,BasinData!$A:$K,7,FALSE) -> 146.6402973 | F19: 46.11654701 | G19: 40.043006 | H19: 4 | I19: 186.9984671 | J19: 175.4817125 | K19: 152.4482035 | L19: 117.89794
A20: 11014 | B20: =VLOOKUP($A20,BasinData!$A:$K,8,FALSE) -> 138.3938915 | C20: =VLOOKUP($A20,BasinData!$A:$K,9,FALSE) -> 55.70689379 | D20: 82.68699772 | E20: =VLOOKUP($A20,BasinData!$A:$K,7,FALSE) -> 119.6478234 | F20: 18.74606813 | G20: 22.67111958 | H20: 3 | I20: 134.2595416 | J20: 125.9908419 | K20: 109.4534423 | L20: 84.647343
A21: 11015 | B21: =VLOOKUP($A21,BasinData!$A:$K,8,FALSE) -> 235.3213524 | C21: =VLOOKUP($A21,BasinData!$A:$K,9,FALSE) -> 94.72254479 | D21: 140.5988076 | E21: =VLOOKUP($A21,BasinData!$A:$K,7,FALSE) -> 198.225205 | F21: 37.09614744 | G21: 26.3843969 | H21: 3 | I21: 228.2914121 | J21: 214.2315313 | K21: 186.1117698 | L21: 143.9321275
A22: 11016 | B22: =VLOOKUP($A22,BasinData!$A:$K,8,FALSE) -> 151.5693265 | C22: =VLOOKUP($A22,BasinData!$A:$K,9,FALSE) -> 61.01032552 | D22: 90.55900094 | E22: =VLOOKUP($A22,BasinData!$A:$K,7,FALSE) -> 139.0282876 | F22: 12.54103886 | G22: 13.84847308 | H22: 2 | I22: 147.0413764 | J22: 137.9854763 | K22: 119.8736761 | L22: 92.70597585
A23: 11017 | B23: =VLOOKUP($A23,BasinData!$A:$K,8,FALSE) -> 169.0914181 | C23: =VLOOKUP($A23,BasinData!$A:$K,9,FALSE) -> 68.06339185 | D23: 101.0280262 | E23: =VLOOKUP($A23,BasinData!$A:$K,7,FALSE) -> 92.01403023 | F23: 77.07738784 | G23: 76.29307503 | H23: 5 | I23: 164.0400168 | J23: 153.9372141 | K23: 133.7316089 | L23: 103.423201
A24: 11018 | B24: =VLOOKUP($A24,BasinData!$A:$K,8,FALSE) -> 148.2803654 | C24: =VLOOKUP($A24,BasinData!$A:$K,9,FALSE) -> 59.68643902 | D24: 88.59392637 | E24: =VLOOKUP($A24,BasinData!$A:$K,7,FALSE) -> 104.3854637 | F24: 43.89490166 | G24: 49.54617484 | H24: 4 | I24: 143.8506691 | J24: 134.9912764 | K24: 117.2724912 | L24: 90.69431325
A25: 11019 | B25: =VLOOKUP($A25,BasinData!$A:$K,8,FALSE) -> 241.9326612 | C25: =VLOOKUP($A25,BasinData!$A:$K,9,FALSE) -> 97.38375673 | D25: 144.5489045 | E25: =VLOOKUP($A25,BasinData!$A:$K,7,FALSE) -> 167.6709955 | F25: 74.26166572 | G25: 51.37476896 | H25: 4 | I25: 234.705216 | J25: 220.2503255 | K25: 191.3405446 | L25: 147.9758733
A26: 11020 | B26: =VLOOKUP($A26,BasinData!$A:$K,8,FALSE) -> 301.3941528 | C26: =VLOOKUP($A26,BasinData!$A:$K,9,FALSE) -> 121.3184475 | D26: 180.0757053 | E26: =VLOOKUP($A26,BasinData!$A:$K,7,FALSE) -> 197.6019367 | F26: 103.792216 | G26: 57.63810052 | H26: 4 | I26: 292.3903675 | J26: 274.382797 | K26: 238.3676559 | L26: 184.3449443
A27: 11021 | B27: =VLOOKUP($A27,BasinData!$A:$K,8,FALSE) -> 255.1416771 | C27: =VLOOKUP($A27,BasinData!$A:$K,9,FALSE) -> 102.7007056 | D27: 152.4409715 | E27: =VLOOKUP($A27,BasinData!$A:$K,7,FALSE) -> 134.2943791 | F27: 120.847298 | G27: 79.27481492 | H27: 5 | I27: 247.5196285 | J27: 232.2755314 | K27: 201.7873371 | L27: 156.0550456
A28: 11022 | B28: =VLOOKUP($A28,BasinData!$A:$K,8,FALSE) -> 303.043305 | C28: =VLOOKUP($A28,BasinData!$A:$K,9,FALSE) -> 121.9822712 | D28: 181.0610338 | E28: =VLOOKUP($A28,BasinData!$A:$K,7,FALSE) -> 202.39466 | F28: 100.6486449 | G28: 55.58824162 | H28: 4 | I28: 293.9902533 | J28: 275.8841499 | K28: 239.6719431 | L28: 185.353633
A29: 11023 | B29: =VLOOKUP($A29,BasinData!$A:$K,8,FALSE) -> 200.9829385 | C29: =VLOOKUP($A29,BasinData!$A:$K,9,FALSE) -> 80.90050137 | D29: 120.0824371 | E29: =VLOOKUP($A29,BasinData!$A:$K,7,FALSE) -> 117.9233687 | F29: 83.05956979 | G29: 69.16879085 | H29: 5 | I29: 194.9788166 | J29: 182.9705729 | K29: 158.9540855 | L29: 122.9293544
A30: 11024 | B30: =VLOOKUP($A30,BasinData!$A:$K,8,FALSE) -> 309.7338518 | C30: =VLOOKUP($A30,BasinData!$A:$K,9,FALSE) -> 124.6753784 | D30: 185.0584735 | E30: =VLOOKUP($A30,BasinData!$A:$K,7,FALSE) -> 206.2710888 | F30: 103.462763 | G30: 55.90814682 | H30: 4 | I30: 300.4809281 | J30: 281.9750808 | K30: 244.9633861 | L30: 189.4458441
A31: 11025 | B31: =VLOOKUP($A31,BasinData!$A:$K,8,FALSE) -> 302.2149846 | C31: =VLOOKUP($A31,BasinData!$A:$K,9,FALSE) -> 121.6488522 | D31: 180.5661324 | E31: =VLOOKUP($A31,BasinData!$A:$K,7,FALSE) -> 204.6828534 | F31: 97.53213115 | G31: 54.01463156 | H31: 4 | I31: 293.186678 | J31: 275.1300647 | K31: 239.0168382 | L31: 184.8469985
A32: 11026 | B32: =VLOOKUP($A32,BasinData!$A:$K,8,FALSE) -> 148.4919782 | C32: =VLOOKUP($A32,BasinData!$A:$K,9,FALSE) -> 59.77161831 | D32: 88.72035991 | E32: =VLOOKUP($A32,BasinData!$A:$K,7,FALSE) -> 83.2311632 | F32: 65.26081502 | G32: 73.55787903 | H32: 5 | I32: 144.0559602 | J32: 135.1839242 | K32: 117.4398522 | L32: 90.82374427
A33: 11027 | B33: =VLOOKUP($A33,BasinData!$A:$K,8,FALSE) -> 155.7363638 | C33: =VLOOKUP($A33,BasinData!$A:$K,9,FALSE) -> 62.68765898 | D33: 93.0487048 | E33: =VLOOKUP($A33,BasinData!$A:$K,7,FALSE) -> 85.27663347 | F33: 70.45973031 | G33: 75.72349391 | H33: 5 | I33: 151.0839285 | J33: 141.7790581 | K33: 123.1693171 | L33: 95.25470566
A34: 11028 | B34: =VLOOKUP($A34,BasinData!$A:$K,8,FALSE) -> 229.1445904 | C34: =VLOOKUP($A34,BasinData!$A:$K,9,FALSE) -> 92.23624845 | D34: 136.908342 | E34: =VLOOKUP($A34,BasinData!$A:$K,7,FALSE) -> 154.7949495 | F34: 74.34964095 | G34: 54.30614372 | H34: 4 | I34: 222.2991733 | J34: 208.6083391 | K34: 181.2266707 | L34: 140.1541681
A35: 11029 | B35: =VLOOKUP($A35,BasinData!$A:$K,8,FALSE) -> 259.2123753 | C35: =VLOOKUP($A35,BasinData!$A:$K,9,FALSE) -> 104.3392602 | D35: 154.8731151 | E35: =VLOOKUP($A35,BasinData!$A:$K,7,FALSE) -> 207.5775308 | F35: 51.63484454 | G35: 33.34009554 | H35: 3 | I35: 251.4687196 | J35: 235.9814081 | K35: 205.0067851 | L35: 158.5448505
A36: 11030 | B36: =VLOOKUP($A36,BasinData!$A:$K,8,FALSE) -> 290.2634632 | C36: =VLOOKUP($A36,BasinData!$A:$K,9,FALSE) -> 116.8380753 | D36: 173.4253879 | E36: =VLOOKUP($A36,BasinData!$A:$K,7,FALSE) -> 222.0209831 | F36: 68.2424801 | G36: 39.34976356 | H36: 4 | I36: 281.5921938 | J36: 264.249655 | K36: 229.5645774 | L36: 177.5369611
A37: 11031 | B37: =VLOOKUP($A37,BasinData!$A:$K,8,FALSE) -> 241.3867468 | C37: =VLOOKUP($A37,BasinData!$A:$K,9,FALSE) -> 97.16401296 | D37: 144.2227339 | E37: =VLOOKUP($A37,BasinData!$A:$K,7,FALSE) -> 211.4082497 | F37: 29.97849711 | G37: 20.78624937 | H37: 3 | I37: 234.1756101 | J37: 219.7533367 | K37: 190.90879 | L37: 147.6419698
A38: 11032 | B38: =VLOOKUP($A38,BasinData!$A:$K,8,FALSE) -> 222.3492771 | C38: =VLOOKUP($A38,BasinData!$A:$K,9,FALSE) -> 89.50097023 | D38: 132.8483069 | E38: =VLOOKUP($A38,BasinData!$A:$K,7,FALSE) -> 147.2459457 | F38: 75.10333142 | G38: 56.53314911 | H38: 4 | I38: 215.7068618 | J38: 202.4220311 | K38: 175.8523697 | L38: 135.9978776
A39: 11033 | B39: =VLOOKUP($A39,BasinData!$A:$K,8,FALSE) -> 225.1109362 | C39: =VLOOKUP($A39,BasinData!$A:$K,9,FALSE) -> 90.61260493 | D39: 134.4983313 | E39: =VLOOKUP($A39,BasinData!$A:$K,7,FALSE) -> 149.7491664 | F39: 75.36176983 | G39: 56.0317508 | H39: 4 | I39: 218.3860197 | J39: 204.9361865 | K39: 178.0365203 | L39: 137.6870209
A40: 11034 | B40: =VLOOKUP($A40,BasinData!$A:$K,8,FALSE) -> 256.3763326 | C40: =VLOOKUP($A40,BasinData!$A:$K,9,FALSE) -> 103.1976843 | D40: 153.1786483 | E40: =VLOOKUP($A40,BasinData!$A:$K,7,FALSE) -> 195.6563026 | F40: 60.72002999 | G40: 39.64000902 | H40: 4 | I40: 248.7174002 | J40: 233.3995354 | K40: 202.7638057 | L40: 156.8102112
A41: 11035 | B41: =VLOOKUP($A41,BasinData!$A:$K,8,FALSE) -> 253.0236397 | C41: =VLOOKUP($A41,BasinData!$A:$K,9,FALSE) -> 101.8481443 | D41: 151.1754955 | E41: =VLOOKUP($A41,BasinData!$A:$K,7,FALSE) -> 178.8310597 | F41: 74.19258003 | G41: 49.07712046 | H41: 4 | I41: 245.464865 | J41: 230.3473154 | K41: 200.1122163 | L41: 154.7595677
A42: 11036 | B42: =VLOOKUP($A42,BasinData!$A:$K,8,FALSE) -> 194.3866702 | C42: =VLOOKUP($A42,BasinData!$A:$K,9,FALSE) -> 78.24534358 | D42: 116.1413266 | E42: =VLOOKUP($A42,BasinData!$A:$K,7,FALSE) -> 163.324552 | F42: 31.06211821 | G42: 26.74510368 | H42: 3 | I42: 188.5796039 | J42: 176.9654712 | K42: 153.7372059 | L42: 118.8948079
A43: 11037 | B43: =VLOOKUP($A43,BasinData!$A:$K,8,FALSE) -> 289.1375755 | C43: =VLOOKUP($A43,BasinData!$A:$K,9,FALSE) -> 116.3848782 | D43: 172.7526973 | E43: =VLOOKUP($A43,BasinData!$A:$K,7,FALSE) -> 258.9341569 | F43: 30.20341851 | G43: 17.48361617 | H43: 3 | I43: 280.4999406 | J43: 263.2246709 | K43: 228.6741314 | L43: 176.8483222
A44: 11038 | B44: =VLOOKUP($A44,BasinData!$A:$K,8,FALSE) -> 259.7400941 | C44: =VLOOKUP($A44,BasinData!$A:$K,9,FALSE) -> 104.5516798 | D44: 155.1884143 | E44: =VLOOKUP($A44,BasinData!$A:$K,7,FALSE) -> 198.6386262 | F44: 61.10146786 | G44: 39.37244166 | H44: 4 | I44: 251.9806734 | J44: 236.4618319 | K44: 205.4241491 | L44: 158.8676248
A45: 11039 | B45: =VLOOKUP($A45,BasinData!$A:$K,8,FALSE) -> 295.8537333 | C45: =VLOOKUP($A45,BasinData!$A:$K,9,FALSE) -> 119.0882944 | D45: 176.7654388 | E45: =VLOOKUP($A45,BasinData!$A:$K,7,FALSE) -> 245.3271156 | F45: 50.52661765 | G45: 28.5839913 | H45: 3 | I45: 287.0154613 | J45: 269.3389174 | K45: 233.9858297 | L45: 180.956198
A46: 11040 | B46: =VLOOKUP($A46,BasinData!$A:$K,8,FALSE) -> 243.8678776 | C46: =VLOOKUP($A46,BasinData!$A:$K,9,FALSE) -> 98.16272821 | D46: 145.7051494 | E46: =VLOOKUP($A46,BasinData!$A:$K,7,FALSE) -> 203.9630028 | F46: 39.90487488 | G46: 27.38741564 | H46: 3 | I46: 236.5826202 | J46: 222.0121052 | K46: 192.8710753 | L46: 149.1595305
A47: 11041 | B47: =VLOOKUP($A47,BasinData!$A:$K,8,FALSE) -> 247.2078683 | C47: =VLOOKUP($A47,BasinData!$A:$K,9,FALSE) -> 99.50715535 | D47: 147.7007129 | E47: =VLOOKUP($A47,BasinData!$A:$K,7,FALSE) -> 206.5035729 | F47: 40.7042954 | G47: 27.55863164 | H47: 3 | I47: 239.8228326 | J47: 225.0527613 | K47: 195.5126187 | L47: 151.2024049
A48: 11042 | B48: =VLOOKUP($A48,BasinData!$A:$K,8,FALSE) -> 289.0154842 | C48: =VLOOKUP($A48,BasinData!$A:$K,9,FALSE) -> 116.3357335 | D48: 172.6797507 | E48: =VLOOKUP($A48,BasinData!$A:$K,7,FALSE) -> 249.1553822 | F48: 39.86010202 | G48: 23.08325201 | H48: 3 | I48: 280.3814966 | J48: 263.1135216 | K48: 228.5775714 | L48: 176.7736462
A49: 11043 | B49: =VLOOKUP($A49,BasinData!$A:$K,8,FALSE) -> 160.2406168 | C49: =VLOOKUP($A49,BasinData!$A:$K,9,FALSE) -> 64.50072993 | D49: 95.73988685 | E49: =VLOOKUP($A49,BasinData!$A:$K,7,FALSE) -> 119.4538736 | F49: 40.7867432 | G49: 42.60162044 | H49: 4 | I49: 155.4536224 | J49: 145.8796338 | K49: 126.7316564 | L49: 98.00969033
A50: 11044 | B50: =VLOOKUP($A50,BasinData!$A:$K,8,FALSE) -> 287.0005296 | C50: =VLOOKUP($A50,BasinData!$A:$K,9,FALSE) -> 115.5246655 | D50: 171.4758642 | E50: =VLOOKUP($A50,BasinData!$A:$K,7,FALSE) -> 226.5233563 | F50: 60.47717334 | G50: 35.26862141 | H50: 4 | I50: 278.4267364 | J50: 261.27915 | K50: 226.9839772 | L50: 175.5412179
A51: 11045 | B51: =VLOOKUP($A51,BasinData!$A:$K,8,FALSE) -> 254.2007626 | C51: =VLOOKUP($A51,BasinData!$A:$K,9,FALSE) -> 102.3219647 | D51: 151.8787979 | E51: =VLOOKUP($A51,BasinData!$A:$K,7,FALSE) -> 92.46818214 | F51: 161.7325804 | G51: 106.487925 | H51: 5 | I51: 246.6068227 | J51: 231.4189429 | K51: 201.0431833 | L51: 155.479544
A52: 11046 | B52: =VLOOKUP($A52,BasinData!$A:$K,8,FALSE) -> 298.3163825 | C52: =VLOOKUP($A52,BasinData!$A:$K,9,FALSE) -> 120.0795704 | D52: 178.2368121 | E52: =VLOOKUP($A52,BasinData!$A:$K,7,FALSE) -> 250.1182338 | F52: 48.19814873 | G52: 27.04163532 | H52: 3 | I52: 289.4045419 | J52: 271.5808607 | K52: 235.9334983 | L52: 182.4624546
A53: 11047 | B53: =VLOOKUP($A53,BasinData!$A:$K,8,FALSE) -> 228.2423981 | C53: =VLOOKUP($A53,BasinData!$A:$K,9,FALSE) -> 91.87309419 | D53: 136.3693039 | E53: =VLOOKUP($A53,BasinData!$A:$K,7,FALSE) -> 150.9382034 | F53: 77.30419475 | G53: 56.68738677 | H53: 4 | I53: 221.4239329 | J53: 207.7870025 | K53: 180.5131417 | L53: 139.6023506
A54: 11048 | B54: =VLOOKUP($A54,BasinData!$A:$K,8,FALSE) -> 275.0307818 | C54: =VLOOKUP($A54,BasinData!$A:$K,9,FALSE) -> 110.706552 | D54: 164.3242298 | E54: =VLOOKUP($A54,BasinData!$A:$K,7,FALSE) -> 181.8534767 | F54: 93.17730506 | G54: 56.70332683 | H54: 4 | I54: 266.8145703 | J54: 250.3821473 | K54: 217.5173014 | L54: 168.2200325
A55: 11049 | B55: =VLOOKUP($A55,BasinData!$A:$K,8,FALSE) -> 225.9832488 | C55: =VLOOKUP($A55,BasinData!$A:$K,9,FALSE) -> 90.96373185 | D55: 135.0195169 | E55: =VLOOKUP($A55,BasinData!$A:$K,7,FALSE) -> 148.1224229 | F55: 77.86082582 | G55: 57.66634899 | H55: 4 | I55: 219.2322729 | J55: 205.7303212 | K55: 178.7264178 | L55: 138.2205628
A56: 11050 | B56: =VLOOKUP($A56,BasinData!$A:$K,8,FALSE) -> 158.4182459 | C56: =VLOOKUP($A56,BasinData!$A:$K,9,FALSE) -> 63.76718149 | D56: 94.65106437 | E56: =VLOOKUP($A56,BasinData!$A:$K,7,FALSE) -> 76.55869635 | F56: 81.8595495 | G56: 86.48560906 | H56: 5 | I56: 153.6856926 | J56: 144.2205862 | K56: 125.2903733 | L56: 96.89505402
A57: 11051 | B57: =VLOOKUP($A57,BasinData!$A:$K,8,FALSE) -> 140.5574998 | C57: =VLOOKUP($A57,BasinData!$A:$K,9,FALSE) -> 56.57779855 | D57: 83.97970128 | E57: =VLOOKUP($A57,BasinData!$A:$K,7,FALSE) -> 97.01839029 | F57: 43.53910954 | G57: 51.84480164 | H57: 4 | I57: 136.3585148 | J57: 127.9605446 | K57: 111.1646044 | L57: 85.970694
A58: 11052 | B58: =VLOOKUP($A58,BasinData!$A:$K,8,FALSE) -> 299.6702827 | C58: =VLOOKUP($A58,BasinData!$A:$K,9,FALSE) -> 120.624548 | D58: 179.0457347 | E58: =VLOOKUP($A58,BasinData!$A:$K,7,FALSE) -> 235.3462863 | F58: 64.32399644 | G58: 35.9260144 | H58: 4 | I58: 290.717996 | J58: 272.8134225 | K58: 237.0042756 | L58: 183.2905552
A59: 11053 | B59: =VLOOKUP($A59,BasinData!$A:$K,8,FALSE) -> 283.3150725 | C59: =VLOOKUP($A59,BasinData!$A:$K,9,FALSE) -> 114.0411797 | D59: 169.2738928 | E59: =VLOOKUP($A59,BasinData!$A:$K,7,FALSE) -> 239.6568259 | F59: 43.65824655 | G59: 25.79148257 | H59: 3 | I59: 274.8513778 | J59: 257.9239886 | K59: 224.06921 | L59: 173.2870422
A60: 11054 | B60: =VLOOKUP($A60,BasinData!$A:$K,8,FALSE) -> 286.367084 | C60: =VLOOKUP($A60,BasinData!$A:$K,9,FALSE) -> 115.2696883 | D60: 171.0973957 | E60: =VLOOKUP($A60,BasinData!$A:$K,7,FALSE) -> 205.575955 | F60: 80.79112899 | G60: 47.21937973 | H60: 4 | I60: 277.8122142 | J60: 260.7024746 | K60: 226.4829955 | L60: 175.1537768
A61: 11055 | B61: =VLOOKUP($A61,BasinData!$A:$K,8,FALSE) -> 175.6885456 | C61: =VLOOKUP($A61,BasinData!$A:$K,9,FALSE) -> 70.71889548 | D61: 104.9696501 | E61: =VLOOKUP($A61,BasinData!$A:$K,7,FALSE) -> 149.6368373 | F61: 26.05170831 | G61: 24.81832442 | H61: 3 | I61: 170.4400631 | J61: 159.9430981 | K61: 138.949168 | L61: 107.458273
A62: 11056 | B62: =VLOOKUP($A62,BasinData!$A:$K,8,FALSE) -> 216.8393195 | C62: =VLOOKUP($A62,BasinData!$A:$K,9,FALSE) -> 87.28307884 | D62: 129.5562407 | E62: =VLOOKUP($A62,BasinData!$A:$K,7,FALSE) -> 169.3599114 | F62: 47.47940816 | G62: 36.64771987 | H62: 4 | I62: 210.3615075 | J62: 197.4058834 | K62: 171.4946353 | L62: 132.6277631
A63: 11057 | B63: =VLOOKUP($A63,BasinData!$A:$K,8,FALSE) -> 163.8755682 | C63: =VLOOKUP($A63,BasinData!$A:$K,9,FALSE) -> 65.96388592 | D63: 97.91168226 | E63: =VLOOKUP($A63,BasinData!$A:$K,7,FALSE) -> 137.7719235 | F63: 26.10364465 | G63: 26.66039848 | H63: 3 | I63: 158.9799841 | J63: 149.1888158 | K63: 129.6064794 | L63: 100.2329747
A64: 11058 | B64: =VLOOKUP($A64,BasinData!$A:$K,8,FALSE) -> 195.8565459 | C64: =VLOOKUP($A64,BasinData!$A:$K,9,FALSE) -> 78.83700416 | D64: 117.0195417 | E64: =VLOOKUP($A64,BasinData!$A:$K,7,FALSE) -> 143.0172148 | F64: 52.83933113 | G64: 45.15427966 | H64: 4 | I64: 190.0055688 | J64: 178.3036146 | K64: 154.8997063 | L64: 119.7938438
A65: 11059 | B65: =VLOOKUP($A65,BasinData!$A:$K,8,FALSE) -> 223.9599349 | C65: =VLOOKUP($A65,BasinData!$A:$K,9,FALSE) -> 90.14929901 | D65: 133.8106359 | E65: =VLOOKUP($A65,BasinData!$A:$K,7,FALSE) -> 190.2519909 | F65: 33.70794404 | G65: 25.19078085 | H65: 3 | I65: 217.2694031 | J65: 203.8883395 | K65: 177.1262123 | L65: 136.9830216
A66: 11060 | B66: =VLOOKUP($A66,BasinData!$A:$K,8,FALSE) -> 276.2544868 | C66: =VLOOKUP($A66,BasinData!$A:$K,9,FALSE) -> 111.1991229 | D66: 165.0553639 | E66: =VLOOKUP($A66,BasinData!$A:$K,7,FALSE) -> 194.97656 | F66: 81.27792686 | G66: 49.24282674 | H66: 4 | I66: 268.0017186 | J66: 251.4961823 | K66: 218.4851095 | L66: 168.9685003
A67: 11061 | B67: =VLOOKUP($A67,BasinData!$A:$K,8,FALSE) -> 326.7689232 | C67: =VLOOKUP($A67,BasinData!$A:$K,9,FALSE) -> 131.5324073 | D67: =B67-C67 -> 195.236516 | E67: =VLOOKUP($A67,BasinData!$A:$K,7,FALSE) -> 229.2349406 | F67: =B67-E67 -> 97.53398264 | G67: =F67/D67*100 -> 49.95683423 | H67: =IF($G67<($I$1*100),1,IF($G67<($J$1*100),2,IF($G67<($K$1*100),3,IF($G67<($L$1*100),4,5)))) -> 4 | I67: =B67-(D67*$I$1) -> 317.0070974 | J67: =B67-(D67*$J$1) -> 297.4834458 | K67: =B67-(D67*$K$1) -> 258.4361427 | L67: =B67-(D67*$L$1) -> 199.8651879
A68: 11062 | B68: =VLOOKUP($A68,BasinData!$A:$K,8,FALSE) -> 315.7748713 | C68: =VLOOKUP($A68,BasinData!$A:$K,9,FALSE) -> 127.107035 | D68: 188.6678363 | E68: =VLOOKUP($A68,BasinData!$A:$K,7,FALSE) -> 225.2187409 | F68: 90.55613046 | G68: 47.99765145 | H68: 4 | I68: 306.3414795 | J68: 287.4746959 | K68: 249.7411286 | L68: 193.1407777
A69: 11063 | B69: =VLOOKUP($A69,BasinData!$A:$K,8,FALSE) -> 181.4975463 | C69: =VLOOKUP($A69,BasinData!$A:$K,9,FALSE) -> 73.05715899 | D69: 108.4403873 | E69: =VLOOKUP($A69,BasinData!$A:$K,7,FALSE) -> 154.7289704 | F69: 26.76857586 | G69: 24.6850611 | H69: 3 | I69: 176.0755269 | J69: 165.2314882 | K69: 143.5434107 | L69: 111.0112945
A70: 11064 | B70: =VLOOKUP($A70,BasinData!$A:$K,8,FALSE) -> 193.9541176 | C70: =VLOOKUP($A70,BasinData!$A:$K,9,FALSE) -> 78.0712307 | D70: 115.8828869 | E70: =VLOOKUP($A70,BasinData!$A:$K,7,FALSE) -> 140.3353179 | F70: 53.61879972 | G70: 46.269817 | H70: 4 | I70: 188.1599733 | J70: 176.5716846 | K70: 153.3951072 | L70: 118.6302411
A71: 11065 | B71: =VLOOKUP($A71,BasinData!$A:$K,8,FALSE) -> 248.2617148 | C71: =VLOOKUP($A71,BasinData!$A:$K,9,FALSE) -> 99.93135412 | D71: 148.3303607 | E71: =VLOOKUP($A71,BasinData!$A:$K,7,FALSE) -> 194.6214709 | F71: 53.64024389 | G71: 36.16268688 | H71: 4 | I71: 240.8451968 | J71: 226.0121607 | K71: 196.3460886 | L71: 151.8469804
A72: 11066 | B72: =VLOOKUP($A72,BasinData!$A:$K,8,FALSE) -> 269.7750269 | C72: =VLOOKUP($A72,BasinData!$A:$K,9,FALSE) -> 108.5909834 | D72: 161.1840435 | E72: =VLOOKUP($A72,BasinData!$A:$K,7,FALSE) -> 245.6268844 | F72: 24.14814249 | G72: 14.98172025 | H72: 2 | I72: 261.7158247 | J72: 245.5974204 | K72: 213.3606117 | L72: 165.0053986
A73: 11067 | B73: =VLOOKUP($A73,BasinData!$A:$K,8,FALSE) -> 229.2037896 | C73: =VLOOKUP($A73,BasinData!$A:$K,9,FALSE) -> 92.26007754 | D73: 136.943712 | E73: =VLOOKUP($A73,BasinData!$A:$K,7,FALSE) -> 166.7003161 | F73: 62.50347345 | G73: 45.64172573 | H73: 4 | I73: 222.356604 | J73: 208.6622328 | K73: 181.2734904 | L73: 140.1903767
A74: 11068 | B74: =VLOOKUP($A74,BasinData!$A:$K,8,FALSE) -> 161.1545363 | C74: =VLOOKUP($A74,BasinData!$A:$K,9,FALSE) -> 64.86860468 | D74: 96.28593163 | E74: =VLOOKUP($A74,BasinData!$A:$K,7,FALSE) -> 131.9596246 | F74: 29.19491167 | G74: 30.32105643 | H74: 3 | I74: 156.3402397 | J74: 146.7116466 | K74: 127.4544602 | L74: 98.56868075
A75: 11069 | B75: =VLOOKUP($A75,BasinData!$A:$K,8,FALSE) -> 231.0062037 | C75: =VLOOKUP($A75,BasinData!$A:$K,9,FALSE) -> 92.98559288 | D75: 138.0206108 | E75: =VLOOKUP($A75,BasinData!$A:$K,7,FALSE) -> 152.1184716 | F75: 78.88773209 | G75: 57.15648673 | H75: 4 | I75: 224.1051731 | J75: 210.303112 | K75: 182.6989899 | L75: 141.2928067
A76: 11070 | B76: =VLOOKUP($A76,BasinData!$A:$K,8,FALSE) -> 228.7988296 | C76: =VLOOKUP($A76,BasinData!$A:$K,9,FALSE) -> 92.09707135 | D76: 136.7017583 | E76: =VLOOKUP($A76,BasinData!$A:$K,7,FALSE) -> 149.8586204 | F76: 78.94020923 | G76: 57.74630131 | H76: 4 | I76: 221.9637417 | J76: 208.2935659 | K76: 180.9532142 | L76: 139.9426867
A77: 11071 | B77: =VLOOKUP($A77,BasinData!$A:$K,8,FALSE) -> 180.606723 | C77: =VLOOKUP($A77,BasinData!$A:$K,9,FALSE) -> 72.69858102 | D77: 107.908142 | E77: =VLOOKUP($A77,BasinData!$A:$K,7,FALSE) -> 127.548967 | F77: 53.057756 | G77: 49.16937224 | H77: 4 | I77: 175.2113159 | J77: 164.4205017 | K77: 142.8388733 | L77: 110.4664307
A78: 11072 | B78: =VLOOKUP($A78,BasinData!$A:$K,8,FALSE) -> 165.2472361 | C78: =VLOOKUP($A78,BasinData!$A:$K,9,FALSE) -> 66.51601548 | D78: 98.73122061 | E78: =VLOOKUP($A78,BasinData!$A:$K,7,FALSE) -> 112.6898479 | F78: 52.55738815 | G78: 53.23279488 | H78: 4 | I78: 160.3106751 | J78: 150.437553 | K78: 130.6913089 | L78: 101.0719427
A79: 11073 | B79: =VLOOKUP($A79,BasinData!$A:$K,8,FALSE) -> 162.3241056 | C79: =VLOOKUP($A79,BasinData!$A:$K,9,FALSE) -> 65.33938463 | D79: 96.98472092 | E79: =VLOOKUP($A79,BasinData!$A:$K,7,FALSE) -> 101.8852275 | F79: 60.43887803 | G79: 62.31793777 | H79: 4 | I79: 157.4748695 | J79: 147.7763974 | K79: 128.3794532 | L79: 99.28403695
A80: 11074 | B80: =VLOOKUP($A80,BasinData!$A:$K,8,FALSE) -> 290.5007882 | C80: =VLOOKUP($A80,BasinData!$A:$K,9,FALSE) -> 116.9336043 | D80: 173.5671838 | E80: =VLOOKUP($A80,BasinData!$A:$K,7,FALSE) -> 249.8465459 | F80: 40.6542423 | G80: 23.42277002 | H80: 3 | I80: 281.822429 | J80: 264.4657106 | K80: 229.7522738 | L80: 177.6821187
A81: 11075 | B81: =VLOOKUP($A81,BasinData!$A:$K,8,FALSE) -> 275.9352325 | C81: =VLOOKUP($A81,BasinData!$A:$K,9,FALSE) -> 111.0706153 | D81: 164.8646171 | E81: =VLOOKUP($A81,BasinData!$A:$K,7,FALSE) -> 217.3258568 | F81: 58.60937571 | G81: 35.55000262 | H81: 4 | I81: 267.6920016 | J81: 251.2055399 | K81: 218.2326165 | L81: 168.7732313
A82: 11076 | B82: =VLOOKUP($A82,BasinData!$A:$K,8,FALSE) -> 197.7175567 | C82: =VLOOKUP($A82,BasinData!$A:$K,9,FALSE) -> 79.58610609 | D82: 118.1314506 | E82: =VLOOKUP($A82,BasinData!$A:$K,7,FALSE) -> 161.541158 | F82: 36.17639874 | G82: 30.62385042 | H82: 3 | I82: 191.8109842 | J82: 179.9978391 | K82: 156.371549 | L82: 120.9321138
A83: 12001 | B83: =VLOOKUP($A83,BasinData!$A:$K,8,FALSE) -> 214.8950751 | C83: =VLOOKUP($A83,BasinData!$A:$K,9,FALSE) -> 86.50047337 | D83: 128.3946018 | E83: =VLOOKUP($A83,BasinData!$A:$K,7,FALSE) -> 96.25760786 | F83: 118.6374673 | G83: 92.40066611 | H83: 5 | I83: 208.4753451 | J83: 195.6358849 | K83: 169.9569645 | L83: 131.438584
A84: 12002 | B84: =VLOOKUP($A84,BasinData!$A:$K,8,FALSE) -> 219.8587923 | C84: =VLOOKUP($A84,BasinData!$A:$K,9,FALSE) -> 88.49848978 | D84: 131.3603025 | E84: =VLOOKUP($A84,BasinData!$A:$K,7,FALSE) -> 77.17582635 | F84: 142.682966 | G84: 108.6195473 | H84: 5 | I84: 213.2907772 | J84: 200.1547469 | K84: 173.8826864 | L84: 134.4745957
A85: 12003 | B85: =VLOOKUP($A85,BasinData!$A:$K,8,FALSE) -> 207.8248621 | C85: =VLOOKUP($A85,BasinData!$A:$K,9,FALSE) -> 83.65454137 | D85: 124.1703208 | E85: =VLOOKUP($A85,BasinData!$A:$K,7,FALSE) -> 111.0382199 | F85: 96.78664226 | G85: 77.94667974 | H85: 5 | I85: 201.6163461 | J85: 189.199314 | K85: 164.3652499 | L85: 127.1141536
A86: 12004 | B86: =VLOOKUP($A86,BasinData!$A:$K,8,FALSE) -> 251.7098814 | C86: =VLOOKUP($A86,BasinData!$A:$K,9,FALSE) -> 101.3193247 | D86: 150.3905567 | E86: =VLOOKUP($A86,BasinData!$A:$K,7,FALSE) -> 136.2253829 | F86: 115.4844985 | G86: 76.78972737 | H86: 5 | I86: 244.1903536 | J86: 229.1512979 | K86: 199.0731866 | L86: 153.9560195
A87: 12005 | B87: =VLOOKUP($A87,BasinData!$A:$K,8,FALSE) -> 245.0832756 | C87: =VLOOKUP($A87,BasinData!$A:$K,9,FALSE) -> 98.65195532 | D87: 146.4313202 | E87: =VLOOKUP($A87,BasinData!$A:$K,7,FALSE) -> 131.6612055 | F87: 113.4220701 | G87: 77.45752063 | H87: 5 | I87: 237.7617096 | J87: 223.1185775 | K87: 193.8323135 | L87: 149.9029174
A88: 12006 | B88: =VLOOKUP($A88,BasinData!$A:$K,8,FALSE) -> 223.397278 | C88: =VLOOKUP($A88,BasinData!$A:$K,9,FALSE) -> 89.92281599 | D88: 133.474462 | E88: =VLOOKUP($A88,BasinData!$A:$K,7,FALSE) -> 98.20928571 | F88: 125.1879923 | G88: 93.79171896 | H88: 5 | I88: 216.7235549 | J88: 203.3761087 | K88: 176.6812163 | L88: 136.6388777
A89: 12007 | B89: =VLOOKUP($A89,BasinData!$A:$K,8,FALSE) -> 239.9919266 | C89: =VLOOKUP($A89,BasinData!$A:$K,9,FALSE) -> 96.60256403 | D89: 143.3893626 | E89: =VLOOKUP($A89,BasinData!$A:$K,7,FALSE) -> 84.83661491 | F89: 155.1553117 | G89: 108.2055941 | H89: 5 | I89: 232.8224585 | J89: 218.4835222 | K89: 189.8056497 | L89: 146.7888409
A90: 12008 | B90: =VLOOKUP($A90,BasinData!$A:$K,8,FALSE) -> 162.4622277 | C90: =VLOOKUP($A90,BasinData!$A:$K,9,FALSE) -> 65.39498213 | D90: 97.06724555 | E90: =VLOOKUP($A90,BasinData!$A:$K,7,FALSE) -> 40.84434823 | F90: 121.6178794 | G90: 125.2923978 | H90: 5 | I90: 157.6088654 | J90: 147.9021408 | K90: 128.4886917 | L90: 99.36851807
A91: 12009 | B91: =VLOOKUP($A91,BasinData!$A:$K,8,FALSE) -> 241.5324932 | C91: =VLOOKUP($A91,BasinData!$A:$K,9,FALSE) -> 97.2226794 | D91: 144.3098138 | E91: =VLOOKUP($A91,BasinData!$A:$K,7,FALSE) -> 107.2366924 | F91: 134.2958008 | G91: 93.06075399 | H91: 5 | I91: 234.3170025 | J91: 219.8860211 | K91: 191.0240584 | L91: 147.7311142
A92: 12010 | B92: =VLOOKUP($A92,BasinData!$A:$K,8,FALSE) -> 114.7416252 | C92: =VLOOKUP($A92,BasinData!$A:$K,9,FALSE) -> 46.18628364 | D92: 68.55534154 | E92: =VLOOKUP($A92,BasinData!$A:$K,7,FALSE) -> 42.61668107 | F92: 72.1249441 | G92: 105.206892 | H92: 5 | I92: 111.3138581 | J92: 104.4583239 | K92: 90.74725564 | L92: 70.18065317
A93: 12011 | B93: =VLOOKUP($A93,BasinData!$A:$K,8,FALSE) -> 253.7921047 | C93: =VLOOKUP($A93,BasinData!$A:$K,9,FALSE) -> 102.15747 | D93: 151.6346347 | E93: =VLOOKUP($A93,BasinData!$A:$K,7,FALSE) -> 41.6520435 | F93: 212.1400612 | G93: 139.9021151 | H93: 5 | I93: 246.2103729 | J93: 231.0469095 | K93: 200.7199825 | L93: 155.2295921
A94: 12012 | B94: =VLOOKUP($A94,BasinData!$A:$K,8,FALSE) -> 219.8959293 | C94: =VLOOKUP($A94,BasinData!$A:$K,9,FALSE) -> 88.51343832 | D94: 131.382491 | E94: =VLOOKUP($A94,BasinData!$A:$K,7,FALSE) -> 99.08878666 | F94: 120.8071427 | G94: 91.95071714 | H94: 5 | I94: 213.3268048 | J94: 200.1885557 | K94: 173.9120575 | L94: 134.4973102
A95: 12013 | B95: =VLOOKUP($A95,BasinData!$A:$K,8,FALSE) -> 191.8230977 | C95: =VLOOKUP($A95,BasinData!$A:$K,9,FALSE) -> 77.21344357 | D95: 114.6096542 | E95: =VLOOKUP($A95,BasinData!$A:$K,7,FALSE) -> 94.92605944 | F95: 96.8970383 | G95: 84.54526715 | H95: 5 | I95: 186.092615 | J95: 174.6316496 | K95: 151.7097188 | L95: 117.3268225
A96: 12014 | B96: =VLOOKUP($A96,BasinData!$A:$K,8,FALSE) -> 247.5291422 | C96: =VLOOKUP($A96,BasinData!$A:$K,9,FALSE) -> 99.63647591 | D96: 147.8926663 | E96: =VLOOKUP($A96,BasinData!$A:$K,7,FALSE) -> 101.2334324 | F96: 146.2957099 | G96: 98.92019224 | H96: 5 | I96: 240.1345089 | J96: 225.3452423 | K96: 195.766709 | L96: 151.3989091
A97: 12015 | B97: =VLOOKUP($A97,BasinData!$A:$K,8,FALSE) -> 241.0704024 | C97: =VLOOKUP($A97,BasinData!$A:$K,9,FALSE) -> 97.03667665 | D97: 144.0337257 | E97: =VLOOKUP($A97,BasinData!$A:$K,7,FALSE) -> 142.3105277 | F97: 98.75987465 | G97: 68.56718741 | H97: 5 | I97: 233.8687161 | J97: 219.4653435 | K97: 190.6585984 | L97: 147.4484807
A98: 12016 | B98: =VLOOKUP($A98,BasinData!$A:$K,8,FALSE) -> 244.6276295 | C98: =VLOOKUP($A98,BasinData!$A:$K,9,FALSE) -> 98.46854674 | D98: 146.1590828 | E98: =VLOOKUP($A98,BasinData!$A:$K,7,FALSE) -> 41.73387533 | F98: 202.8937542 | G98: 138.8170686 | H98: 5 | I98: 237.3196754 | J98: 222.7037671 | K98: 193.4719505 | L98: 149.6242257
A99: 12017 | B99: =VLOOKUP($A99,BasinData!$A:$K,8,FALSE) -> 255.8863023 | C99: =VLOOKUP($A99,BasinData!$A:$K,9,FALSE) -> 103.0004353 | D99: 152.885867 | E99: =VLOOKUP($A99,BasinData!$A:$K,7,FALSE) -> 140.1135451 | F99: 115.7727572 | G99: 75.72495709 | H99: 5 | I99: 248.2420089 | J99: 232.9534222 | K99: 202.3762488 | L99: 156.5104887
A100: 12018 | B100: =VLOOKUP($A100,BasinData!$A:$K,8,FALSE) -> 267.8235009 | C100: =VLOOKUP($A100,BasinData!$A:$K,9,FALSE) -> 107.8054469 | D100: 160.018054 | E100: =VLOOKUP($A100,BasinData!$A:$K,7,FALSE) -> 118.4383268 | F100: 149.3851741 | G100: 93.35519982 | H100: 5 | I100: 259.8225982 | J100: 243.8207928 | K100: 211.817182 | L100: 163.8117658
A101: 12019 | B101: =VLOOKUP($A101,BasinData!$A:$K,8,FALSE) -> 279.1035565 | C101: =VLOOKUP($A101,BasinData!$A:$K,9,FALSE) -> 112.3459425 | D101: 166.757614 | E101: =VLOOKUP($A101,BasinData!$A:$K,7,FALSE) -> 142.9755725 | F101: 136.127984 | G101: 81.63224501 | H101: 5 | I101: 270.7656758 | J101: 254.0899144 | K101: 220.7383916 | L101: 170.7111074
A102: 12020 | B102: =VLOOKUP($A102,BasinData!$A:$K,8,FALSE) -> 217.1692059 | C102: =VLOOKUP($A102,BasinData!$A:$K,9,FALSE) -> 87.41586611 | D102: 129.7533398 | E102: =VLOOKUP($A102,BasinData!$A:$K,7,FALSE) -> 79.89355874 | F102: 137.2756472 | G102: 105.7973902 | H102: 5 | I102: 210.681539 | J102: 197.706205 | K102: 171.755537 | L102: 132.8295351
A103: 12021 | B103: =VLOOKUP($A103,BasinData!$A:$K,8,FALSE) -> 250.9827527 | C103: =VLOOKUP($A103,BasinData!$A:$K,9,FALSE) -> 101.0266378 | D103: 149.9561149 | E103: =VLOOKUP($A103,BasinData!$A:$K,7,FALSE) -> 84.75673066 | F103: 166.2260221 | G103: 110.849779 | H103: 5 | I103: 243.484947 | J103: 228.4893355 | K103: 198.4981125 | L103: 153.511278
A104: 12022 | B104: =VLOOKUP($A104,BasinData!$A:$K,8,FALSE) -> 134.2297876 | C104: =VLOOKUP($A104,BasinData!$A:$K,9,FALSE) -> 54.03074111 | D104: 80.19904652 | E104: =VLOOKUP($A104,BasinData!$A:$K,7,FALSE) -> 90.75343897 | F104: 43.47634866 | G104: 54.21055554 | H104: 4 | I104: 130.2198353 | J104: 122.1999306 | K104: 106.1601213 | L104: 82.10040739
A105: 12023 | B105: =VLOOKUP($A105,BasinData!$A:$K,8,FALSE) -> 120.3578998 | C105: =VLOOKUP($A105,BasinData!$A:$K,9,FALSE) -> 48.44697023 | D105: 71.91092959 | E105: =VLOOKUP($A105,BasinData!$A:$K,7,FALSE) -> 52.69105134 | F105: 67.66684848 | G105: 94.09814178 | H105: 5 | I105: 116.7623533 | J105: 109.5712604 | K105: 95.18907447 | L105: 73.61579559
A106: 12024 | B106: =VLOOKUP($A106,BasinData!$A:$K,8,FALSE) -> 152.1288623 | C106: =VLOOKUP($A106,BasinData!$A:$K,9,FALSE) -> 61.23555227 | D106: 90.89331008 | E106: =VLOOKUP($A106,BasinData!$A:$K,7,FALSE) -> 60.483629 | F106: 91.64523335 | G106: 100.8272592 | H106: 5 | I106: 147.5841968 | J106: 138.4948658 | K106: 120.3162038 | L106: 93.0482108
A107: 12025 | B107: =VLOOKUP($A107,BasinData!$A:$K,8,FALSE) -> 183.5154039 | C107: =VLOOKUP($A107,BasinData!$A:$K,9,FALSE) -> 73.86939555 | D107: 109.6460083 | E107: =VLOOKUP($A107,BasinData!$A:$K,7,FALSE) -> 70.24882867 | F107: 113.2665752 | G107: 103.3020508 | H107: 5 | I107: 178.0331035 | J107: 167.0685026 | K107: 145.139301 | L107: 112.2454985
A108: 12026 | B108: =VLOOKUP($A108,BasinData!$A:$K,8,FALSE) -> 199.9260323 | C108: =VLOOKUP($A108,BasinData!$A:$K,9,FALSE) -> 80.475071 | D108: 119.4509613 | E108: =VLOOKUP($A108,BasinData!$A:$K,7,FALSE) -> 63.7219856 | F108: 136.2040467 | G108: 114.0250737 | H108: 5 | I108: 193.9534842 | J108: 182.0083881 | K108: 158.1181958 | L108: 122.2829074
A109: 12027 | B109: =VLOOKUP($A109,BasinData!$A:$K,8,FALSE) -> 144.7136133 | C109: =VLOOKUP($A109,BasinData!$A:$K,9,FALSE) -> 58.25073492 | D109: 86.46287843 | E109: =VLOOKUP($A109,BasinData!$A:$K,7,FALSE) -> 94.34461591 | F109: 50.36899744 | G109: 58.25505506 | H109: 4 | I109: 140.3904694 | J109: 131.7441816 | K109: 114.4516059 | L109: 88.51274237
A110: 12028 | B110: =VLOOKUP($A110,BasinData!$A:$K,8,FALSE) -> 179.2228085 | C110: =VLOOKUP($A110,BasinData!$A:$K,9,FALSE) -> 72.14152191 | D110: 107.0812866 | E110: =VLOOKUP($A110,BasinData!$A:$K,7,FALSE) -> 81.03675722 | F110: 98.18605124 | G110: 91.69300668 | H110: 5 | I110: 173.8687441 | J110: 163.1606155 | K110: 141.7443582 | L110: 109.6199722
A111: 12029 | B111: =VLOOKUP($A111,BasinData!$A:$K,8,FALSE) -> 185.9065511 | C111: =VLOOKUP($A111,BasinData!$A:$K,9,FALSE) -> 74.83189021 | D111: 111.0746609 | E111: =VLOOKUP($A111,BasinData!$A:$K,7,FALSE) -> 54.28420573 | F111: 131.6223453 | G111: 118.4989847 | H111: 5 | I111: 180.352818 | J111: 169.2453519 | K111: 147.0304198 | L111: 113.7080215
A112: 12030 | B112: =VLOOKUP($A112,BasinData!$A:$K,8,FALSE) -> 191.7609809 | C112: =VLOOKUP($A112,BasinData!$A:$K,9,FALSE) -> 77.18844003 | D112: 114.5725409 | E112: =VLOOKUP($A112,BasinData!$A:$K,7,FALSE) -> 71.03686075 | F112: 120.7241201 | G112: 105.3691567 | H112: 5 | I112: 186.0323538 | J112: 174.5750998 | K112: 151.6605916 | L112: 117.2888293
A113: 12031 | B113: =VLOOKUP($A113,BasinData!$A:$K,8,FALSE) -> 168.9360279 | C113: =VLOOKUP($A113,BasinData!$A:$K,9,FALSE) -> 68.00084355 | D113: 100.9351844 | E113: =VLOOKUP($A113,BasinData!$A:$K,7,FALSE) -> 105.2270842 | F113: 63.70894374 | G113: 63.11866783 | H113: 4 | I113: 163.8892687 | J113: 153.7957503 | K113: 133.6087134 | L113: 103.3281581
A114: 12032 | B114: =VLOOKUP($A114,BasinData!$A:$K,8,FALSE) -> 153.5094013 | C114: =VLOOKUP($A114,BasinData!$A:$K,9,FALSE) -> 61.79125264 | D114: 91.71814866 | E114: =VLOOKUP($A114,BasinData!$A:$K,7,FALSE) -> 65.32687356 | F114: 88.18252773 | G114: 96.14512398 | H114: 5 | I114: 148.9234939 | J114: 139.751679 | K114: 121.4080493 | L114: 93.89260467
A115: 12033 | B115: =VLOOKUP($A115,BasinData!$A:$K,8,FALSE) -> 213.8719724 | C115: =VLOOKUP($A115,BasinData!$A:$K,9,FALSE) -> 86.08864973 | D115: 127.7833227 | E115: =VLOOKUP($A115,BasinData!$A:$K,7,FALSE) -> 104.7999203 | F115: 109.0720521 | G115: 85.35703236 | H115: 5 | I115: 207.4828063 | J115: 194.704474 | K115: 169.1478095 | L115: 130.8128127
A116: 12034 | B116: =VLOOKUP($A116,BasinData!$A:$K,8,FALSE) -> 219.3244208 | C116: =VLOOKUP($A116,BasinData!$A:$K,9,FALSE) -> 88.2833923 | D116: 131.0410285 | E116: =VLOOKUP($A116,BasinData!$A:$K,7,FALSE) -> 108.2100228 | F116: 111.114398 | G116: 84.79359422 | H116: 5 | I116: 212.7723694 | J116: 199.6682665 | K116: 173.4600608 | L116: 134.1477523
A117: 12035 | B117: =VLOOKUP($A117,BasinData!$A:$K,8,FALSE) -> 216.3491353 | C117: =VLOOKUP($A117,BasinData!$A:$K,9,FALSE) -> 87.08576781 | D117: 129.2633675 | E117: =VLOOKUP($A117,BasinData!$A:$K,7,FALSE) -> 78.17866477 | F117: 138.1704705 | G117: 106.890663 | H117: 5 | I117: 209.8859669 | J117: 196.9596302 | K117: 171.1069567 | L117: 132.3279464
A118: 12036 | B118: =VLOOKUP($A118,BasinData!$A:$K,8,FALSE) -> 206.7054128 | C118: =VLOOKUP($A118,BasinData!$A:$K,9,FALSE) -> 83.20393589 | D118: 123.5014769 | E118: =VLOOKUP($A118,BasinData!$A:$K,7,FALSE) -> 122.4607064 | F118: 84.24470642 | G118: 68.21352143 | H118: 5 | I118: 200.530339 | J118: 188.1801913 | K118: 163.4798959 | L118: 126.4294528
A119: 12037 | B119: =VLOOKUP($A119,BasinData!$A:$K,8,FALSE) -> 237.5377965 | C119: =VLOOKUP($A119,BasinData!$A:$K,9,FALSE) -> 95.6147172 | D119: 141.9230793 | E119: =VLOOKUP($A119,BasinData!$A:$K,7,FALSE) -> 108.2030046 | F119: 129.3347919 | G119: 91.13020414 | H119: 5 | I119: 230.4416425 | J119: 216.2493346 | K119: 187.8647187 | L119: 145.2877949
A120: 12038 | B120: =VLOOKUP($A120,BasinData!$A:$K,8,FALSE) -> 209.0476037 | C120: =VLOOKUP($A120,BasinData!$A:$K,9,FALSE) -> 84.14672445 | D120: 124.9008792 | E120: =VLOOKUP($A120,BasinData!$A:$K,7,FALSE) -> 139.8047345 | F120: 69.24286919 | G120: 55.43825603 | H120: 4 | I120: 202.8025597 | J120: 190.3124718 | K120: 165.3322959 | L120: 127.8620322
A121: 12039 | B121: =VLOOKUP($A121,BasinData!$A:$K,8,FALSE) -> 134.8404288 | C121: =VLOOKUP($A121,BasinData!$A:$K,9,FALSE) -> 54.27653895 | D121: 80.5638898 | E121: =VLOOKUP($A121,BasinData!$A:$K,7,FALSE) -> 83.02890803 | F121: 51.81152073 | G121: 64.31109626 | H121: 4 | I121: 130.8122343 | J121: 122.7558453 | K121: 106.6430673 | L121: 82.47390038
A122: 12040 | B122: =VLOOKUP($A122,BasinData!$A:$K,8,FALSE) -> 70.31776381 | C122: =VLOOKUP($A122,BasinData!$A:$K,9,FALSE) -> 28.30460331 | D122: 42.01316049 | E122: =VLOOKUP($A122,BasinData!$A:$K,7,FALSE) -> 47.03353398 | F122: 23.28422982 | G122: 55.42127645 | H122: 4 | I122: 68.21710578 | J122: 64.01578973 | K122: 55.61315763 | L122: 43.00920949
A123: 12041 | B123: =VLOOKUP($A123,BasinData!$A:$K,8,FALSE) -> 189.2098189 | C123: =VLOOKUP($A123,BasinData!$A:$K,9,FALSE) -> 76.16153553 | D123: 113.0482834 | E123: =VLOOKUP($A123,BasinData!$A:$K,7,FALSE) -> 83.99030551 | F123: 105.2195134 | G123: 93.07484399 | H123: 5 | I123: 183.5574047 | J123: 172.2525764 | K123: 149.6429197 | L123: 115.7284347
A124: 12042 | B124: =VLOOKUP($A124,BasinData!$A:$K,8,FALSE) -> 198.3310433 | C124: =VLOOKUP($A124,BasinData!$A:$K,9,FALSE) -> 79.83304929 | D124: 118.497994 | E124: =VLOOKUP($A124,BasinData!$A:$K,7,FALSE) -> 58.60080556 | F124: 139.7302377 | G124: 117.9178086 | H124: 5 | I124: 192.4061436 | J124: 180.5563442 | K124: 156.8567454 | L124: 121.3073472
A125: 12043 | B125: =VLOOKUP($A125,BasinData!$A:$K,8,FALSE) -> 193.6124784 | C125: =VLOOKUP($A125,BasinData!$A:$K,9,FALSE) -> 77.93371265 | D125: 115.6787658 | E125: =VLOOKUP($A125,BasinData!$A:$K,7,FALSE) -> 86.13763729 | F125: 107.4748411 | G125: 92.90801161 | H125: 5 | I125: 187.8285401 | J125: 176.2606636 | K125: 153.1249104 | L125: 118.4212807
A126: 12044 | B126: =VLOOKUP($A126,BasinData!$A:$K,8,FALSE) -> 244.7761725 | C126: =VLOOKUP($A126,BasinData!$A:$K,9,FALSE) -> 98.52833888 | D126: 146.2478336 | E126: =VLOOKUP($A126,BasinData!$A:$K,7,FALSE) -> 131.3694666 | F126: 113.4067058 | G126: 77.54419539 | H126: 5 | I126: 237.4637808 | J126: 222.8389974 | K126: 193.5894307 | L126: 149.7150806
A127: 12045 | B127: =VLOOKUP($A127,BasinData!$A:$K,8,FALSE) -> 142.6013718 | C127: =VLOOKUP($A127,BasinData!$A:$K,9,FALSE) -> 57.40050652 | D127: 85.20086525 | E127: =VLOOKUP($A127,BasinData!$A:$K,7,FALSE) -> 65.38397605 | F127: 77.21739571 | G127: 90.62982575 | H127: 5 | I127: 138.3413285 | J127: 129.821242 | K127: 112.7810689 | L127: 87.22080935
A128: 12046 | B128: =VLOOKUP($A128,BasinData!$A:$K,8,FALSE) -> 186.6566433 | C128: =VLOOKUP($A128,BasinData!$A:$K,9,FALSE) -> 75.1338205 | D128: 111.5228228 | E128: =VLOOKUP($A128,BasinData!$A:$K,7,FALSE) -> 104.7848117 | F128: 81.87183158 | G128: 73.41262491 | H128: 5 | I128: 181.0805021 | J128: 169.9282199 | K128: 147.6236553 | L128: 114.1668085
A129: 12047 | B129: =VLOOKUP($A129,BasinData!$A:$K,8,FALSE) -> 127.1274877 | C129: =VLOOKUP($A129,BasinData!$A:$K,9,FALSE) -> 51.17189333 | D129: 75.95559435 | E129: =VLOOKUP($A129,BasinData!$A:$K,7,FALSE) -> 69.54148719 | F129: 57.58600049 | G129: 75.81535104 | H129: 5 | I129: 123.329708 | J129: 115.7341485 | K129: 100.5430297 | L129: 77.75635136
A130: 12048 | B130: =VLOOKUP($A130,BasinData!$A:$K,8,FALSE) -> 144.3424793 | C130: =VLOOKUP($A130,BasinData!$A:$K,9,FALSE) -> 58.10134446 | D130: 86.2411348 | E130: =VLOOKUP($A130,BasinData!$A:$K,7,FALSE) -> 86.27766371 | F130: 58.06481555 | G130: 67.32844562 | H130: 5 | I130: 140.0304225 | J130: 131.406309 | K130: 114.1580821 | L130: 88.28574164
A131: 12049 | B131: =VLOOKUP($A131,BasinData!$A:$K,8,FALSE) -> 194.6965753 | C131: =VLOOKUP($A131,BasinData!$A:$K,9,FALSE) -> 78.37008788 | D131: =B131-C131 -> 116.3264874 | E131: =VLOOKUP($A131,BasinData!$A:$K,7,FALSE) -> 86.12071664 | F131: =B131-E131 -> 108.5758586 | G131: =F131/D131*100 -> 93.33717631 | H131: =IF($G131<($I$1*100),1,IF($G131<($J$1*100),2,IF($G131<($K$1*100),3,IF($G131<($L$1*100),4,5)))) -> 5 | I131: =B131-(D131*$I$1) -> 188.8802509 | J131: =B131-(D131*$J$1) -> 177.2476022 | K131: =B131-(D131*$K$1) -> 153.9823047 | L131: =B131-(D131*$L$1) -> 119.0843585
A132: 12050 | B132: =VLOOKUP($A132,BasinData!$A:$K,8,FALSE) -> 161.2610956 | C132: =VLOOKUP($A132,BasinData!$A:$K,9,FALSE) -> 64.91149739 | D132: 96.34959826 | E132: =VLOOKUP($A132,BasinData!$A:$K,7,FALSE) -> 48.8760225 | F132: 112.3850731 | G132: 116.6430117 | H132: 5 | I132: 156.4436157 | J132: 146.8086559 | K132: 127.5387363 | L132: 98.63385678
A133: 12051 | B133: =VLOOKUP($A133,BasinData!$A:$K,8,FALSE) -> 147.7482732 | C133: =VLOOKUP($A133,BasinData!$A:$K,9,FALSE) -> 59.47225904 | D133: 88.2760142 | E133: =VLOOKUP($A133,BasinData!$A:$K,7,FALSE) -> 81.85870163 | F133: 65.8895716 | G133: 74.6404017 | H133: 5 | I133: 143.3344725 | J133: 134.5068711 | K133: 116.8516683 | L133: 90.36886401
A134: 12052 | B134: =VLOOKUP($A134,BasinData!$A:$K,8,FALSE) -> 287.2787142 | C134: =VLOOKUP($A134,BasinData!$A:$K,9,FALSE) -> 115.6366415 | D134: 171.6420727 | E134: =VLOOKUP($A134,BasinData!$A:$K,7,FALSE) -> 170.4101998 | F134: 116.8685144 | G134: 68.08850102 | H134: 5 | I134: 278.6966106 | J134: 261.5324033 | K134: 227.2039888 | L134: 175.7113669
A135: 12053 | B135: =VLOOKUP($A135,BasinData!$A:$K,8,FALSE) -> 157.2229554 | C135: =VLOOKUP($A135,BasinData!$A:$K,9,FALSE) -> 63.28604814 | D135: 93.9369073 | E135: =VLOOKUP($A135,BasinData!$A:$K,7,FALSE) -> 76.04842185 | F135: 81.17453359 | G135: 86.41388771 | H135: 5 | I135: 152.5261101 | J135: 143.1324193 | K135: 124.3450379 | L135: 96.16396569
A136: 12054 | B136: =VLOOKUP($A136,BasinData!$A:$K,8,FALSE) -> 129.8885302 | C136: =VLOOKUP($A136,BasinData!$A:$K,9,FALSE) -> 52.28327984 | D136: 77.60525039 | E136: =VLOOKUP($A136,BasinData!$A:$K,7,FALSE) -> 95.56785073 | F136: 34.3206795 | G136: 44.22468754 | H136: 4 | I136: 126.0082677 | J136: 118.2477427 | K136: 102.7266926 | L136: 79.44511748
A137: 12055 | B137: =VLOOKUP($A137,BasinData!$A:$K,8,FALSE) -> 130.1540044 | C137: =VLOOKUP($A137,BasinData!$A:$K,9,FALSE) -> 52.39013963 | D137: 77.76386478 | E137: =VLOOKUP($A137,BasinData!$A:$K,7,FALSE) -> 84.00763206 | F137: 46.14637234 | G137: 59.34166528 | H137: 4 | I137: 126.2658112 | J137: 118.4894247 | K137: 102.9366517 | L137: 79.6074923
A138: 12056 | B138: =VLOOKUP($A138,BasinData!$A:$K,8,FALSE) -> 137.9940631 | C138: =VLOOKUP($A138,BasinData!$A:$K,9,FALSE) -> 55.54595318 | D138: 82.44810994 | E138: =VLOOKUP($A138,BasinData!$A:$K,7,FALSE) -> 101.6961535 | F138: 36.29790963 | G138: 44.02515674 | H138: 4 | I138: 133.8716576 | J138: 125.6268466 | K138: 109.1372246 | L138: 84.40279165
A139: 12057 | B139: =VLOOKUP($A139,BasinData!$A:$K,8,FALSE) -> 202.7179999 | C139: =VLOOKUP($A139,BasinData!$A:$K,9,FALSE) -> 81.59890559 | D139: 121.1190943 | E139: =VLOOKUP($A139,BasinData!$A:$K,7,FALSE) -> 94.24580349 | F139: 108.4721964 | G139: 89.55829551 | H139: 5 | I139: 196.6620451 | J139: 184.5501357 | K139: 160.3263169 | L139: 123.9905886
A140: 12058 | B140: =VLOOKUP($A140,BasinData!$A:$K,8,FALSE) -> 155.4783384 | C140: =VLOOKUP($A140,BasinData!$A:$K,9,FALSE) -> 62.58379751 | D140: 92.89454088 | E140: =VLOOKUP($A140,BasinData!$A:$K,7,FALSE) -> 70.80908347 | F140: 84.66925492 | G140: 91.14556585 | H140: 5 | I140: 150.8336113 | J140: 141.5441573 | K140: 122.9652491 | L140: 95.09688682
A141: 12059 | B141: =VLOOKUP($A141,BasinData!$A:$K,8,FALSE) -> 185.1274987 | C141: =VLOOKUP($A141,BasinData!$A:$K,9,FALSE) -> 74.51830275 | D141: 110.6091959 | E141: =VLOOKUP($A141,BasinData!$A:$K,7,FALSE) -> 88.4163185 | F141: 96.71118018 | G141: 87.43502687 | H141: 5 | I141: 179.5970389 | J141: 168.5361193 | K141: 146.4142801 | L141: 113.2315213
A142: 12060 | B142: =VLOOKUP($A142,BasinData!$A:$K,8,FALSE) -> 197.8574627 | C142: =VLOOKUP($A142,BasinData!$A:$K,9,FALSE) -> 79.64242166 | D142: 118.2150411 | E142: =VLOOKUP($A142,BasinData!$A:$K,7,FALSE) -> 85.82537777 | F142: 112.032085 | G142: 94.76973822 | H142: 5 | I142: 191.9467107 | J142: 180.1252066 | K142: 156.4821984 | L142: 121.017686
A143: 12061 | B143: =VLOOKUP($A143,BasinData!$A:$K,8,FALSE) -> 153.1573487 | C143: =VLOOKUP($A143,BasinData!$A:$K,9,FALSE) -> 61.64954295 | D143: 91.50780577 | E143: =VLOOKUP($A143,BasinData!$A:$K,7,FALSE) -> 47.85044594 | F143: 105.3069028 | G143: 115.0796939 | H143: 5 | I143: 148.5819584 | J143: 139.4311779 | K143: 121.1296167 | L143: 93.67727497
A144: 12062 | B144: =VLOOKUP($A144,BasinData!$A:$K,8,FALSE) -> 199.8451769 | C144: =VLOOKUP($A144,BasinData!$A:$K,9,FALSE) -> 80.44252474 | D144: 119.4026521 | E144: =VLOOKUP($A144,BasinData!$A:$K,7,FALSE) -> 95.25695234 | F144: 104.5882245 | G144: 87.59288228 | H144: 5 | I144: 193.8750442 | J144: 181.934779 | K144: 158.0542486 | L144: 122.233453
A145: 12063 | B145: =VLOOKUP($A145,BasinData!$A:$K,8,FALSE) -> 195.5686572 | C145: =VLOOKUP($A145,BasinData!$A:$K,9,FALSE) -> 78.72112198 | D145: 116.8475352 | E145: =VLOOKUP($A145,BasinData!$A:$K,7,FALSE) -> 72.33251342 | F145: 123.2361438 | G145: 105.467474 | H145: 5 | I145: 189.7262804 | J145: 178.0415269 | K145: 154.6720199 | L145: 119.6177593
A146: 12064 | B146: =VLOOKUP($A146,BasinData!$A:$K,8,FALSE) -> 262.4364911 | C146: =VLOOKUP($A146,BasinData!$A:$K,9,FALSE) -> 105.6370449 | D146: 156.7994461 | E146: =VLOOKUP($A146,BasinData!$A:$K,7,FALSE) -> 138.0961449 | F146: 124.3403461 | G146: 79.29897024 | H146: 5 | I146: 254.5965187 | J146: 238.9165741 | K146: 207.5566849 | L146: 160.5168511
A147: 12065 | B147: =VLOOKUP($A147,BasinData!$A:$K,8,FALSE) -> 146.2752615 | C147: =VLOOKUP($A147,BasinData!$A:$K,9,FALSE) -> 58.87933612 | D147: 87.39592535 | E147: =VLOOKUP($A147,BasinData!$A:$K,7,FALSE) -> 76.81137816 | F147: 69.46388331 | G147: 79.48183286 | H147: 5 | I147: 141.9054652 | J147: 133.1658727 | K147: 115.6866876 | L147: 89.46790999
A148: 12066 | B148: =VLOOKUP($A148,BasinData!$A:$K,8,FALSE) -> 140.6707612 | C148: =VLOOKUP($A148,BasinData!$A:$K,9,FALSE) -> 56.62338898 | D148: 84.04737219 | E148: =VLOOKUP($A148,BasinData!$A:$K,7,FALSE) -> 76.03918608 | F148: 64.63157509 | G148: 76.89898377 | H148: 5 | I148: 136.4683926 | J148: 128.0636553 | K148: 111.2541809 | L148: 86.03996925
A149: 12067 | B149: =VLOOKUP($A149,BasinData!$A:$K,8,FALSE) -> 131.2150659 | C149: =VLOOKUP($A149,BasinData!$A:$K,9,FALSE) -> 52.81724259 | D149: 78.39782332 | E149: =VLOOKUP($A149,BasinData!$A:$K,7,FALSE) -> 86.60159879 | F149: 44.61346712 | G149: 56.90651249 | H149: 4 | I149: 127.2951747 | J149: 119.4553924 | K149: 103.7758277 | L149: 80.25648075
A150: 12068 | B150: =VLOOKUP($A150,BasinData!$A:$K,8,FALSE) -> 169.2892009 | C150: =VLOOKUP($A150,BasinData!$A:$K,9,FALSE) -> 68.14300425 | D150: 101.1461967 | E150: =VLOOKUP($A150,BasinData!$A:$K,7,FALSE) -> 81.34383199 | F150: 87.94536895 | G150: 86.94876508 | H150: 5 | I150: 164.2318911 | J150: 154.1172714 | K150: 133.8880321 | L150: 103.5441731
A151: 12069 | B151: =VLOOKUP($A151,BasinData!$A:$K,8,FALSE) -> 217.4044965 | C151: =VLOOKUP($A151,BasinData!$A:$K,9,FALSE) -> 87.51057626 | D151: 129.8939202 | E151: =VLOOKUP($A151,BasinData!$A:$K,7,FALSE) -> 96.7813913 | F151: 120.6231052 | G151: 92.86277985 | H151: 5 | I151: 210.9098005 | J151: 197.9204085 | K151: 171.9416244 | L151: 132.9734483
A152: 12070 | B152: =VLOOKUP($A152,BasinData!$A:$K,8,FALSE) -> 239.4554046 | C152: =VLOOKUP($A152,BasinData!$A:$K,9,FALSE) -> 96.38660092 | D152: 143.0688037 | E152: =VLOOKUP($A152,BasinData!$A:$K,7,FALSE) -> 170.1063347 | F152: 69.34906986 | G152: 48.47253076 | H152: 4 | I152: 232.3019644 | J152: 217.995084 | K152: 189.3813233 | L152: 146.4606822
A153: 12071 | B153: =VLOOKUP($A153,BasinData!$A:$K,8,FALSE) -> 231.8406366 | C153: =VLOOKUP($A153,BasinData!$A:$K,9,FALSE) -> 93.32147233 | D153: 138.5191642 | E153: =VLOOKUP($A153,BasinData!$A:$K,7,FALSE) -> 168.6354615 | F153: 63.20517511 | G153: 45.62919179 | H153: 4 | I153: 224.9146783 | J153: 211.0627619 | K153: 183.3589291 | L153: 141.8031798
A154: 12072 | B154: =VLOOKUP($A154,BasinData!$A:$K,8,FALSE) -> 190.7321803 | C154: =VLOOKUP($A154,BasinData!$A:$K,9,FALSE) -> 76.77432286 | D154: 113.9578574 | E154: =VLOOKUP($A154,BasinData!$A:$K,7,FALSE) -> 130.2568781 | F154: 60.47530215 | G154: 53.06812845 | H154: 4 | I154: 185.0342874 | J154: 173.6385017 | K154: 150.8469302 | L154: 116.659573
A155: 12073 | B155: =VLOOKUP($A155,BasinData!$A:$K,8,FALSE) -> 243.0091217 | C155: =VLOOKUP($A155,BasinData!$A:$K,9,FALSE) -> 97.81705813 | D155: 145.1920635 | E155: =VLOOKUP($A155,BasinData!$A:$K,7,FALSE) -> 176.0687769 | F155: 66.94034477 | G155: 46.10468585 | H155: 4 | I155: 235.7495185 | J155: 221.2303121 | K155: 192.1918994 | L155: 148.6342804
A156: 12074 | B156: =VLOOKUP($A156,BasinData!$A:$K,8,FALSE) -> 197.2614948 | C156: =VLOOKUP($A156,BasinData!$A:$K,9,FALSE) -> 79.40253015 | D156: 117.8589647 | E156: =VLOOKUP($A156,BasinData!$A:$K,7,FALSE) -> 136.5239972 | F156: 60.73749761 | G156: 51.53404984 | H156: 4 | I156: 191.3685466 | J156: 179.5826501 | K156: 156.0108572 | L156: 120.6531678
A157: 12075 | B157: =VLOOKUP($A157,BasinData!$A:$K,8,FALSE) -> 222.8237976 | C157: =VLOOKUP($A157,BasinData!$A:$K,9,FALSE) -> 89.69197624 | D157: 133.1318214 | E157: =VLOOKUP($A157,BasinData!$A:$K,7,FALSE) -> 100.7956398 | F157: 122.0281579 | G157: 91.65964725 | H157: 5 | I157: 216.1672066 | J157: 202.8540244 | K157: 176.2276602 | L157: 136.2881137
A158: 12076 | B158: =VLOOKUP($A158,BasinData!$A:$K,8,FALSE) -> 210.2158276 | C158: =VLOOKUP($A158,BasinData!$A:$K,9,FALSE) -> 84.6169629 | D158: 125.5988647 | E158: =VLOOKUP($A158,BasinData!$A:$K,7,FALSE) -> 140.843152 | F158: 69.37267563 | G158: 55.23352123 | H158: 4 | I158: 203.9358844 | J158: 191.3759979 | K158: 166.256225 | L158: 128.5765656
A159: 12077 | B159: =VLOOKUP($A159,BasinData!$A:$K,8,FALSE) -> 205.782754 | C159: =VLOOKUP($A159,BasinData!$A:$K,9,FALSE) -> 82.83254337 | D159: 122.9502106 | E159: =VLOOKUP($A159,BasinData!$A:$K,7,FALSE) -> 74.98741556 | F159: 130.7953384 | G159: 106.3807356 | H159: 5 | I159: 199.6352435 | J159: 187.3402224 | K159: 162.7501803 | L159: 125.8651171
A160: 12078 | B160: =VLOOKUP($A160,BasinData!$A:$K,8,FALSE) -> 101.8239495 | C160: =VLOOKUP($A160,BasinData!$A:$K,9,FALSE) -> 40.98660628 | D160: 60.83734327 | E160: =VLOOKUP($A160,BasinData!$A:$K,7,FALSE) -> 52.0427462 | F160: 49.78120335 | G160: 81.82672134 | H160: 5 | I160: 98.78208238 | J160: 92.69834805 | K160: 80.5308794 | L160: 62.27967642
A161: 12079 | B161: =VLOOKUP($A161,BasinData!$A:$K,8,FALSE) -> 67.40796112 | C161: =VLOOKUP($A161,BasinData!$A:$K,9,FALSE) -> 27.13333725 | D161: 40.27462388 | E161: =VLOOKUP($A161,BasinData!$A:$K,7,FALSE) -> 20.12952666 | F161: 47.27843446 | G161: 117.3901328 | H161: 5 | I161: 65.39422993 | J161: 61.36676754 | K161: 53.31184277 | L161: 41.2294556
A162: 12080 | B162: =VLOOKUP($A162,BasinData!$A:$K,8,FALSE) -> 131.3462269 | C162: =VLOOKUP($A162,BasinData!$A:$K,9,FALSE) -> 52.87003805 | D162: 78.47618882 | E162: =VLOOKUP($A162,BasinData!$A:$K,7,FALSE) -> 95.44532745 | F162: 35.90089941 | G162: 45.74750628 | H162: 4 | I162: 127.4224174 | J162: 119.5747985 | K162: 103.8795608 | L162: 80.33670413
A163: 12081 | B163: =VLOOKUP($A163,BasinData!$A:$K,8,FALSE) -> 220.8302886 | C163: =VLOOKUP($A163,BasinData!$A:$K,9,FALSE) -> 88.88954056 | D163: 131.940748 | E163: =VLOOKUP($A163,BasinData!$A:$K,7,FALSE) -> 107.9703659 | F163: 112.8599227 | G163: 85.53833774 | H163: 5 | I163: 214.2332512 | J163: 201.0391764 | K163: 174.6510268 | L163: 135.0688024
A164: 12082 | B164: =VLOOKUP($A164,BasinData!$A:$K,8,FALSE) -> 222.6902655 | C164: =VLOOKUP($A164,BasinData!$A:$K,9,FALSE) -> 89.63822631 | D164: 133.0520392 | E164: =VLOOKUP($A164,BasinData!$A:$K,7,FALSE) -> 50.94130181 | F164: 171.7489637 | G164: 129.0840522 | H164: 5 | I164: 216.0376635 | J164: 202.7324596 | K164: 176.1220518 | L164: 136.20644
A165: 12083 | B165: =VLOOKUP($A165,BasinData!$A:$K,8,FALSE) -> 239.9267894 | C165: =VLOOKUP($A165,BasinData!$A:$K,9,FALSE) -> 96.57634474 | D165: 143.3504447 | E165: =VLOOKUP($A165,BasinData!$A:$K,7,FALSE) -> 192.2862707 | F165: 47.64051871 | G165: 33.23360372 | H165: 3 | I165: 232.7592672 | J165: 218.4242227 | K165: 189.7541338 | L165: 146.7490004
A166: 12084 | B166: =VLOOKUP($A166,BasinData!$A:$K,8,FALSE) -> 248.0894509 | C166: =VLOOKUP($A166,BasinData!$A:$K,9,FALSE) -> 99.8620137 | D166: 148.2274372 | E166: =VLOOKUP($A166,BasinData!$A:$K,7,FALSE) -> 180.1923913 | F166: 67.89705957 | G166: 45.8059998 | H166: 4 | I166: 240.678079 | J166: 225.8553353 | K166: 196.2098479 | L166: 151.7416167
A167: 12085 | B167: =VLOOKUP($A167,BasinData!$A:$K,8,FALSE) -> 251.4522167 | C167: =VLOOKUP($A167,BasinData!$A:$K,9,FALSE) -> 101.2156084 | D167: 150.2366083 | E167: =VLOOKUP($A167,BasinData!$A:$K,7,FALSE) -> 145.9138856 | F167: 105.5383311 | G167: 70.24807891 | H167: 5 | I167: 243.9403863 | J167: 228.9167255 | K167: 198.8694038 | L167: 153.7984213
A168: 12086 | B168: =VLOOKUP($A168,BasinData!$A:$K,8,FALSE) -> 220.7241617 | C168: =VLOOKUP($A168,BasinData!$A:$K,9,FALSE) -> 88.84682191 | D168: 131.8773398 | E168: =VLOOKUP($A168,BasinData!$A:$K,7,FALSE) -> 105.1215299 | F168: 115.6026318 | G168: 87.65920819 | H168: 5 | I168: 214.1302947 | J168: 200.9425607 | K168: 174.5670928 | L168: 135.0038908
A169: 12087 | B169: =VLOOKUP($A169,BasinData!$A:$K,8,FALSE) -> 204.6018833 | C169: =VLOOKUP($A169,BasinData!$A:$K,9,FALSE) -> 82.35721431 | D169: 122.244669 | E169: =VLOOKUP($A169,BasinData!$A:$K,7,FALSE) -> 136.1198869 | F169: 68.48199637 | G169: 56.02043585 | H169: 4 | I169: 198.4896498 | J169: 186.2651829 | K169: 161.8162491 | L169: 125.1428485
A170: 12088 | B170: =VLOOKUP($A170,BasinData!$A:$K,8,FALSE) -> 219.8971528 | C170: =VLOOKUP($A170,BasinData!$A:$K,9,FALSE) -> 88.51393079 | D170: 131.383222 | E170: =VLOOKUP($A170,BasinData!$A:$K,7,FALSE) -> 105.7393861 | F170: 114.1577667 | G170: 86.88915143 | H170: 5 | I170: 213.3279917 | J170: 200.1896695 | K170: 173.9130251 | L170: 134.4980585
A171: 12089 | B171: =VLOOKUP($A171,BasinData!$A:$K,8,FALSE) -> 196.7969913 | C171: =VLOOKUP($A171,BasinData!$A:$K,9,FALSE) -> 79.2155562 | D171: 117.5814351 | E171: =VLOOKUP($A171,BasinData!$A:$K,7,FALSE) -> 52.95269439 | F171: 143.8442969 | G171: 122.3358915 | H171: 5 | I171: 190.9179195 | J171: 179.159776 | K171: 155.643489 | L171: 120.3690585
A172: 12090 | B172: =VLOOKUP($A172,BasinData!$A:$K,8,FALSE) -> 219.7395979 | C172: =VLOOKUP($A172,BasinData!$A:$K,9,FALSE) -> 88.45051113 | D172: 131.2890868 | E172: =VLOOKUP($A172,BasinData!$A:$K,7,FALSE) -> 81.41158794 | F172: 138.3280099 | G172: 105.3613925 | H172: 5 | I172: 213.1751435 | J172: 200.0462349 | K172: 173.7884175 | L172: 134.4016915
A173: 12091 | B173: =VLOOKUP($A173,BasinData!$A:$K,8,FALSE) -> 162.5495377 | C173: =VLOOKUP($A173,BasinData!$A:$K,9,FALSE) -> 65.43012655 | D173: 97.1194112 | E173: =VLOOKUP($A173,BasinData!$A:$K,7,FALSE) -> 110.8407403 | F173: 51.70879745 | G173: 53.2424948 | H173: 4 | I173: 157.6935672 | J173: 147.9816261 | K173: 128.5577438 | L173: 99.42192047
A174: 12092 | B174: =VLOOKUP($A174,BasinData!$A:$K,8,FALSE) -> 222.2325239 | C174: =VLOOKUP($A174,BasinData!$A:$K,9,FALSE) -> 89.45397423 | D174: 132.7785496 | E174: =VLOOKUP($A174,BasinData!$A:$K,7,FALSE) -> 79.42331219 | F174: 142.8092117 | G174: 107.5544296 | H174: 5 | I174: 215.5935964 | J174: 202.3157414 | K174: 175.7600315 | L174: 135.9264666
A175: 12093 | B175: =VLOOKUP($A175,BasinData!$A:$K,8,FALSE) -> 195.3941745 | C175: =VLOOKUP($A175,BasinData!$A:$K,9,FALSE) -> 78.65088849 | D175: 116.743286 | E175: =VLOOKUP($A175,BasinData!$A:$K,7,FALSE) -> 129.876539 | F175: 65.51763551 | G175: 56.12111645 | H175: 4 | I175: 189.5570102 | J175: 177.8826816 | K175: 154.5340244 | L175: 119.5110386
A176: 13001 | B176: =VLOOKUP($A176,BasinData!$A:$K,8,FALSE) -> 213.5991635 | C176: =VLOOKUP($A176,BasinData!$A:$K,9,FALSE) -> 85.97883753 | D176: 127.6203259 | E176: =VLOOKUP($A176,BasinData!$A:$K,7,FALSE) -> 108.6216688 | F176: 104.9774946 | G176: 82.25766064 | H176: 5 | I176: 207.2181472 | J176: 194.4561146 | K176: 168.9320494 | L176: 130.6459516
A177: 13002 | B177: =VLOOKUP($A177,BasinData!$A:$K,8,FALSE) -> 137.1308975 | C177: =VLOOKUP($A177,BasinData!$A:$K,9,FALSE) -> 55.19850809 | D177: 81.93238937 | E177: =VLOOKUP($A177,BasinData!$A:$K,7,FALSE) -> 102.1475824 | F177: 34.98331504 | G177: 42.69778449 | H177: 4 | I177: 133.034278 | J177: 124.8410391 | K177: 108.4545612 | L177: 83.87484437
A178: 13003 | B178: =VLOOKUP($A178,BasinData!$A:$K,8,FALSE) -> 187.6511691 | C178: =VLOOKUP($A178,BasinData!$A:$K,9,FALSE) -> 75.53414124 | D178: 112.1170279 | E178: =VLOOKUP($A178,BasinData!$A:$K,7,FALSE) -> 44.48828901 | F178: 143.1628801 | G178: 127.6905773 | H178: 5 | I178: 182.0453177 | J178: 170.8336149 | K178: 148.4102094 | L178: 114.775101
A179: 13003 | B179: =VLOOKUP($A179,BasinData!$A:$K,8,FALSE) -> 187.6511691 | C179: =VLOOKUP($A179,BasinData!$A:$K,9,FALSE) -> 75.53414124 | D179: 112.1170279 | E179: =VLOOKUP($A179,BasinData!$A:$K,7,FALSE) -> 44.48828901 | F179: 143.1628801 | G179: 127.6905773 | H179: 5 | I179: 182.0453177 | J179: 170.8336149 | K179: 148.4102094 | L179: 114.775101
A180: 13005 | B180: =VLOOKUP($A180,BasinData!$A:$K,8,FALSE) -> 185.9028745 | C180: =VLOOKUP($A180,BasinData!$A:$K,9,FALSE) -> 74.8304103 | D180: 111.0724642 | E180: =VLOOKUP($A180,BasinData!$A:$K,7,FALSE) -> 58.46446279 | F180: 127.4384117 | G180: 114.7344777 | H180: 5 | I180: 180.3492513 | J180: 169.2420049 | K180: 147.027512 | L180: 113.7057728
A181: 13006 | B181: =VLOOKUP($A181,BasinData!$A:$K,8,FALSE) -> 141.1106472 | C181: =VLOOKUP($A181,BasinData!$A:$K,9,FALSE) -> 56.80045378 | D181: 84.31019345 | E181: =VLOOKUP($A181,BasinData!$A:$K,7,FALSE) -> 95.01421122 | F181: 46.09643601 | G181: 54.67480754 | H181: 4 | I181: 136.8951376 | J181: 128.4641182 | K181: 111.6020795 | L181: 86.30902149
A182: 13007 | B182: =VLOOKUP($A182,BasinData!$A:$K,8,FALSE) -> 199.1653265 | C182: =VLOOKUP($A182,BasinData!$A:$K,9,FALSE) -> 80.16886852 | D182: 118.996458 | E182: =VLOOKUP($A182,BasinData!$A:$K,7,FALSE) -> 95.78290924 | F182: 103.3824173 | G182: 86.87856682 | H182: 5 | I182: 193.2155036 | J182: 181.3158578 | K182: 157.5165662 | L182: 121.8176288
A183: 13009 | B183: =VLOOKUP($A183,BasinData!$A:$K,8,FALSE) -> 153.7736767 | C183: =VLOOKUP($A183,BasinData!$A:$K,9,FALSE) -> 61.89762991 | D183: 91.87604684 | E183: =VLOOKUP($A183,BasinData!$A:$K,7,FALSE) -> 97.41022957 | F183: 56.36344718 | G183: 61.34727072 | H183: 4 | I183: 149.1798744 | J183: 139.9922697 | K183: 121.6170604 | L183: 94.0542463
A184: 13010 | B184: =VLOOKUP($A184,BasinData!$A:$K,8,FALSE) -> 150.0321156 | C184: =VLOOKUP($A184,BasinData!$A:$K,9,FALSE) -> 60.3915609 | D184: 89.64055467 | E184: =VLOOKUP($A184,BasinData!$A:$K,7,FALSE) -> 98.39288739 | F184: 51.63922817 | G184: 57.60699313 | H184: 4 | I184: 145.5500878 | J184: 136.5860324 | K184: 118.6579214 | L184: 91.76575503
A185: 13012 | B185: =VLOOKUP($A185,BasinData!$A:$K,8,FALSE) -> 198.7109434 | C185: =VLOOKUP($A185,BasinData!$A:$K,9,FALSE) -> 79.98596828 | D185: 118.7249751 | E185: =VLOOKUP($A185,BasinData!$A:$K,7,FALSE) -> 131.7248006 | F185: 66.98614271 | G185: 56.42127334 | H185: 4 | I185: 192.7746946 | J185: 180.9021971 | K185: 157.1572021 | L185: 121.5397096
A186: 13013 | B186: =VLOOKUP($A186,BasinData!$A:$K,8,FALSE) -> 210.7197823 | C186: =VLOOKUP($A186,BasinData!$A:$K,9,FALSE) -> 84.81981684 | D186: 125.8999654 | E186: =VLOOKUP($A186,BasinData!$A:$K,7,FALSE) -> 91.68780544 | F186: 119.0319768 | G186: 94.54488444 | H186: 5 | I186: 204.424784 | J186: 191.8347874 | K186: 166.6547944 | L186: 128.8848047
A187: 13014 | B187: =VLOOKUP($A187,BasinData!$A:$K,8,FALSE) -> 162.1350943 | C187: =VLOOKUP($A187,BasinData!$A:$K,9,FALSE) -> 65.26330301 | D187: 96.87179126 | E187: =VLOOKUP($A187,BasinData!$A:$K,7,FALSE) -> 96.94640483 | F187: 65.18868944 | G187: 67.29377932 | H187: 5 | I187: 157.2915047 | J187: 147.6043256 | K187: 128.2299673 | L187: 99.16842995
A188: 13014 | B188: =VLOOKUP($A188,BasinData!$A:$K,8,FALSE) -> 162.1350943 | C188: =VLOOKUP($A188,BasinData!$A:$K,9,FALSE) -> 65.26330301 | D188: 96.87179126 | E188: =VLOOKUP($A188,BasinData!$A:$K,7,FALSE) -> 96.94640483 | F188: 65.18868944 | G188: 67.29377932 | H188: 5 | I188: 157.2915047 | J188: 147.6043256 | K188: 128.2299673 | L188: 99.16842995
A189: 13015 | B189: =VLOOKUP($A189,BasinData!$A:$K,8,FALSE) -> 166.763037 | C189: =VLOOKUP($A189,BasinData!$A:$K,9,FALSE) -> 67.12616208 | D189: 99.63687496 | E189: =VLOOKUP($A189,BasinData!$A:$K,7,FALSE) -> 114.630699 | F189: 52.13233803 | G189: 52.32233353 | H189: 4 | I189: 161.7811933 | J189: 151.8175058 | K189: 131.8901308 | L189: 101.9990683
A190: 13016 | B190: =VLOOKUP($A190,BasinData!$A:$K,8,FALSE) -> 290.8465049 | C190: =VLOOKUP($A190,BasinData!$A:$K,9,FALSE) -> 117.0727637 | D190: 173.7737412 | E190: =VLOOKUP($A190,BasinData!$A:$K,7,FALSE) -> 107.5489961 | F190: 183.2975088 | G190: 105.4805562 | H190: 5 | I190: 282.1578178 | J190: 264.7804437 | K190: 230.0256955 | L190: 177.8935731
A191: 13019 | B191: =VLOOKUP($A191,BasinData!$A:$K,8,FALSE) -> 158.7054142 | C191: =VLOOKUP($A191,BasinData!$A:$K,9,FALSE) -> 63.8827737 | D191: 94.82264049 | E191: =VLOOKUP($A191,BasinData!$A:$K,7,FALSE) -> 75.92263408 | F191: 82.78278011 | G191: 87.30275774 | H191: 5 | I191: 153.9642822 | J191: 144.4820181 | K191: 125.51749 | L191: 97.07069787
A192: 13020 | B192: =VLOOKUP($A192,BasinData!$A:$K,8,FALSE) -> 196.7290901 | C192: =VLOOKUP($A192,BasinData!$A:$K,9,FALSE) -> 79.18822432 | D192: 117.5408657 | E192: =VLOOKUP($A192,BasinData!$A:$K,7,FALSE) -> 106.4719814 | F192: 90.25710861 | G192: 76.78785421 | H192: 5 | I192: 190.8520468 | J192: 179.0979602 | K192: 155.589787 | L192: 120.3275273
A193: 13021 | B193: =VLOOKUP($A193,BasinData!$A:$K,8,FALSE) -> 302.7385438 | C193: =VLOOKUP($A193,BasinData!$A:$K,9,FALSE) -> 121.8595974 | D193: 180.8789464 | E193: =VLOOKUP($A193,BasinData!$A:$K,7,FALSE) -> 186.3844158 | F193: 116.3541279 | G193: 64.32707083 | H193: 4 | I193: 293.6945964 | J193: 275.6067018 | K193: 239.4309125 | L193: 185.1672286
A194: 13022 | B194: =VLOOKUP($A194,BasinData!$A:$K,8,FALSE) -> 217.3281163 | C194: =VLOOKUP($A194,BasinData!$A:$K,9,FALSE) -> 87.47983139 | D194: 129.848285 | E194: =VLOOKUP($A194,BasinData!$A:$K,7,FALSE) -> 101.8588478 | F194: 115.4692686 | G194: 88.92629474 | H194: 5 | I194: 210.8357021 | J194: 197.8508736 | K194: 171.8812166 | L194: 132.9267311
A195: 13023 | B195: =VLOOKUP($A195,BasinData!$A:$K,8,FALSE) -> 192.0165353 | C195: =VLOOKUP($A195,BasinData!$A:$K,9,FALSE) -> 77.29130686 | D195: =B195-C195 -> 114.7252284 | E195: =VLOOKUP($A195,BasinData!$A:$K,7,FALSE) -> 70.79246958 | F195: =B195-E195 -> 121.2240657 | G195: =F195/D195*100 -> 105.6646976 | H195: =IF($G195<($I$1*100),1,IF($G195<($J$1*100),2,IF($G195<($K$1*100),3,IF($G195<($L$1*100),4,5)))) -> 5 | I195: =B195-(D195*$I$1) -> 186.2802739 | J195: =B195-(D195*$J$1) -> 174.807751 | K195: =B195-(D195*$K$1) -> 151.8627053 | L195: =B195-(D195*$L$1) -> 117.4451368
A196: 13024 | B196: =VLOOKUP($A196,BasinData!$A:$K,8,FALSE) -> 134.1909903 | C196: =VLOOKUP($A196,BasinData!$A:$K,9,FALSE) -> 54.01512426 | D196: 80.17586609 | E196: =VLOOKUP($A196,BasinData!$A:$K,7,FALSE) -> 79.20070573 | F196: 54.99028461 | G196: 68.58707901 | H196: 5 | I196: 130.182197 | J196: 122.1646104 | K196: 106.1294372 | L196: 82.07667739
A197: 13025 | B197: =VLOOKUP($A197,BasinData!$A:$K,8,FALSE) -> 188.9044243 | C197: =VLOOKUP($A197,BasinData!$A:$K,9,FALSE) -> 76.0386068 | D197: 112.8658175 | E197: =VLOOKUP($A197,BasinData!$A:$K,7,FALSE) -> 97.12592087 | F197: 91.77850342 | G197: 81.31647426 | H197: 5 | I197: 183.2611334 | J197: 171.9745517 | K197: 149.4013882 | L197: 115.5416429
A198: 13029 | B198: =VLOOKUP($A198,BasinData!$A:$K,8,FALSE) -> 197.3290264 | C198: =VLOOKUP($A198,BasinData!$A:$K,9,FALSE) -> 79.42971323 | D198: 117.8993132 | E198: =VLOOKUP($A198,BasinData!$A:$K,7,FALSE) -> 125.4476869 | F198: 71.88133953 | G198: 60.96841245 | H198: 4 | I198: 191.4340607 | J198: 179.6441294 | K198: 156.0642668 | L198: 120.6944728
A199: 13030 | B199: =VLOOKUP($A199,BasinData!$A:$K,8,FALSE) -> 217.3351027 | C199: =VLOOKUP($A199,BasinData!$A:$K,9,FALSE) -> 87.48264355 | D199: 129.8524591 | E199: =VLOOKUP($A199,BasinData!$A:$K,7,FALSE) -> 129.6356601 | F199: 87.69944256 | G199: 67.53776029 | H199: 5 | I199: 210.8424797 | J199: 197.8572338 | K199: 171.886742 | L199: 132.9310042
A200: 13031 | B200: =VLOOKUP($A200,BasinData!$A:$K,8,FALSE) -> 205.5274524 | C200: =VLOOKUP($A200,BasinData!$A:$K,9,FALSE) -> 82.72977828 | D200: 122.7976741 | E200: =VLOOKUP($A200,BasinData!$A:$K,7,FALSE) -> 123.2882001 | F200: 82.23925223 | G200: 66.97134359 | H200: 5 | I200: 199.3875687 | J200: 187.1078013 | K200: 162.5482664 | L200: 125.7089642
... 1181 more rows

Sheet plot
A1: BasinID | C1: Reference IC
A2: 24116 | C2: 1 | F2: enter values in green cells
A3: DO NOT ALTER VALUES BELOW THIS LINE
A4: Data Values | D4: Regression Coefficient | H4: Model Results
A5: Intercept | B5: 1 | D5: 6.1523 | H5: Max density at reference IC | I5: =B14 -> 235.5700445 | K5: Density at 5% reduction in range (ref IC) | L5: =B14-(0.05*(B14-B64)) -> 228.5326747
A6: CHSLP | B6: =VLOOKUP(A2,BasinData!A:F,2,FALSE) -> 0.004893532184 | D6: -0.084
A7: AUGgwWp | B7: =VLOOKUP(A2,BasinData!A:F,3,FALSE) -> 2.818425166 | D7: -0.0091 | H7: Max Density at Actual IC | I7: =C14 -> 185.2981235 | K7: 15% reduction in range (ref IC) | L7: =B14-(0.15*(B14-B64)) -> 214.4579352
A8: pBWet | B8: =VLOOKUP(A2,BasinData!A:F,4,FALSE) -> 22.58064516 | D8: -0.0289
A9: IC | B9: =VLOOKUP(A2,BasinData!A:E,5,FALSE) -> 7.435450174 | D9: -0.0373 | H9: Actual Density in basin | I9: =B10 -> 180.6060857 | K9: 35% reduction in range (ref IC) | L9: =B14-(0.35*(B14-B64)) -> 186.3084562
A10: E(y) | B10: =EXP((B5*D5)+(B6*D6)+(B7*D7)+(B8*D8)+(B9*D9)) -> 180.6060857
K11: 65% reduction in range (ref IC) | L11: =B14-(0.65*(B14-B64)) -> 144.0842377
A13: AUGgwW range | B13: With Reference IC | C13: With actual IC
A14: 0 | B14: =EXP(($B$5*$D$5)+($B$6*$D$6)+(A14*$D$7)+($B$8*$D$8)+($C$2*$D$9)) -> 235.5700445 | C14: =EXP(($B$5*$D$5)+($B$6*$D$6)+(A14*$D$7)+($B$8*$D$8)+($B$9*$D$9)) -> 185.2981235
A15: 2 | B15: =EXP(($B$5*$D$5)+($B$6*$D$6)+(A15*$D$7)+($B$8*$D$8)+($C$2*$D$9)) -> 231.3214492 | C15: =EXP(($B$5*$D$5)+($B$6*$D$6)+(A15*$D$7)+($B$8*$D$8)+($B$9*$D$9)) -> 181.9562014
A16: 4 | B16: 227.1494789 | C16: 178.6745522
A17: 6 | B17: 223.0527517 | C17: 175.4520887
A18: 8 | B18: 219.0299105 | C18: 172.2877436
A19: 10 | B19: 215.0796228 | C19: 169.1804686
A20: 12 | B20: 211.20058 | C20: 166.1292345
A21: 14 | B21: 207.3914973 | C21: 163.1330306
A22: 16 | B22: 203.6511128 | C22: 160.1908644
A23: 18 | B23: 199.9781875 | C23: 157.3017612
A24: 20 | B24: 196.3715049 | C24: 154.4647642
A25: 22 | B25: 192.8298701 | C25: 151.6789334
A26: 24 | B26: 189.3521101 | C26: 148.9433462
A27: 26 | B27: 185.9370728 | C27: 146.2570963
A28: 28 | B28: 182.583627 | C28: 143.619294
A29: 30 | B29: 179.2906619 | C29: 141.0290654
A30: 32 | B30: 176.0570866 | C30: 138.4855526
A31: 34 | B31: 172.8818301 | C31: 135.987913
A32: 36 | B32: 169.7638406 | C32: 133.5353193
A33: 38 | B33: 166.7020852 | C33: 131.126959
A34: 40 | B34: 163.6955497 | C34: 128.7620345
A35: 42 | B35: 160.7432382 | C35: 126.4397622
A36: 44 | B36: 157.8441728 | C36: 124.159373
A37: 46 | B37: 154.9973931 | C37: 121.9201115
A38: 48 | B38: 152.2019562 | C38: 119.721236
A39: 50 | B39: 149.456936 | C39: 117.5620179
A40: 52 | B40: 146.7614234 | C40: 115.4417423
A41: 54 | B41: 144.1145253 | C41: 113.3597065
A42: 56 | B42: 141.5153651 | C42: 111.3152211
A43: 58 | B43: 138.9630816 | C43: 109.3076088
A44: 60 | B44: 136.4568296 | C44: 107.3362045
A45: 62 | B45: 133.9957788 | C45: 105.4003553
A46: 64 | B46: 131.579114 | C46: 103.4994198
A47: 66 | B47: 129.2060347 | C47: 101.6327684
A48: 68 | B48: 126.8757547 | C48: 99.79978277
A49: 70 | B49: 124.5875022 | C49: 97.99985574
A50: 72 | B50: 122.3405193 | C50: 96.23239108
A51: 74 | B51: 120.1340615 | C51: 94.49680332
A52: 76 | B52: 117.967398 | C52: 92.79251755
A53: 78 | B53: 115.8398111 | C53: 91.11896921
A54: 80 | B54: 113.7505961 | C54: 89.47560396
A55: 82 | B55: 111.6990608 | C55: 87.86187742
A56: 84 | B56: 109.6845258 | C56: 86.27725506
A57: 86 | B57: 107.7063237 | C57: 84.72121196
A58: 88 | B58: 105.7637992 | C58: 83.19323269
A59: 90 | B59: 103.8563089 | C59: 81.69281111
A60: 92 | B60: 101.9832208 | C60: 80.2194502
A61: 94 | B61: 100.1439147 | C61: 78.77266191
A62: 96 | B62: 98.3377811 | C62: 77.35196701
A63: 98 | B63: 96.56422183 | C63: 75.95689487
A64: 100 | B64: 94.82264937 | C64: 74.58698339
